Publisher Label,Publisher URI,"Directorate code","Directorate","Service code","Service","Revenue or capital code","Revenue capital","Cost centre","Cost centre description","Bvsub Category","Bvsub description","Bvsum code","Bvsum description","Account code","Account description","Transaction No","Period","Transaction Date","Amount","Classification code","Classification description","Supplier ID","Supplier description","Company registration number","Company registration number Uri","VAT registration number"
"London Borough of Redbridge","http://opendatacommunities.org/doc/london-borough-council/redbridge","5BGFHOUSING","General Fund Housing","5CWELFARE","Welfare Services","REV","Revenue","R4111","Supporting People - CPB","05-THIRD","Third Party Payments","05G","Other establishments","6851","Housing Association Payments","90614556","201601",27/04/2015 00:00:00,964.7,"64710","Residential Care Homes","REDACTED DATA","THE ABBEYFIELD SOCIETY(SELWORTHY CLOSE 10-12)","574816","http://opencorporates.com/companies/gb/574816",""
"London Borough of Redbridge","http://opendatacommunities.org/doc/london-borough-council/redbridge","5BGFHOUSING","General Fund Housing","5CWELFARE","Welfare Services","REV","Revenue","R4111","Supporting People - CPB","05-THIRD","Third Party Payments","05G","Other establishments","6851","Housing Association Payments","90614556","201601",27/04/2015 00:00:00,14382.75,"43419","Home Care Services","REDACTED DATA","EAST THAMES CARE LTD.","",,""
"London Borough of Redbridge","http://opendatacommunities.org/doc/london-borough-council/redbridge","5BGFHOUSING","General Fund Housing","5CWELFARE","Welfare Services","REV","Revenue","R4111","Supporting People - CPB","05-THIRD","Third Party Payments","05G","Other establishments","6851","Housing Association Payments","90614556","201601",27/04/2015 00:00:00,2910,"43419","Home Care Services","REDACTED DATA","EAST THAMES CARE LTD.","",,""
"London Borough of Redbridge","http://opendatacommunities.org/doc/london-borough-council/redbridge","5BGFHOUSING","General Fund Housing","5CWELFARE","Welfare Services","REV","Revenue","R4111","Supporting People - CPB","05-THIRD","Third Party Payments","05G","Other establishments","6851","Housing Association Payments","90614556","201601",27/04/2015 00:00:00,5606.42,"43419","Home Care Services","REDACTED DATA","EAST THAMES CARE LTD.","",,""
"London Borough of Redbridge","http://opendatacommunities.org/doc/london-borough-council/redbridge","5BGFHOUSING","General Fund Housing","5CWELFARE","Welfare Services","REV","Revenue","R4111","Supporting People - CPB","05-THIRD","Third Party Payments","05G","Other establishments","6851","Housing Association Payments","90614556","201601",27/04/2015 00:00:00,42028.42,"1266","Accommodation Agencies - Residential","REDACTED DATA","EAST POTENTIAL (SUPPORTING PEOPLE ONLY)","CHARITY 1053142","http://opencorporates.com/companies/gb/CHARITY 1053142",""
"London Borough of Redbridge","http://opendatacommunities.org/doc/london-borough-council/redbridge","5BGFHOUSING","General Fund Housing","5CWELFARE","Welfare Services","REV","Revenue","R4111","Supporting People - CPB","05-THIRD","Third Party Payments","05G","Other establishments","6851","Housing Association Payments","90614556","201601",27/04/2015 00:00:00,10275,"1266","Accommodation Agencies - Residential","REDACTED DATA","FAMILY MOSAIC HOUSING ASSOCIATION (ALBION HSE)","",,"547939979"
"London Borough of Redbridge","http://opendatacommunities.org/doc/london-borough-council/redbridge","5BGFHOUSING","General Fund Housing","5CWELFARE","Welfare Services","REV","Revenue","R4111","Supporting People - CPB","05-THIRD","Third Party Payments","05G","Other establishments","6851","Housing Association Payments","90614556","201601",27/04/2015 00:00:00,9132.1,"1266","Accommodation Agencies - Residential","REDACTED DATA","FAMILY MOSAIC HOUSING ASSOCIATION (ALBION HSE)","",,"547939979"
"London Borough of Redbridge","http://opendatacommunities.org/doc/london-borough-council/redbridge","5BGFHOUSING","General Fund Housing","5CWELFARE","Welfare Services","REV","Revenue","R4111","Supporting People - CPB","05-THIRD","Third Party Payments","05G","Other establishments","6851","Housing Association Payments","90614556","201601",27/04/2015 00:00:00,2236.3,"1266","Accommodation Agencies - Residential","REDACTED DATA","SPRINGBOARD HOUSING ASSOC LTD","",,""
"London Borough of Redbridge","http://opendatacommunities.org/doc/london-borough-council/redbridge","5BGFHOUSING","General Fund Housing","5CWELFARE","Welfare Services","REV","Revenue","R4111","Supporting People - CPB","05-THIRD","Third Party Payments","05G","Other establishments","6851","Housing Association Payments","90614556","201601",27/04/2015 00:00:00,2011.5,"1266","Accommodation Agencies - Residential","REDACTED DATA","SPRINGBOARD HOUSING ASSOC LTD","",,""
"London Borough of Redbridge","http://opendatacommunities.org/doc/london-borough-council/redbridge","5BGFHOUSING","General Fund Housing","5CWELFARE","Welfare Services","REV","Revenue","R4111","Supporting People - CPB","05-THIRD","Third Party Payments","05G","Other establishments","6851","Housing Association Payments","90614556","201601",27/04/2015 00:00:00,780.7,"17020","Charities and Voluntary Organisations","REDACTED DATA","HOUSING 21","",,"604233385"
"London Borough of Redbridge","http://opendatacommunities.org/doc/london-borough-council/redbridge","5BGFHOUSING","General Fund Housing","5CWELFARE","Welfare Services","REV","Revenue","R4111","Supporting People - CPB","05-THIRD","Third Party Payments","05G","Other establishments","6851","Housing Association Payments","90614556","201601",27/04/2015 00:00:00,1050,"17020","Charities and Voluntary Organisations","REDACTED DATA","HOUSING 21","",,"604233385"
"London Borough of Redbridge","http://opendatacommunities.org/doc/london-borough-council/redbridge","5BGFHOUSING","General Fund Housing","5CWELFARE","Welfare Services","REV","Revenue","R4111","Supporting People - CPB","05-THIRD","Third Party Payments","05G","Other establishments","6851","Housing Association Payments","90614556","201601",27/04/2015 00:00:00,315,"17020","Charities and Voluntary Organisations","REDACTED DATA","HOUSING 21","",,"604233385"
"London Borough of Redbridge","http://opendatacommunities.org/doc/london-borough-council/redbridge","5BGFHOUSING","General Fund Housing","5CWELFARE","Welfare Services","REV","Revenue","R4111","Supporting People - CPB","05-THIRD","Third Party Payments","05G","Other establishments","6851","Housing Association Payments","90614556","201601",27/04/2015 00:00:00,191.58,"17020","Charities and Voluntary Organisations","REDACTED DATA","HOUSING 21","",,"604233385"
"London Borough of Redbridge","http://opendatacommunities.org/doc/london-borough-council/redbridge","5BGFHOUSING","General Fund Housing","5CWELFARE","Welfare Services","REV","Revenue","R4111","Supporting People - CPB","05-THIRD","Third Party Payments","05G","Other establishments","6851","Housing Association Payments","90614556","201601",27/04/2015 00:00:00,320,"1266","Accommodation Agencies - Residential","REDACTED DATA","INDUSTRIAL DWELLINGS SOCIETY (1885) LTD","CHARITY14044","http://opencorporates.com/companies/gb/CHARITY14044",""
"London Borough of Redbridge","http://opendatacommunities.org/doc/london-borough-council/redbridge","5BGFHOUSING","General Fund Housing","5CWELFARE","Welfare Services","REV","Revenue","R4111","Supporting People - CPB","05-THIRD","Third Party Payments","05G","Other establishments","6851","Housing Association Payments","90614556","201601",27/04/2015 00:00:00,9099.92,"1266","Accommodation Agencies - Residential","REDACTED DATA","LOOK AHEAD HOUSING & CARE LTD","21004R","http://opencorporates.com/companies/gb/21004R","245078264"
"London Borough of Redbridge","http://opendatacommunities.org/doc/london-borough-council/redbridge","5BGFHOUSING","General Fund Housing","5CWELFARE","Welfare Services","REV","Revenue","R4111","Supporting People - CPB","05-THIRD","Third Party Payments","05G","Other establishments","6851","Housing Association Payments","90614556","201601",27/04/2015 00:00:00,9115.83,"1266","Accommodation Agencies - Residential","REDACTED DATA","LOOK AHEAD HOUSING & CARE LTD","21004R","http://opencorporates.com/companies/gb/21004R","245078264"
"London Borough of Redbridge","http://opendatacommunities.org/doc/london-borough-council/redbridge","5BGFHOUSING","General Fund Housing","5CWELFARE","Welfare Services","REV","Revenue","R4111","Supporting People - CPB","05-THIRD","Third Party Payments","05G","Other establishments","6851","Housing Association Payments","90614556","201601",27/04/2015 00:00:00,2586.25,"17020","Charities and Voluntary Organisations","REDACTED DATA","NORWOOD RAVENSWOOD SERVICES LTD(SUPPORTING PEOPLE)","",,"629720917"
"London Borough of Redbridge","http://opendatacommunities.org/doc/london-borough-council/redbridge","5BGFHOUSING","General Fund Housing","5CWELFARE","Welfare Services","REV","Revenue","R4111","Supporting People - CPB","05-THIRD","Third Party Payments","05G","Other establishments","6851","Housing Association Payments","90614556","201601",27/04/2015 00:00:00,5047.5,"17020","Charities and Voluntary Organisations","REDACTED DATA","NORWOOD RAVENSWOOD SERVICES LTD(SUPPORTING PEOPLE)","",,"629720917"
"London Borough of Redbridge","http://opendatacommunities.org/doc/london-borough-council/redbridge","5BGFHOUSING","General Fund Housing","5CWELFARE","Welfare Services","REV","Revenue","R4111","Supporting People - CPB","05-THIRD","Third Party Payments","05G","Other establishments","6851","Housing Association Payments","90614556","201601",27/04/2015 00:00:00,21750,"17020","Charities and Voluntary Organisations","REDACTED DATA","NORWOOD RAVENSWOOD SERVICES LTD(SUPPORTING PEOPLE)","",,"629720917"
"London Borough of Redbridge","http://opendatacommunities.org/doc/london-borough-council/redbridge","5BGFHOUSING","General Fund Housing","5CWELFARE","Welfare Services","REV","Revenue","R4111","Supporting People - CPB","05-THIRD","Third Party Payments","05G","Other establishments","6851","Housing Association Payments","90614556","201601",27/04/2015 00:00:00,7807.08,"53350","Nursing Homes","REDACTED DATA","OUTLOOK CARE","",,""
"London Borough of Redbridge","http://opendatacommunities.org/doc/london-borough-council/redbridge","5BGFHOUSING","General Fund Housing","5CWELFARE","Welfare Services","REV","Revenue","R4111","Supporting People - CPB","05-THIRD","Third Party Payments","05G","Other establishments","6851","Housing Association Payments","90614556","201601",27/04/2015 00:00:00,5018.75,"17020","Charities and Voluntary Organisations","REDACTED DATA","OUTWARD","2151434","http://opencorporates.com/companies/gb/2151434",""
"London Borough of Redbridge","http://opendatacommunities.org/doc/london-borough-council/redbridge","5BGFHOUSING","General Fund Housing","5CWELFARE","Welfare Services","REV","Revenue","R4111","Supporting People - CPB","05-THIRD","Third Party Payments","05G","Other establishments","6851","Housing Association Payments","90614556","201601",27/04/2015 00:00:00,7082.03,"17020","Charities and Voluntary Organisations","REDACTED DATA","OUTWARD","2151434","http://opencorporates.com/companies/gb/2151434",""
"London Borough of Redbridge","http://opendatacommunities.org/doc/london-borough-council/redbridge","5BGFHOUSING","General Fund Housing","5CWELFARE","Welfare Services","REV","Revenue","R4111","Supporting People - CPB","05-THIRD","Third Party Payments","05G","Other establishments","6851","Housing Association Payments","90614556","201601",27/04/2015 00:00:00,5763.17,"17020","Charities and Voluntary Organisations","REDACTED DATA","OUTWARD","2151434","http://opencorporates.com/companies/gb/2151434",""
"London Borough of Redbridge","http://opendatacommunities.org/doc/london-borough-council/redbridge","5BGFHOUSING","General Fund Housing","5CWELFARE","Welfare Services","REV","Revenue","R4111","Supporting People - CPB","05-THIRD","Third Party Payments","05G","Other establishments","6851","Housing Association Payments","90614556","201601",27/04/2015 00:00:00,3179,"17020","Charities and Voluntary Organisations","REDACTED DATA","OUTWARD","2151434","http://opencorporates.com/companies/gb/2151434",""
"London Borough of Redbridge","http://opendatacommunities.org/doc/london-borough-council/redbridge","5BGFHOUSING","General Fund Housing","5CWELFARE","Welfare Services","REV","Revenue","R4111","Supporting People - CPB","05-THIRD","Third Party Payments","05G","Other establishments","6851","Housing Association Payments","90614556","201601",27/04/2015 00:00:00,2139.32,"17020","Charities and Voluntary Organisations","REDACTED DATA","OUTWARD","2151434","http://opencorporates.com/companies/gb/2151434",""
"London Borough of Redbridge","http://opendatacommunities.org/doc/london-borough-council/redbridge","5BGFHOUSING","General Fund Housing","5CWELFARE","Welfare Services","REV","Revenue","R4111","Supporting People - CPB","05-THIRD","Third Party Payments","05G","Other establishments","6851","Housing Association Payments","90614556","201601",27/04/2015 00:00:00,3333.33,"1266","Accommodation Agencies - Residential","REDACTED DATA","PENROSE HOUSING ASSOCIATION","",,""
"London Borough of Redbridge","http://opendatacommunities.org/doc/london-borough-council/redbridge","5BGFHOUSING","General Fund Housing","5CWELFARE","Welfare Services","REV","Revenue","R4111","Supporting People - CPB","05-THIRD","Third Party Payments","05G","Other establishments","6851","Housing Association Payments","90614556","201601",27/04/2015 00:00:00,11644.08,"17020","Charities and Voluntary Organisations","REDACTED DATA","REDBRIDGE ACTION AGAINST DOMESTIC ABUSE","",,""
"London Borough of Redbridge","http://opendatacommunities.org/doc/london-borough-council/redbridge","5BGFHOUSING","General Fund Housing","5CWELFARE","Welfare Services","REV","Revenue","R4111","Supporting People - CPB","05-THIRD","Third Party Payments","05G","Other establishments","6851","Housing Association Payments","90614556","201601",27/04/2015 00:00:00,9666.66,"1266","Accommodation Agencies - Residential","REDACTED DATA","RICHMOND FELLOWSHIP WALTHAM FOREST ES","662712","http://opencorporates.com/companies/gb/662712",""
"London Borough of Redbridge","http://opendatacommunities.org/doc/london-borough-council/redbridge","5BGFHOUSING","General Fund Housing","5CWELFARE","Welfare Services","REV","Revenue","R4111","Supporting People - CPB","05-THIRD","Third Party Payments","05G","Other establishments","6851","Housing Association Payments","90614556","201601",27/04/2015 00:00:00,26250,"17020","Charities and Voluntary Organisations","REDACTED DATA","SINGLE HOMELESS PROJECT","1741926","http://opencorporates.com/companies/gb/1741926",""
"London Borough of Redbridge","http://opendatacommunities.org/doc/london-borough-council/redbridge","5BGFHOUSING","General Fund Housing","5CWELFARE","Welfare Services","REV","Revenue","R4111","Supporting People - CPB","05-THIRD","Third Party Payments","05G","Other establishments","6851","Housing Association Payments","90614556","201601",27/04/2015 00:00:00,38003.25,"17020","Charities and Voluntary Organisations","REDACTED DATA","SINGLE HOMELESS PROJECT","1741926","http://opencorporates.com/companies/gb/1741926",""
"London Borough of Redbridge","http://opendatacommunities.org/doc/london-borough-council/redbridge","5BGFHOUSING","General Fund Housing","5CWELFARE","Welfare Services","REV","Revenue","R4111","Supporting People - CPB","05-THIRD","Third Party Payments","05G","Other establishments","6851","Housing Association Payments","90614556","201601",27/04/2015 00:00:00,12500,"17020","Charities and Voluntary Organisations","REDACTED DATA","SINGLE HOMELESS PROJECT","1741926","http://opencorporates.com/companies/gb/1741926",""
"London Borough of Redbridge","http://opendatacommunities.org/doc/london-borough-council/redbridge","5BGFHOUSING","General Fund Housing","5CWELFARE","Welfare Services","REV","Revenue","R4111","Supporting People - CPB","05-THIRD","Third Party Payments","05G","Other establishments","6851","Housing Association Payments","90614556","201601",27/04/2015 00:00:00,387,"17020","Charities and Voluntary Organisations","REDACTED DATA","WEAVERS ALMSHOUSE CHARITIES","",,""
"London Borough of Redbridge","http://opendatacommunities.org/doc/london-borough-council/redbridge","5BGFHOUSING","General Fund Housing","5CWELFARE","Welfare Services","REV","Revenue","R4111","Supporting People - CPB","05-THIRD","Third Party Payments","05G","Other establishments","6851","Housing Association Payments","90614556","201601",27/04/2015 00:00:00,15672.5,"17020","Charities and Voluntary Organisations","REDACTED DATA","THREE C'S SUPPORT","2768427","http://opencorporates.com/companies/gb/2768427",""
"London Borough of Redbridge","http://opendatacommunities.org/doc/london-borough-council/redbridge","5BGFHOUSING","General Fund Housing","5CWELFARE","Welfare Services","REV","Revenue","R4111","Supporting People - CPB","05-THIRD","Third Party Payments","05G","Other establishments","6851","Housing Association Payments","90614556","201601",27/04/2015 00:00:00,3626.15,"17020","Charities and Voluntary Organisations","REDACTED DATA","VIBRANCE","1152186","http://opencorporates.com/companies/gb/1152186",""
"London Borough of Redbridge","http://opendatacommunities.org/doc/london-borough-council/redbridge","5BGFHOUSING","General Fund Housing","5CWELFARE","Welfare Services","REV","Revenue","R4111","Supporting People - CPB","05-THIRD","Third Party Payments","05G","Other establishments","6851","Housing Association Payments","90614556","201601",27/04/2015 00:00:00,16580,"1266","Accommodation Agencies - Residential","REDACTED DATA","FAMILY MOSAIC HOUSING ASSOCIATION (ALBION HSE)","",,"547939979"
"London Borough of Redbridge","http://opendatacommunities.org/doc/london-borough-council/redbridge","5BGFHOUSING","General Fund Housing","5CWELFARE","Welfare Services","REV","Revenue","R4111","Supporting People - CPB","05-THIRD","Third Party Payments","05G","Other establishments","6851","Housing Association Payments","90614556","201601",27/04/2015 00:00:00,408.45,"17020","Charities and Voluntary Organisations","REDACTED DATA","HOUSING 21","",,"604233385"
"London Borough of Redbridge","http://opendatacommunities.org/doc/london-borough-council/redbridge","5BGFHOUSING","General Fund Housing","5CWELFARE","Welfare Services","REV","Revenue","R4111","Supporting People - CPB","05-THIRD","Third Party Payments","05G","Other establishments","6851","Housing Association Payments","90614556","201601",27/04/2015 00:00:00,2588,"1266","Accommodation Agencies - Residential","REDACTED DATA","INDUSTRIAL DWELLINGS SOCIETY (1885) LTD","CHARITY14044","http://opencorporates.com/companies/gb/CHARITY14044",""
"London Borough of Redbridge","http://opendatacommunities.org/doc/london-borough-council/redbridge","5BGFHOUSING","General Fund Housing","5CWELFARE","Welfare Services","REV","Revenue","R4111","Supporting People - CPB","05-THIRD","Third Party Payments","05G","Other establishments","6851","Housing Association Payments","90614556","201601",27/04/2015 00:00:00,8713.75,"17020","Charities and Voluntary Organisations","REDACTED DATA","OUTWARD","2151434","http://opencorporates.com/companies/gb/2151434",""
"London Borough of Redbridge","http://opendatacommunities.org/doc/london-borough-council/redbridge","5BGFHOUSING","General Fund Housing","5CWELFARE","Welfare Services","REV","Revenue","R4111","Supporting People - CPB","05-THIRD","Third Party Payments","05G","Other establishments","6851","Housing Association Payments","90614556","201601",27/04/2015 00:00:00,2897.56,"17020","Charities and Voluntary Organisations","REDACTED DATA","OUTWARD","2151434","http://opencorporates.com/companies/gb/2151434",""
"London Borough of Redbridge","http://opendatacommunities.org/doc/london-borough-council/redbridge","5BGFHOUSING","General Fund Housing","5CWELFARE","Welfare Services","REV","Revenue","R4111","Supporting People - CPB","05-THIRD","Third Party Payments","05G","Other establishments","6851","Housing Association Payments","90614556","201601",27/04/2015 00:00:00,2396.58,"17020","Charities and Voluntary Organisations","REDACTED DATA","OUTWARD","2151434","http://opencorporates.com/companies/gb/2151434",""
"London Borough of Redbridge","http://opendatacommunities.org/doc/london-borough-council/redbridge","5BGFHOUSING","General Fund Housing","5CWELFARE","Welfare Services","REV","Revenue","R4111","Supporting People - CPB","05-THIRD","Third Party Payments","05G","Other establishments","6851","Housing Association Payments","90614556","201601",27/04/2015 00:00:00,458.85,"17020","Charities and Voluntary Organisations","REDACTED DATA","HOUSING 21","",,"604233385"
"London Borough of Redbridge","http://opendatacommunities.org/doc/london-borough-council/redbridge","5BGFHOUSING","General Fund Housing","5CWELFARE","Welfare Services","REV","Revenue","R4111","Supporting People - CPB","05-THIRD","Third Party Payments","05G","Other establishments","6851","Housing Association Payments","90614556","201601",27/04/2015 00:00:00,935.25,"1266","Accommodation Agencies - Residential","REDACTED DATA","INDUSTRIAL DWELLINGS SOCIETY (1885) LTD","CHARITY14044","http://opencorporates.com/companies/gb/CHARITY14044",""
"London Borough of Redbridge","http://opendatacommunities.org/doc/london-borough-council/redbridge","5BGFHOUSING","General Fund Housing","5CWELFARE","Welfare Services","REV","Revenue","R4111","Supporting People - CPB","05-THIRD","Third Party Payments","05G","Other establishments","6851","Housing Association Payments","90614556","201601",27/04/2015 00:00:00,5333.33,"17020","Charities and Voluntary Organisations","REDACTED DATA","SINGLE HOMELESS PROJECT","1741926","http://opencorporates.com/companies/gb/1741926",""
"London Borough of Redbridge","http://opendatacommunities.org/doc/london-borough-council/redbridge","5BGFHOUSING","General Fund Housing","5CWELFARE","Welfare Services","REV","Revenue","R4111","Supporting People - CPB","05-THIRD","Third Party Payments","05G","Other establishments","6851","Housing Association Payments","90614556","201601",27/04/2015 00:00:00,13218.5,"17020","Charities and Voluntary Organisations","REDACTED DATA","THREE C'S SUPPORT","2768427","http://opencorporates.com/companies/gb/2768427",""
"London Borough of Redbridge","http://opendatacommunities.org/doc/london-borough-council/redbridge","5BGFHOUSING","General Fund Housing","5CWELFARE","Welfare Services","REV","Revenue","R4111","Supporting People - CPB","05-THIRD","Third Party Payments","05G","Other establishments","6851","Housing Association Payments","90614556","201601",27/04/2015 00:00:00,331.5,"1266","Accommodation Agencies - Residential","REDACTED DATA","SPRINGBOARD HOUSING ASSOC LTD","",,""
"London Borough of Redbridge","http://opendatacommunities.org/doc/london-borough-council/redbridge","5BGFHOUSING","General Fund Housing","5CWELFARE","Welfare Services","REV","Revenue","R4111","Supporting People - CPB","05-THIRD","Third Party Payments","05G","Other establishments","6851","Housing Association Payments","90614556","201601",27/04/2015 00:00:00,1665.57,"1266","Accommodation Agencies - Residential","REDACTED DATA","HABINTEG HOUSING ASSOCIATION","",,""
"London Borough of Redbridge","http://opendatacommunities.org/doc/london-borough-council/redbridge","5BGFHOUSING","General Fund Housing","5CWELFARE","Welfare Services","REV","Revenue","R4111","Supporting People - CPB","05-THIRD","Third Party Payments","05G","Other establishments","6851","Housing Association Payments","90614556","201601",27/04/2015 00:00:00,655.2,"17020","Charities and Voluntary Organisations","REDACTED DATA","HOUSING 21","",,"604233385"
"London Borough of Redbridge","http://opendatacommunities.org/doc/london-borough-council/redbridge","5BGFHOUSING","General Fund Housing","5CWELFARE","Welfare Services","REV","Revenue","R4111","Supporting People - CPB","05-THIRD","Third Party Payments","05G","Other establishments","6851","Housing Association Payments","90614556","201601",27/04/2015 00:00:00,3622.5,"17020","Charities and Voluntary Organisations","REDACTED DATA","NORWOOD RAVENSWOOD SERVICES LTD(SUPPORTING PEOPLE)","",,"629720917"
"London Borough of Redbridge","http://opendatacommunities.org/doc/london-borough-council/redbridge","5BGFHOUSING","General Fund Housing","5CWELFARE","Welfare Services","REV","Revenue","R4111","Supporting People - CPB","05-THIRD","Third Party Payments","05G","Other establishments","6851","Housing Association Payments","90614556","201601",27/04/2015 00:00:00,12577.75,"53350","Nursing Homes","REDACTED DATA","OUTLOOK CARE","",,""
"London Borough of Redbridge","http://opendatacommunities.org/doc/london-borough-council/redbridge","5BGFHOUSING","General Fund Housing","5CWELFARE","Welfare Services","REV","Revenue","R4111","Supporting People - CPB","05-THIRD","Third Party Payments","05G","Other establishments","6851","Housing Association Payments","90614556","201601",27/04/2015 00:00:00,764.25,"17020","Charities and Voluntary Organisations","REDACTED DATA","OUTWARD","2151434","http://opencorporates.com/companies/gb/2151434",""
"London Borough of Redbridge","http://opendatacommunities.org/doc/london-borough-council/redbridge","5BGFHOUSING","General Fund Housing","5CWELFARE","Welfare Services","REV","Revenue","R4111","Supporting People - CPB","05-THIRD","Third Party Payments","05G","Other establishments","6851","Housing Association Payments","90614556","201601",27/04/2015 00:00:00,2601.61,"17020","Charities and Voluntary Organisations","REDACTED DATA","OUTWARD","2151434","http://opencorporates.com/companies/gb/2151434",""
"London Borough of Redbridge","http://opendatacommunities.org/doc/london-borough-council/redbridge","5BGFHOUSING","General Fund Housing","5CWELFARE","Welfare Services","REV","Revenue","R4111","Supporting People - CPB","05-THIRD","Third Party Payments","05G","Other establishments","6851","Housing Association Payments","90614556","201601",27/04/2015 00:00:00,6380.42,"17020","Charities and Voluntary Organisations","REDACTED DATA","SINGLE HOMELESS PROJECT","1741926","http://opencorporates.com/companies/gb/1741926",""
"London Borough of Redbridge","http://opendatacommunities.org/doc/london-borough-council/redbridge","6BPUBHEALTH","Public Health","6CSEXHEALTH","Sexual Health","REV","Revenue","R4806","SH Advice Prevention & Promotion","05-THIRD","Third Party Payments","05F","Voluntary associations","6800","Voluntary Organisations","90614543","201601",24/04/2015 00:00:00,7235.1,"22570","Counselling & Advice Services","REDACTED DATA","POSITIVE EAST-STEPNEY","CHARITY 1001106","http://opencorporates.com/companies/gb/CHARITY 1001106",""
"London Borough of Redbridge","http://opendatacommunities.org/doc/london-borough-council/redbridge","6BPUBHEALTH","Public Health","6CSEXHEALTH","Sexual Health","REV","Revenue","R4806","SH Advice Prevention & Promotion","05-THIRD","Third Party Payments","05F","Voluntary associations","6800","Voluntary Organisations","90614542","201601",24/04/2015 00:00:00,8440.95,"22570","Counselling & Advice Services","REDACTED DATA","POSITIVE EAST-STEPNEY","CHARITY 1001106","http://opencorporates.com/companies/gb/CHARITY 1001106",""
"London Borough of Redbridge","http://opendatacommunities.org/doc/london-borough-council/redbridge","6BADULTSOCIA","Adult Social Care","6CADLEARNDIS","Adults Under 65 with Learning Disabilities","REV","Revenue","R4383","LD - External Day Care","05-THIRD","Third Party Payments","05H","Private contractors","6904","Day Centres","90614425","201601",08/04/2015 00:00:00,634.04,"24200","Day Centres","REDACTED DATA","EASTWAY CARE LTD","",,""
"London Borough of Redbridge","http://opendatacommunities.org/doc/london-borough-council/redbridge","6BADULTSOCIA","Adult Social Care","6CADLEARNDIS","Adults Under 65 with Learning Disabilities","REV","Revenue","R4383","LD - External Day Care","05-THIRD","Third Party Payments","05H","Private contractors","6904","Day Centres","90614424","201601",08/04/2015 00:00:00,839.16,"24200","Day Centres","REDACTED DATA","EASTWAY CARE LTD","",,""
"London Borough of Redbridge","http://opendatacommunities.org/doc/london-borough-council/redbridge","6BADULTSOCIA","Adult Social Care","6CADLEARNDIS","Adults Under 65 with Learning Disabilities","REV","Revenue","R4383","LD - External Day Care","05-THIRD","Third Party Payments","05H","Private contractors","6904","Day Centres","90614423","201601",08/04/2015 00:00:00,1165.36,"24200","Day Centres","REDACTED DATA","EASTWAY CARE LTD","",,""
"London Borough of Redbridge","http://opendatacommunities.org/doc/london-borough-council/redbridge","6BADULTSOCIA","Adult Social Care","6CADLEARNDIS","Adults Under 65 with Learning Disabilities","REV","Revenue","R4383","LD - External Day Care","05-THIRD","Third Party Payments","05H","Private contractors","6904","Day Centres","90614422","201601",08/04/2015 00:00:00,1414,"24200","Day Centres","REDACTED DATA","EASTWAY CARE LTD","",,""
"London Borough of Redbridge","http://opendatacommunities.org/doc/london-borough-council/redbridge","6BADULTSOCIA","Adult Social Care","6CADLEARNDIS","Adults Under 65 with Learning Disabilities","REV","Revenue","R4383","LD - External Day Care","05-THIRD","Third Party Payments","05H","Private contractors","6904","Day Centres","90614421","201601",08/04/2015 00:00:00,621,"24200","Day Centres","REDACTED DATA","EASTWAY CARE LTD","",,""
"London Borough of Redbridge","http://opendatacommunities.org/doc/london-borough-council/redbridge","6BADULTSOCIA","Adult Social Care","6CADLEARNDIS","Adults Under 65 with Learning Disabilities","REV","Revenue","R4241","ONEL � Continuing Care","05-THIRD","Third Party Payments","05H","Private contractors","6904","Day Centres","90614420","201601",08/04/2015 00:00:00,1252.48,"24200","Day Centres","REDACTED DATA","EASTWAY CARE LTD","",,""
"London Borough of Redbridge","http://opendatacommunities.org/doc/london-borough-council/redbridge","6BADULTSOCIA","Adult Social Care","6CADLEARNDIS","Adults Under 65 with Learning Disabilities","REV","Revenue","R4383","LD - External Day Care","05-THIRD","Third Party Payments","05H","Private contractors","6904","Day Centres","90614419","201601",08/04/2015 00:00:00,1360,"24200","Day Centres","REDACTED DATA","EASTWAY CARE LTD","",,""
"London Borough of Redbridge","http://opendatacommunities.org/doc/london-borough-council/redbridge","6BADULTSOCIA","Adult Social Care","6CADLEARNDIS","Adults Under 65 with Learning Disabilities","REV","Revenue","R4383","LD - External Day Care","05-THIRD","Third Party Payments","05H","Private contractors","6904","Day Centres","90614418","201601",08/04/2015 00:00:00,1360,"24200","Day Centres","REDACTED DATA","EASTWAY CARE LTD","",,""
"London Borough of Redbridge","http://opendatacommunities.org/doc/london-borough-council/redbridge","6BADULTSOCIA","Adult Social Care","6CADLEARNDIS","Adults Under 65 with Learning Disabilities","REV","Revenue","R4383","LD - External Day Care","05-THIRD","Third Party Payments","05H","Private contractors","6904","Day Centres","90614417","201601",08/04/2015 00:00:00,1424.56,"24200","Day Centres","REDACTED DATA","EASTWAY CARE LTD","",,""
"London Borough of Redbridge","http://opendatacommunities.org/doc/london-borough-council/redbridge","6BADULTSOCIA","Adult Social Care","6CADLEARNDIS","Adults Under 65 with Learning Disabilities","REV","Revenue","R4241","ONEL � Continuing Care","05-THIRD","Third Party Payments","05H","Private contractors","6904","Day Centres","90614415","201601",14/04/2015 00:00:00,945.65,"17020","Charities and Voluntary Organisations","REDACTED DATA","SENSE","1825301","http://opencorporates.com/companies/gb/1825301",""
"London Borough of Redbridge","http://opendatacommunities.org/doc/london-borough-council/redbridge","6BADULTSOCIA","Adult Social Care","6CADLEARNDIS","Adults Under 65 with Learning Disabilities","REV","Revenue","R4241","ONEL � Continuing Care","05-THIRD","Third Party Payments","05H","Private contractors","6904","Day Centres","90614414","201601",14/04/2015 00:00:00,945.65,"17020","Charities and Voluntary Organisations","REDACTED DATA","SENSE","1825301","http://opencorporates.com/companies/gb/1825301",""
"London Borough of Redbridge","http://opendatacommunities.org/doc/london-borough-council/redbridge","6BADULTSOCIA","Adult Social Care","6CADLEARNDIS","Adults Under 65 with Learning Disabilities","REV","Revenue","R4241","ONEL � Continuing Care","05-THIRD","Third Party Payments","05H","Private contractors","6904","Day Centres","90614413","201601",14/04/2015 00:00:00,945.65,"17020","Charities and Voluntary Organisations","REDACTED DATA","SENSE","1825301","http://opencorporates.com/companies/gb/1825301",""
"London Borough of Redbridge","http://opendatacommunities.org/doc/london-borough-council/redbridge","6BADULTSOCIA","Adult Social Care","6CADLEARNDIS","Adults Under 65 with Learning Disabilities","REV","Revenue","R4241","ONEL � Continuing Care","05-THIRD","Third Party Payments","05H","Private contractors","6904","Day Centres","90614412","201601",14/04/2015 00:00:00,945.65,"17020","Charities and Voluntary Organisations","REDACTED DATA","SENSE","1825301","http://opencorporates.com/companies/gb/1825301",""
"London Borough of Redbridge","http://opendatacommunities.org/doc/london-borough-council/redbridge","6BADULTSOCIA","Adult Social Care","6CADLEARNDIS","Adults Under 65 with Learning Disabilities","REV","Revenue","R4383","LD - External Day Care","05-THIRD","Third Party Payments","05H","Private contractors","6904","Day Centres","90614371","201601",27/03/2015 00:00:00,560,"17020","Charities and Voluntary Organisations","REDACTED DATA","UNITING FRIENDS LTD","6495763","http://opencorporates.com/companies/gb/6495763",""
"London Borough of Redbridge","http://opendatacommunities.org/doc/london-borough-council/redbridge","6BADULTSOCIA","Adult Social Care","6CADLEARNDIS","Adults Under 65 with Learning Disabilities","REV","Revenue","R4383","LD - External Day Care","05-THIRD","Third Party Payments","05H","Private contractors","6904","Day Centres","90614368","201601",27/03/2015 00:00:00,560,"17020","Charities and Voluntary Organisations","REDACTED DATA","UNITING FRIENDS LTD","6495763","http://opencorporates.com/companies/gb/6495763",""
"London Borough of Redbridge","http://opendatacommunities.org/doc/london-borough-council/redbridge","6BADULTSOCIA","Adult Social Care","6CADPHYSDIS","Adults Under 65 with Phys Disab or Sensory Impair","REV","Revenue","R4407","PD External Day Care","05-THIRD","Third Party Payments","05H","Private contractors","6904","Day Centres","90614336","201601",23/03/2015 00:00:00,1216.48,"24200","Day Centres","REDACTED DATA","EASTWAY CARE LTD","",,""
"London Borough of Redbridge","http://opendatacommunities.org/doc/london-borough-council/redbridge","6BADULTSOCIA","Adult Social Care","6CADLEARNDIS","Adults Under 65 with Learning Disabilities","REV","Revenue","R4383","LD - External Day Care","05-THIRD","Third Party Payments","05H","Private contractors","6904","Day Centres","90614335","201601",23/03/2015 00:00:00,1434.36,"24200","Day Centres","REDACTED DATA","EASTWAY CARE LTD","",,""
"London Borough of Redbridge","http://opendatacommunities.org/doc/london-borough-council/redbridge","6BADULTSOCIA","Adult Social Care","6CADLEARNDIS","Adults Under 65 with Learning Disabilities","REV","Revenue","R4383","LD - External Day Care","05-THIRD","Third Party Payments","05H","Private contractors","6904","Day Centres","90614334","201601",23/03/2015 00:00:00,681.2,"24200","Day Centres","REDACTED DATA","EASTWAY CARE LTD","",,""
"London Borough of Redbridge","http://opendatacommunities.org/doc/london-borough-council/redbridge","6BADULTSOCIA","Adult Social Care","6CADLEARNDIS","Adults Under 65 with Learning Disabilities","REV","Revenue","R4383","LD - External Day Care","05-THIRD","Third Party Payments","05H","Private contractors","6904","Day Centres","90614333","201601",23/03/2015 00:00:00,1161.92,"24200","Day Centres","REDACTED DATA","EASTWAY CARE LTD","",,""
"London Borough of Redbridge","http://opendatacommunities.org/doc/london-borough-council/redbridge","6BADULTSOCIA","Adult Social Care","6CADLEARNDIS","Adults Under 65 with Learning Disabilities","REV","Revenue","R4241","ONEL � Continuing Care","05-THIRD","Third Party Payments","05H","Private contractors","6904","Day Centres","90614332","201601",23/03/2015 00:00:00,884.64,"24200","Day Centres","REDACTED DATA","EASTWAY CARE LTD","",,""
"London Borough of Redbridge","http://opendatacommunities.org/doc/london-borough-council/redbridge","6BADULTSOCIA","Adult Social Care","6CADLEARNDIS","Adults Under 65 with Learning Disabilities","REV","Revenue","R4383","LD - External Day Care","05-THIRD","Third Party Payments","05H","Private contractors","6904","Day Centres","90614331","201601",23/03/2015 00:00:00,2000.6,"24200","Day Centres","REDACTED DATA","EASTWAY CARE LTD","",,""
"London Borough of Redbridge","http://opendatacommunities.org/doc/london-borough-council/redbridge","6BADULTSOCIA","Adult Social Care","6CADLEARNDIS","Adults Under 65 with Learning Disabilities","REV","Revenue","R4383","LD - External Day Care","05-THIRD","Third Party Payments","05H","Private contractors","6904","Day Centres","90614330","201601",23/03/2015 00:00:00,1747.08,"24200","Day Centres","REDACTED DATA","EASTWAY CARE LTD","",,""
"London Borough of Redbridge","http://opendatacommunities.org/doc/london-borough-council/redbridge","6BADULTSOCIA","Adult Social Care","6CADLEARNDIS","Adults Under 65 with Learning Disabilities","REV","Revenue","R4383","LD - External Day Care","05-THIRD","Third Party Payments","05H","Private contractors","6904","Day Centres","90614325","201601",13/04/2015 00:00:00,1250,"25820","Disability & Special Needs - Services","REDACTED DATA","BR3AK FREE LTD","6274766","http://opencorporates.com/companies/gb/6274766",""
"London Borough of Redbridge","http://opendatacommunities.org/doc/london-borough-council/redbridge","6BADULTSOCIA","Adult Social Care","6CADLEARNDIS","Adults Under 65 with Learning Disabilities","REV","Revenue","R4383","LD - External Day Care","05-THIRD","Third Party Payments","05H","Private contractors","6904","Day Centres","90614321","201601",10/04/2015 00:00:00,1000,"25820","Disability & Special Needs - Services","REDACTED DATA","BR3AK FREE LTD","6274766","http://opencorporates.com/companies/gb/6274766",""
"London Borough of Redbridge","http://opendatacommunities.org/doc/london-borough-council/redbridge","6BADULTSOCIA","Adult Social Care","6CADLEARNDIS","Adults Under 65 with Learning Disabilities","REV","Revenue","R4383","LD - External Day Care","05-THIRD","Third Party Payments","05H","Private contractors","6904","Day Centres","90614318","201601",10/04/2015 00:00:00,591.6,"25820","Disability & Special Needs - Services","REDACTED DATA","BR3AK FREE LTD","6274766","http://opencorporates.com/companies/gb/6274766",""
"London Borough of Redbridge","http://opendatacommunities.org/doc/london-borough-council/redbridge","6BADULTSOCIA","Adult Social Care","6CADLEARNDIS","Adults Under 65 with Learning Disabilities","REV","Revenue","R4383","LD - External Day Care","05-THIRD","Third Party Payments","05H","Private contractors","6904","Day Centres","90614316","201601",08/04/2015 00:00:00,1000,"25820","Disability & Special Needs - Services","REDACTED DATA","BR3AK FREE LTD","6274766","http://opencorporates.com/companies/gb/6274766",""
"London Borough of Redbridge","http://opendatacommunities.org/doc/london-borough-council/redbridge","6BADULTSOCIA","Adult Social Care","6CADLEARNDIS","Adults Under 65 with Learning Disabilities","REV","Revenue","R4383","LD - External Day Care","05-THIRD","Third Party Payments","05H","Private contractors","6904","Day Centres","90614311","201601",08/04/2015 00:00:00,686.08,"17020","Charities and Voluntary Organisations","REDACTED DATA","VIBRANCE","1152186","http://opencorporates.com/companies/gb/1152186",""
"London Borough of Redbridge","http://opendatacommunities.org/doc/london-borough-council/redbridge","6BADULTSOCIA","Adult Social Care","6CADLEARNDIS","Adults Under 65 with Learning Disabilities","REV","Revenue","R4383","LD - External Day Care","05-THIRD","Third Party Payments","05H","Private contractors","6904","Day Centres","90614310","201601",08/04/2015 00:00:00,559.6,"17020","Charities and Voluntary Organisations","REDACTED DATA","VIBRANCE","1152186","http://opencorporates.com/companies/gb/1152186",""
"London Borough of Redbridge","http://opendatacommunities.org/doc/london-borough-council/redbridge","6BADULTSOCIA","Adult Social Care","6CADLEARNDIS","Adults Under 65 with Learning Disabilities","REV","Revenue","R4383","LD - External Day Care","05-THIRD","Third Party Payments","05H","Private contractors","6904","Day Centres","90614306","201601",08/04/2015 00:00:00,686.08,"17020","Charities and Voluntary Organisations","REDACTED DATA","VIBRANCE","1152186","http://opencorporates.com/companies/gb/1152186",""
"London Borough of Redbridge","http://opendatacommunities.org/doc/london-borough-council/redbridge","6BADULTSOCIA","Adult Social Care","6CADLEARNDIS","Adults Under 65 with Learning Disabilities","REV","Revenue","R4383","LD - External Day Care","05-THIRD","Third Party Payments","05H","Private contractors","6904","Day Centres","90614303","201601",08/04/2015 00:00:00,559.6,"17020","Charities and Voluntary Organisations","REDACTED DATA","VIBRANCE","1152186","http://opencorporates.com/companies/gb/1152186",""
"London Borough of Redbridge","http://opendatacommunities.org/doc/london-borough-council/redbridge","6BADULTSOCIA","Adult Social Care","6CADLEARNDIS","Adults Under 65 with Learning Disabilities","REV","Revenue","R4383","LD - External Day Care","05-THIRD","Third Party Payments","05H","Private contractors","6904","Day Centres","90614292","201601",07/04/2015 00:00:00,686.08,"17020","Charities and Voluntary Organisations","REDACTED DATA","VIBRANCE","1152186","http://opencorporates.com/companies/gb/1152186",""
"London Borough of Redbridge","http://opendatacommunities.org/doc/london-borough-council/redbridge","6BADULTSOCIA","Adult Social Care","6CADLEARNDIS","Adults Under 65 with Learning Disabilities","REV","Revenue","R4383","LD - External Day Care","05-THIRD","Third Party Payments","05H","Private contractors","6904","Day Centres","90614291","201601",07/04/2015 00:00:00,699.5,"17020","Charities and Voluntary Organisations","REDACTED DATA","VIBRANCE","1152186","http://opencorporates.com/companies/gb/1152186",""
"London Borough of Redbridge","http://opendatacommunities.org/doc/london-borough-council/redbridge","6BADULTSOCIA","Adult Social Care","6CADLEARNDIS","Adults Under 65 with Learning Disabilities","REV","Revenue","R4383","LD - External Day Care","05-THIRD","Third Party Payments","05H","Private contractors","6904","Day Centres","90614287","201601",07/04/2015 00:00:00,857.6,"17020","Charities and Voluntary Organisations","REDACTED DATA","VIBRANCE","1152186","http://opencorporates.com/companies/gb/1152186",""
"London Borough of Redbridge","http://opendatacommunities.org/doc/london-borough-council/redbridge","6BADULTSOCIA","Adult Social Care","6CADLEARNDIS","Adults Under 65 with Learning Disabilities","REV","Revenue","R4383","LD - External Day Care","05-THIRD","Third Party Payments","05H","Private contractors","6904","Day Centres","90614284","201601",07/04/2015 00:00:00,699.5,"17020","Charities and Voluntary Organisations","REDACTED DATA","VIBRANCE","1152186","http://opencorporates.com/companies/gb/1152186",""
"London Borough of Redbridge","http://opendatacommunities.org/doc/london-borough-council/redbridge","6BADULTSOCIA","Adult Social Care","6CADLEARNDIS","Adults Under 65 with Learning Disabilities","REV","Revenue","R4241","ONEL � Continuing Care","05-THIRD","Third Party Payments","05H","Private contractors","6904","Day Centres","90614280","201601",07/04/2015 00:00:00,519.72,"17020","Charities and Voluntary Organisations","REDACTED DATA","VIBRANCE","1152186","http://opencorporates.com/companies/gb/1152186",""
"London Borough of Redbridge","http://opendatacommunities.org/doc/london-borough-council/redbridge","6BADULTSOCIA","Adult Social Care","6CADLEARNDIS","Adults Under 65 with Learning Disabilities","REV","Revenue","R4383","LD - External Day Care","05-THIRD","Third Party Payments","05H","Private contractors","6904","Day Centres","90614277","201601",07/04/2015 00:00:00,559.6,"17020","Charities and Voluntary Organisations","REDACTED DATA","VIBRANCE","1152186","http://opencorporates.com/companies/gb/1152186",""
"London Borough of Redbridge","http://opendatacommunities.org/doc/london-borough-council/redbridge","6BADULTSOCIA","Adult Social Care","6CADLEARNDIS","Adults Under 65 with Learning Disabilities","REV","Revenue","R4383","LD - External Day Care","05-THIRD","Third Party Payments","05H","Private contractors","6904","Day Centres","90614273","201601",07/04/2015 00:00:00,699.5,"17020","Charities and Voluntary Organisations","REDACTED DATA","VIBRANCE","1152186","http://opencorporates.com/companies/gb/1152186",""
"London Borough of Redbridge","http://opendatacommunities.org/doc/london-borough-council/redbridge","6BADULTSOCIA","Adult Social Care","6CADLEARNDIS","Adults Under 65 with Learning Disabilities","REV","Revenue","R4383","LD - External Day Care","05-THIRD","Third Party Payments","05H","Private contractors","6904","Day Centres","90614272","201601",07/04/2015 00:00:00,857.6,"17020","Charities and Voluntary Organisations","REDACTED DATA","VIBRANCE","1152186","http://opencorporates.com/companies/gb/1152186",""
"London Borough of Redbridge","http://opendatacommunities.org/doc/london-borough-council/redbridge","6BADULTSOCIA","Adult Social Care","6CADLEARNDIS","Adults Under 65 with Learning Disabilities","REV","Revenue","R4383","LD - External Day Care","05-THIRD","Third Party Payments","05H","Private contractors","6904","Day Centres","90614271","201601",07/04/2015 00:00:00,699.5,"17020","Charities and Voluntary Organisations","REDACTED DATA","VIBRANCE","1152186","http://opencorporates.com/companies/gb/1152186",""
"London Borough of Redbridge","http://opendatacommunities.org/doc/london-borough-council/redbridge","6BADULTSOCIA","Adult Social Care","6CADLEARNDIS","Adults Under 65 with Learning Disabilities","REV","Revenue","R4383","LD - External Day Care","05-THIRD","Third Party Payments","05H","Private contractors","6904","Day Centres","90614267","201601",07/04/2015 00:00:00,857.6,"17020","Charities and Voluntary Organisations","REDACTED DATA","VIBRANCE","1152186","http://opencorporates.com/companies/gb/1152186",""
"London Borough of Redbridge","http://opendatacommunities.org/doc/london-borough-council/redbridge","6BADULTSOCIA","Adult Social Care","6CADLEARNDIS","Adults Under 65 with Learning Disabilities","REV","Revenue","R4241","ONEL � Continuing Care","05-THIRD","Third Party Payments","05H","Private contractors","6904","Day Centres","90614261","201601",07/04/2015 00:00:00,519.72,"17020","Charities and Voluntary Organisations","REDACTED DATA","VIBRANCE","1152186","http://opencorporates.com/companies/gb/1152186",""
"London Borough of Redbridge","http://opendatacommunities.org/doc/london-borough-council/redbridge","6BADULTSOCIA","Adult Social Care","6CADLEARNDIS","Adults Under 65 with Learning Disabilities","REV","Revenue","R4383","LD - External Day Care","05-THIRD","Third Party Payments","05H","Private contractors","6904","Day Centres","90614258","201601",07/04/2015 00:00:00,559.6,"17020","Charities and Voluntary Organisations","REDACTED DATA","VIBRANCE","1152186","http://opencorporates.com/companies/gb/1152186",""
"London Borough of Redbridge","http://opendatacommunities.org/doc/london-borough-council/redbridge","6BADULTSOCIA","Adult Social Care","6CADLEARNDIS","Adults Under 65 with Learning Disabilities","REV","Revenue","R4383","LD - External Day Care","05-THIRD","Third Party Payments","05H","Private contractors","6904","Day Centres","90614254","201601",07/04/2015 00:00:00,857.6,"17020","Charities and Voluntary Organisations","REDACTED DATA","VIBRANCE","1152186","http://opencorporates.com/companies/gb/1152186",""
"London Borough of Redbridge","http://opendatacommunities.org/doc/london-borough-council/redbridge","6BADULTSOCIA","Adult Social Care","6CADLEARNDIS","Adults Under 65 with Learning Disabilities","REV","Revenue","R4383","LD - External Day Care","05-THIRD","Third Party Payments","05H","Private contractors","6904","Day Centres","90614253","201601",07/04/2015 00:00:00,699.5,"17020","Charities and Voluntary Organisations","REDACTED DATA","VIBRANCE","1152186","http://opencorporates.com/companies/gb/1152186",""
"London Borough of Redbridge","http://opendatacommunities.org/doc/london-borough-council/redbridge","6BADULTSOCIA","Adult Social Care","6CADLEARNDIS","Adults Under 65 with Learning Disabilities","REV","Revenue","R4383","LD - External Day Care","05-THIRD","Third Party Payments","05H","Private contractors","6904","Day Centres","90614246","201601",07/04/2015 00:00:00,699.5,"17020","Charities and Voluntary Organisations","REDACTED DATA","VIBRANCE","1152186","http://opencorporates.com/companies/gb/1152186",""
"London Borough of Redbridge","http://opendatacommunities.org/doc/london-borough-council/redbridge","6BADULTSOCIA","Adult Social Care","6CADLEARNDIS","Adults Under 65 with Learning Disabilities","REV","Revenue","R4241","ONEL � Continuing Care","05-THIRD","Third Party Payments","05H","Private contractors","6904","Day Centres","90614242","201601",07/04/2015 00:00:00,519.72,"17020","Charities and Voluntary Organisations","REDACTED DATA","VIBRANCE","1152186","http://opencorporates.com/companies/gb/1152186",""
"London Borough of Redbridge","http://opendatacommunities.org/doc/london-borough-council/redbridge","6BADULTSOCIA","Adult Social Care","6CADLEARNDIS","Adults Under 65 with Learning Disabilities","REV","Revenue","R4383","LD - External Day Care","05-THIRD","Third Party Payments","05H","Private contractors","6904","Day Centres","90614239","201601",07/04/2015 00:00:00,559.6,"17020","Charities and Voluntary Organisations","REDACTED DATA","VIBRANCE","1152186","http://opencorporates.com/companies/gb/1152186",""
"London Borough of Redbridge","http://opendatacommunities.org/doc/london-borough-council/redbridge","6BADULTSOCIA","Adult Social Care","6CADLEARNDIS","Adults Under 65 with Learning Disabilities","REV","Revenue","R4383","LD - External Day Care","05-THIRD","Third Party Payments","05H","Private contractors","6904","Day Centres","90614235","201601",07/04/2015 00:00:00,857.6,"17020","Charities and Voluntary Organisations","REDACTED DATA","VIBRANCE","1152186","http://opencorporates.com/companies/gb/1152186",""
"London Borough of Redbridge","http://opendatacommunities.org/doc/london-borough-council/redbridge","6BADULTSOCIA","Adult Social Care","6CADLEARNDIS","Adults Under 65 with Learning Disabilities","REV","Revenue","R4383","LD - External Day Care","05-THIRD","Third Party Payments","05H","Private contractors","6904","Day Centres","90614234","201601",07/04/2015 00:00:00,699.5,"17020","Charities and Voluntary Organisations","REDACTED DATA","VIBRANCE","1152186","http://opencorporates.com/companies/gb/1152186",""
"London Borough of Redbridge","http://opendatacommunities.org/doc/london-borough-council/redbridge","6BADULTSOCIA","Adult Social Care","6CADLEARNDIS","Adults Under 65 with Learning Disabilities","REV","Revenue","R4383","LD - External Day Care","05-THIRD","Third Party Payments","05H","Private contractors","6904","Day Centres","90614227","201601",07/04/2015 00:00:00,699.5,"17020","Charities and Voluntary Organisations","REDACTED DATA","VIBRANCE","1152186","http://opencorporates.com/companies/gb/1152186",""
"London Borough of Redbridge","http://opendatacommunities.org/doc/london-borough-council/redbridge","6BADULTSOCIA","Adult Social Care","6CADLEARNDIS","Adults Under 65 with Learning Disabilities","REV","Revenue","R4241","ONEL � Continuing Care","05-THIRD","Third Party Payments","05H","Private contractors","6904","Day Centres","90614223","201601",07/04/2015 00:00:00,519.72,"17020","Charities and Voluntary Organisations","REDACTED DATA","VIBRANCE","1152186","http://opencorporates.com/companies/gb/1152186",""
"London Borough of Redbridge","http://opendatacommunities.org/doc/london-borough-council/redbridge","6BADULTSOCIA","Adult Social Care","6CADLEARNDIS","Adults Under 65 with Learning Disabilities","REV","Revenue","R4383","LD - External Day Care","05-THIRD","Third Party Payments","05H","Private contractors","6904","Day Centres","90614220","201601",07/04/2015 00:00:00,559.6,"17020","Charities and Voluntary Organisations","REDACTED DATA","VIBRANCE","1152186","http://opencorporates.com/companies/gb/1152186",""
"London Borough of Redbridge","http://opendatacommunities.org/doc/london-borough-council/redbridge","6BADULTSOCIA","Adult Social Care","6CADLEARNDIS","Adults Under 65 with Learning Disabilities","REV","Revenue","R4383","LD - External Day Care","05-THIRD","Third Party Payments","05H","Private contractors","6904","Day Centres","90614213","201601",08/04/2015 00:00:00,1901.5,"17020","Charities and Voluntary Organisations","REDACTED DATA","VIBRANCE","1152186","http://opencorporates.com/companies/gb/1152186",""
"London Borough of Redbridge","http://opendatacommunities.org/doc/london-borough-council/redbridge","6BADULTSOCIA","Adult Social Care","6COTHADSERV","Other Adult Services","REV","Revenue","R4389","PCT Older Person Home Care","05-THIRD","Third Party Payments","05A","Independent units within the council","6502","Agency Homecare (Payments To Independent Units)","90614100","201601",20/04/2015 00:00:00,831,"43419","Home Care Services","REDACTED DATA","FASTFLOW DE VERE CARE","",,""
"London Borough of Redbridge","http://opendatacommunities.org/doc/london-borough-council/redbridge","6BADULTSOCIA","Adult Social Care","6COTHADSERV","Other Adult Services","REV","Revenue","R4389","PCT Older Person Home Care","05-THIRD","Third Party Payments","05A","Independent units within the council","6502","Agency Homecare (Payments To Independent Units)","90614099","201601",20/04/2015 00:00:00,817.15,"43419","Home Care Services","REDACTED DATA","FASTFLOW DE VERE CARE","",,""
"London Borough of Redbridge","http://opendatacommunities.org/doc/london-borough-council/redbridge","6BADULTSOCIA","Adult Social Care","6COTHADSERV","Other Adult Services","REV","Revenue","R4389","PCT Older Person Home Care","05-THIRD","Third Party Payments","05A","Independent units within the council","6502","Agency Homecare (Payments To Independent Units)","90614095","201601",17/04/2015 00:00:00,650.95,"43419","Home Care Services","REDACTED DATA","FASTFLOW DE VERE CARE","",,""
"London Borough of Redbridge","http://opendatacommunities.org/doc/london-borough-council/redbridge","6BADULTSOCIA","Adult Social Care","6COTHADSERV","Other Adult Services","REV","Revenue","R4389","PCT Older Person Home Care","05-THIRD","Third Party Payments","05A","Independent units within the council","6502","Agency Homecare (Payments To Independent Units)","90614094","201601",16/04/2015 00:00:00,789.45,"43419","Home Care Services","REDACTED DATA","FASTFLOW DE VERE CARE","",,""
"London Borough of Redbridge","http://opendatacommunities.org/doc/london-borough-council/redbridge","6BADULTSOCIA","Adult Social Care","6COTHADSERV","Other Adult Services","REV","Revenue","R4389","PCT Older Person Home Care","05-THIRD","Third Party Payments","05A","Independent units within the council","6502","Agency Homecare (Payments To Independent Units)","90614093","201601",16/04/2015 00:00:00,782.53,"43419","Home Care Services","REDACTED DATA","FASTFLOW DE VERE CARE","",,""
"London Borough of Redbridge","http://opendatacommunities.org/doc/london-borough-council/redbridge","6BADULTSOCIA","Adult Social Care","6COTHADSERV","Other Adult Services","REV","Revenue","R4389","PCT Older Person Home Care","05-THIRD","Third Party Payments","05A","Independent units within the council","6502","Agency Homecare (Payments To Independent Units)","90614092","201601",16/04/2015 00:00:00,831,"43419","Home Care Services","REDACTED DATA","FASTFLOW DE VERE CARE","",,""
"London Borough of Redbridge","http://opendatacommunities.org/doc/london-borough-council/redbridge","6BADULTSOCIA","Adult Social Care","6COTHADSERV","Other Adult Services","REV","Revenue","R4389","PCT Older Person Home Care","05-THIRD","Third Party Payments","05A","Independent units within the council","6502","Agency Homecare (Payments To Independent Units)","90614091","201601",16/04/2015 00:00:00,609.4,"43419","Home Care Services","REDACTED DATA","FASTFLOW DE VERE CARE","",,""
"London Borough of Redbridge","http://opendatacommunities.org/doc/london-borough-council/redbridge","6BADULTSOCIA","Adult Social Care","6COTHADSERV","Other Adult Services","REV","Revenue","R4389","PCT Older Person Home Care","05-THIRD","Third Party Payments","05A","Independent units within the council","6502","Agency Homecare (Payments To Independent Units)","90614090","201601",16/04/2015 00:00:00,581.7,"43419","Home Care Services","REDACTED DATA","FASTFLOW DE VERE CARE","",,""
"London Borough of Redbridge","http://opendatacommunities.org/doc/london-borough-council/redbridge","6BADULTSOCIA","Adult Social Care","6COTHADSERV","Other Adult Services","REV","Revenue","R4389","PCT Older Person Home Care","05-THIRD","Third Party Payments","05A","Independent units within the council","6502","Agency Homecare (Payments To Independent Units)","90614089","201601",16/04/2015 00:00:00,817.15,"43419","Home Care Services","REDACTED DATA","FASTFLOW DE VERE CARE","",,""
"London Borough of Redbridge","http://opendatacommunities.org/doc/london-borough-council/redbridge","6BADULTSOCIA","Adult Social Care","6COTHADSERV","Other Adult Services","REV","Revenue","R4389","PCT Older Person Home Care","05-THIRD","Third Party Payments","05A","Independent units within the council","6502","Agency Homecare (Payments To Independent Units)","90614088","201601",16/04/2015 00:00:00,761.75,"43419","Home Care Services","REDACTED DATA","FASTFLOW DE VERE CARE","",,""
"London Borough of Redbridge","http://opendatacommunities.org/doc/london-borough-council/redbridge","6BSOCIALSERV","Social Services","6COLDINCMENT","Older People (65 or over) incl. Older Mentally Ill","REV","Revenue","R4059","Elderly Mentally ill Home Care","05-THIRD","Third Party Payments","05A","Independent units within the council","6502","Agency Homecare (Payments To Independent Units)","90613981","201601",02/04/2015 00:00:00,1457.01,"31230","Employment & Recruitment Agencies","REDACTED DATA","TAYLOR GORDON & CO LTD T/AS PLAN PERSONNEL & PLAN CARE","",,"190680845"
"London Borough of Redbridge","http://opendatacommunities.org/doc/london-borough-council/redbridge","6BSOCIALSERV","Social Services","6COLDINCMENT","Older People (65 or over) incl. Older Mentally Ill","REV","Revenue","R4059","Elderly Mentally ill Home Care","05-THIRD","Third Party Payments","05A","Independent units within the council","6502","Agency Homecare (Payments To Independent Units)","90613980","201601",26/03/2015 00:00:00,1354.3,"31230","Employment & Recruitment Agencies","REDACTED DATA","TAYLOR GORDON & CO LTD T/AS PLAN PERSONNEL & PLAN CARE","",,"190680845"
"London Borough of Redbridge","http://opendatacommunities.org/doc/london-borough-council/redbridge","6BSOCIALSERV","Social Services","6COLDINCMENT","Older People (65 or over) incl. Older Mentally Ill","REV","Revenue","R4059","Elderly Mentally ill Home Care","05-THIRD","Third Party Payments","05A","Independent units within the council","6502","Agency Homecare (Payments To Independent Units)","90613979","201601",24/03/2015 00:00:00,1399.49,"31230","Employment & Recruitment Agencies","REDACTED DATA","TAYLOR GORDON & CO LTD T/AS PLAN PERSONNEL & PLAN CARE","",,"190680845"
"London Borough of Redbridge","http://opendatacommunities.org/doc/london-borough-council/redbridge","6BADULTSOCIA","Adult Social Care","6COLDINCMENT","Older People (65 or over) incl. Older Mentally Ill","REV","Revenue","R4391","OP Home Care","05-THIRD","Third Party Payments","05A","Independent units within the council","6502","Agency Homecare (Payments To Independent Units)","90613939","201601",24/03/2015 00:00:00,544.06,"43419","Home Care Services","REDACTED DATA","RELINE CARE LTD","7728473","http://opencorporates.com/companies/gb/7728473",""
"London Borough of Redbridge","http://opendatacommunities.org/doc/london-borough-council/redbridge","6BADULTSOCIA","Adult Social Care","6COLDINCMENT","Older People (65 or over) incl. Older Mentally Ill","REV","Revenue","R4391","OP Home Care","05-THIRD","Third Party Payments","05A","Independent units within the council","6502","Agency Homecare (Payments To Independent Units)","90613914","201601",17/04/2015 00:00:00,500.26,"31230","Employment & Recruitment Agencies","REDACTED DATA","HOPE SUPER JOBS LTD","",,"872555205"
"London Borough of Redbridge","http://opendatacommunities.org/doc/london-borough-council/redbridge","6BADULTSOCIA","Adult Social Care","6COLDINCMENT","Older People (65 or over) incl. Older Mentally Ill","REV","Revenue","R4391","OP Home Care","05-THIRD","Third Party Payments","05A","Independent units within the council","6502","Agency Homecare (Payments To Independent Units)","90613911","201601",17/04/2015 00:00:00,500.26,"31230","Employment & Recruitment Agencies","REDACTED DATA","HOPE SUPER JOBS LTD","",,"872555205"
"London Borough of Redbridge","http://opendatacommunities.org/doc/london-borough-council/redbridge","6BADULTSOCIA","Adult Social Care","6COTHADSERV","Other Adult Services","REV","Revenue","R4389","PCT Older Person Home Care","05-THIRD","Third Party Payments","05A","Independent units within the council","6502","Agency Homecare (Payments To Independent Units)","90613907","201601",17/04/2015 00:00:00,609,"31230","Employment & Recruitment Agencies","REDACTED DATA","HOPE SUPER JOBS LTD","",,"872555205"
"London Borough of Redbridge","http://opendatacommunities.org/doc/london-borough-council/redbridge","6BADULTSOCIA","Adult Social Care","6COTHADSERV","Other Adult Services","REV","Revenue","R4389","PCT Older Person Home Care","05-THIRD","Third Party Payments","05A","Independent units within the council","6502","Agency Homecare (Payments To Independent Units)","90613897","201601",15/04/2015 00:00:00,623.5,"31230","Employment & Recruitment Agencies","REDACTED DATA","HOPE SUPER JOBS LTD","",,"872555205"
"London Borough of Redbridge","http://opendatacommunities.org/doc/london-borough-council/redbridge","6BADULTSOCIA","Adult Social Care","6COTHADSERV","Other Adult Services","REV","Revenue","R4389","PCT Older Person Home Care","05-THIRD","Third Party Payments","05A","Independent units within the council","6502","Agency Homecare (Payments To Independent Units)","90613887","201601",15/04/2015 00:00:00,609,"31230","Employment & Recruitment Agencies","REDACTED DATA","HOPE SUPER JOBS LTD","",,"872555205"
"London Borough of Redbridge","http://opendatacommunities.org/doc/london-borough-council/redbridge","6BADULTSOCIA","Adult Social Care","6COLDINCMENT","Older People (65 or over) incl. Older Mentally Ill","REV","Revenue","R4391","OP Home Care","05-THIRD","Third Party Payments","05A","Independent units within the council","6502","Agency Homecare (Payments To Independent Units)","90613877","201601",07/04/2015 00:00:00,500.3,"31230","Employment & Recruitment Agencies","REDACTED DATA","HOPE SUPER JOBS LTD","",,"872555205"
"London Borough of Redbridge","http://opendatacommunities.org/doc/london-borough-council/redbridge","6BADULTSOCIA","Adult Social Care","6COTHADSERV","Other Adult Services","REV","Revenue","R4389","PCT Older Person Home Care","05-THIRD","Third Party Payments","05A","Independent units within the council","6502","Agency Homecare (Payments To Independent Units)","90613457","201601",16/04/2015 00:00:00,1648.3,"31230","Employment & Recruitment Agencies","REDACTED DATA","TAYLOR GORDON & CO LTD T/AS PLAN PERSONNEL & PLAN CARE","",,"190680845"
"London Borough of Redbridge","http://opendatacommunities.org/doc/london-borough-council/redbridge","6BADULTSOCIA","Adult Social Care","6COTHADSERV","Other Adult Services","REV","Revenue","R4389","PCT Older Person Home Care","05-THIRD","Third Party Payments","05A","Independent units within the council","6502","Agency Homecare (Payments To Independent Units)","90613342","201601",15/04/2015 00:00:00,536.34,"43419","Home Care Services","REDACTED DATA","MIHOMECARE LTD","3203080","http://opencorporates.com/companies/gb/3203080",""
"London Borough of Redbridge","http://opendatacommunities.org/doc/london-borough-council/redbridge","6BADULTSOCIA","Adult Social Care","6COTHADSERV","Other Adult Services","REV","Revenue","R4389","PCT Older Person Home Care","05-THIRD","Third Party Payments","05A","Independent units within the council","6502","Agency Homecare (Payments To Independent Units)","90613291","201601",13/04/2015 00:00:00,535.71,"43419","Home Care Services","REDACTED DATA","MIHOMECARE LTD","3203080","http://opencorporates.com/companies/gb/3203080",""
"London Borough of Redbridge","http://opendatacommunities.org/doc/london-borough-council/redbridge","6BADULTSOCIA","Adult Social Care","6COTHADSERV","Other Adult Services","REV","Revenue","R4389","PCT Older Person Home Care","05-THIRD","Third Party Payments","05A","Independent units within the council","6502","Agency Homecare (Payments To Independent Units)","90613238","201601",08/04/2015 00:00:00,539.52,"43419","Home Care Services","REDACTED DATA","MIHOMECARE LTD","3203080","http://opencorporates.com/companies/gb/3203080",""
"London Borough of Redbridge","http://opendatacommunities.org/doc/london-borough-council/redbridge","6BADULTSOCIA","Adult Social Care","6COLDINCMENT","Older People (65 or over) incl. Older Mentally Ill","REV","Revenue","R4391","OP Home Care","05-THIRD","Third Party Payments","05A","Independent units within the council","6502","Agency Homecare (Payments To Independent Units)","90613231","201601",08/04/2015 00:00:00,576.44,"43419","Home Care Services","REDACTED DATA","MIHOMECARE LTD","3203080","http://opencorporates.com/companies/gb/3203080",""
"London Borough of Redbridge","http://opendatacommunities.org/doc/london-borough-council/redbridge","6BADULTSOCIA","Adult Social Care","6COTHADSERV","Other Adult Services","REV","Revenue","R4389","PCT Older Person Home Care","05-THIRD","Third Party Payments","05A","Independent units within the council","6502","Agency Homecare (Payments To Independent Units)","90613191","201601",08/04/2015 00:00:00,535.5,"43419","Home Care Services","REDACTED DATA","MIHOMECARE LTD","3203080","http://opencorporates.com/companies/gb/3203080",""
"London Borough of Redbridge","http://opendatacommunities.org/doc/london-borough-council/redbridge","6BADULTSOCIA","Adult Social Care","6CADPHYSDIS","Adults Under 65 with Phys Disab or Sensory Impair","REV","Revenue","R4206","PCT Physical Disability and Sensory Home  Care","05-THIRD","Third Party Payments","05A","Independent units within the council","6502","Agency Homecare (Payments To Independent Units)","90613179","201601",21/04/2015 00:00:00,1606.52,"43419","Home Care Services","REDACTED DATA","FASTFLOW DE VERE CARE","",,""
"London Borough of Redbridge","http://opendatacommunities.org/doc/london-borough-council/redbridge","6BADULTSOCIA","Adult Social Care","6CADLEARNDIS","Adults Under 65 with Learning Disabilities","REV","Revenue","R4241","ONEL � Continuing Care","05-THIRD","Third Party Payments","05A","Independent units within the council","6502","Agency Homecare (Payments To Independent Units)","90613150","201601",20/04/2015 00:00:00,785,"43419","Home Care Services","REDACTED DATA","FASTFLOW DE VERE CARE","",,""
"London Borough of Redbridge","http://opendatacommunities.org/doc/london-borough-council/redbridge","6BADULTSOCIA","Adult Social Care","6CADPHYSDIS","Adults Under 65 with Phys Disab or Sensory Impair","REV","Revenue","R4206","PCT Physical Disability and Sensory Home  Care","05-THIRD","Third Party Payments","05A","Independent units within the council","6502","Agency Homecare (Payments To Independent Units)","90613107","201601",20/04/2015 00:00:00,599.56,"43419","Home Care Services","REDACTED DATA","FASTFLOW DE VERE CARE","",,""
"London Borough of Redbridge","http://opendatacommunities.org/doc/london-borough-council/redbridge","6BADULTSOCIA","Adult Social Care","6CADPHYSDIS","Adults Under 65 with Phys Disab or Sensory Impair","REV","Revenue","R4206","PCT Physical Disability and Sensory Home  Care","05-THIRD","Third Party Payments","05A","Independent units within the council","6502","Agency Homecare (Payments To Independent Units)","90613041","201601",17/04/2015 00:00:00,1405.65,"43419","Home Care Services","REDACTED DATA","FASTFLOW DE VERE CARE","",,""
"London Borough of Redbridge","http://opendatacommunities.org/doc/london-borough-council/redbridge","6BADULTSOCIA","Adult Social Care","6COTHADSERV","Other Adult Services","REV","Revenue","R4389","PCT Older Person Home Care","05-THIRD","Third Party Payments","05A","Independent units within the council","6502","Agency Homecare (Payments To Independent Units)","90612978","201601",23/02/2015 00:00:00,-703.36,"43419","Home Care Services","REDACTED DATA","FASTFLOW DE VERE CARE","",,""
"London Borough of Redbridge","http://opendatacommunities.org/doc/london-borough-council/redbridge","6BADULTSOCIA","Adult Social Care","6COTHADSERV","Other Adult Services","REV","Revenue","R4389","PCT Older Person Home Care","05-THIRD","Third Party Payments","05A","Independent units within the council","6502","Agency Homecare (Payments To Independent Units)","90612977","201601",23/02/2015 00:00:00,703.36,"43419","Home Care Services","REDACTED DATA","FASTFLOW DE VERE CARE","",,""
"London Borough of Redbridge","http://opendatacommunities.org/doc/london-borough-council/redbridge","6BADULTSOCIA","Adult Social Care","6COTHADSERV","Other Adult Services","REV","Revenue","R4390","PCT HIV Home Care","05-THIRD","Third Party Payments","05A","Independent units within the council","6502","Agency Homecare (Payments To Independent Units)","90612976","201601",17/02/2015 00:00:00,-665.68,"43419","Home Care Services","REDACTED DATA","FASTFLOW DE VERE CARE","",,""
"London Borough of Redbridge","http://opendatacommunities.org/doc/london-borough-council/redbridge","6BADULTSOCIA","Adult Social Care","6COTHADSERV","Other Adult Services","REV","Revenue","R4390","PCT HIV Home Care","05-THIRD","Third Party Payments","05A","Independent units within the council","6502","Agency Homecare (Payments To Independent Units)","90612975","201601",17/02/2015 00:00:00,665.68,"43419","Home Care Services","REDACTED DATA","FASTFLOW DE VERE CARE","",,""
"London Borough of Redbridge","http://opendatacommunities.org/doc/london-borough-council/redbridge","6BADULTSOCIA","Adult Social Care","6CADLEARNDIS","Adults Under 65 with Learning Disabilities","REV","Revenue","R4394","LD - Homecare","05-THIRD","Third Party Payments","05A","Independent units within the council","6502","Agency Homecare (Payments To Independent Units)","90612894","201601",17/04/2015 00:00:00,635.05,"43419","Home Care Services","REDACTED DATA","CAREWATCH CARE SERVICES LTD","2949558","http://opencorporates.com/companies/gb/2949558","927457005"
"London Borough of Redbridge","http://opendatacommunities.org/doc/london-borough-council/redbridge","6BADULTSOCIA","Adult Social Care","6CADLEARNDIS","Adults Under 65 with Learning Disabilities","REV","Revenue","R4394","LD - Homecare","05-THIRD","Third Party Payments","05A","Independent units within the council","6502","Agency Homecare (Payments To Independent Units)","90612811","201601",17/04/2015 00:00:00,627.24,"43419","Home Care Services","REDACTED DATA","CAREWATCH CARE SERVICES LTD","2949558","http://opencorporates.com/companies/gb/2949558","927457005"
"London Borough of Redbridge","http://opendatacommunities.org/doc/london-borough-council/redbridge","6BADULTSOCIA","Adult Social Care","6CADLEARNDIS","Adults Under 65 with Learning Disabilities","REV","Revenue","R4394","LD - Homecare","05-THIRD","Third Party Payments","05A","Independent units within the council","6502","Agency Homecare (Payments To Independent Units)","90612726","201601",17/04/2015 00:00:00,567.66,"43419","Home Care Services","REDACTED DATA","CAREWATCH CARE SERVICES LTD","2949558","http://opencorporates.com/companies/gb/2949558","927457005"
"London Borough of Redbridge","http://opendatacommunities.org/doc/london-borough-council/redbridge","6BADULTSOCIA","Adult Social Care","6CADLEARNDIS","Adults Under 65 with Learning Disabilities","REV","Revenue","R4394","LD - Homecare","05-THIRD","Third Party Payments","05A","Independent units within the council","6502","Agency Homecare (Payments To Independent Units)","90612637","201601",01/04/2015 00:00:00,1218.89,"43419","Home Care Services","REDACTED DATA","CAREWATCH CARE SERVICES LTD","2949558","http://opencorporates.com/companies/gb/2949558","927457005"
"London Borough of Redbridge","http://opendatacommunities.org/doc/london-borough-council/redbridge","6BADULTSOCIA","Adult Social Care","6COTHADSERV","Other Adult Services","REV","Revenue","R4389","PCT Older Person Home Care","05-THIRD","Third Party Payments","05A","Independent units within the council","6502","Agency Homecare (Payments To Independent Units)","90612194","201601",09/04/2015 00:00:00,688.5,"53280","Nursing Agencies","REDACTED DATA","IMMACULATE HEALTHCARE SERVICES LIMITED","",,""
"London Borough of Redbridge","http://opendatacommunities.org/doc/london-borough-council/redbridge","6BADULTSOCIA","Adult Social Care","6COLDINCMENT","Older People (65 or over) incl. Older Mentally Ill","REV","Revenue","R4391","OP Home Care","05-THIRD","Third Party Payments","05A","Independent units within the council","6502","Agency Homecare (Payments To Independent Units)","90611501","201601",13/04/2015 00:00:00,791,"43419","Home Care Services","REDACTED DATA","FASTFLOW DE VERE CARE","",,""
"London Borough of Redbridge","http://opendatacommunities.org/doc/london-borough-council/redbridge","6BADULTSOCIA","Adult Social Care","6COLDINCMENT","Older People (65 or over) incl. Older Mentally Ill","REV","Revenue","R4391","OP Home Care","05-THIRD","Third Party Payments","05A","Independent units within the council","6502","Agency Homecare (Payments To Independent Units)","90611500","201601",13/04/2015 00:00:00,791,"43419","Home Care Services","REDACTED DATA","FASTFLOW DE VERE CARE","",,""
"London Borough of Redbridge","http://opendatacommunities.org/doc/london-borough-council/redbridge","6BADULTSOCIA","Adult Social Care","6COLDINCMENT","Older People (65 or over) incl. Older Mentally Ill","REV","Revenue","R4391","OP Home Care","05-THIRD","Third Party Payments","05A","Independent units within the council","6502","Agency Homecare (Payments To Independent Units)","90611499","201601",13/04/2015 00:00:00,791,"43419","Home Care Services","REDACTED DATA","FASTFLOW DE VERE CARE","",,""
"London Borough of Redbridge","http://opendatacommunities.org/doc/london-borough-council/redbridge","6BADULTSOCIA","Adult Social Care","6COLDINCMENT","Older People (65 or over) incl. Older Mentally Ill","REV","Revenue","R4391","OP Home Care","05-THIRD","Third Party Payments","05A","Independent units within the council","6502","Agency Homecare (Payments To Independent Units)","90611498","201601",13/04/2015 00:00:00,791,"43419","Home Care Services","REDACTED DATA","FASTFLOW DE VERE CARE","",,""
"London Borough of Redbridge","http://opendatacommunities.org/doc/london-borough-council/redbridge","6BADULTSOCIA","Adult Social Care","6COTHADSERV","Other Adult Services","REV","Revenue","R4389","PCT Older Person Home Care","05-THIRD","Third Party Payments","05A","Independent units within the council","6502","Agency Homecare (Payments To Independent Units)","90611476","201601",10/04/2015 00:00:00,650.02,"79980","Training Services","REDACTED DATA","ASK CARE LTD","5656634","http://opencorporates.com/companies/gb/5656634",""
"London Borough of Redbridge","http://opendatacommunities.org/doc/london-borough-council/redbridge","6BADULTSOCIA","Adult Social Care","6COTHADSERV","Other Adult Services","REV","Revenue","R4389","PCT Older Person Home Care","05-THIRD","Third Party Payments","05A","Independent units within the council","6502","Agency Homecare (Payments To Independent Units)","90611475","201601",10/04/2015 00:00:00,650.02,"79980","Training Services","REDACTED DATA","ASK CARE LTD","5656634","http://opencorporates.com/companies/gb/5656634",""
"London Borough of Redbridge","http://opendatacommunities.org/doc/london-borough-council/redbridge","6BADULTSOCIA","Adult Social Care","6COTHADSERV","Other Adult Services","REV","Revenue","R4389","PCT Older Person Home Care","05-THIRD","Third Party Payments","05A","Independent units within the council","6502","Agency Homecare (Payments To Independent Units)","90611474","201601",10/04/2015 00:00:00,650.02,"79980","Training Services","REDACTED DATA","ASK CARE LTD","5656634","http://opencorporates.com/companies/gb/5656634",""
"London Borough of Redbridge","http://opendatacommunities.org/doc/london-borough-council/redbridge","6BADULTSOCIA","Adult Social Care","6COTHADSERV","Other Adult Services","REV","Revenue","R4389","PCT Older Person Home Care","05-THIRD","Third Party Payments","05A","Independent units within the council","6502","Agency Homecare (Payments To Independent Units)","90611473","201601",10/04/2015 00:00:00,650.02,"79980","Training Services","REDACTED DATA","ASK CARE LTD","5656634","http://opencorporates.com/companies/gb/5656634",""
"London Borough of Redbridge","http://opendatacommunities.org/doc/london-borough-council/redbridge","6BADULTSOCIA","Adult Social Care","6COTHADSERV","Other Adult Services","REV","Revenue","R4389","PCT Older Person Home Care","05-THIRD","Third Party Payments","05A","Independent units within the council","6502","Agency Homecare (Payments To Independent Units)","90611472","201601",10/04/2015 00:00:00,650.02,"79980","Training Services","REDACTED DATA","ASK CARE LTD","5656634","http://opencorporates.com/companies/gb/5656634",""
"London Borough of Redbridge","http://opendatacommunities.org/doc/london-borough-council/redbridge","6BADULTSOCIA","Adult Social Care","6COTHADSERV","Other Adult Services","REV","Revenue","R4389","PCT Older Person Home Care","05-THIRD","Third Party Payments","05A","Independent units within the council","6502","Agency Homecare (Payments To Independent Units)","90611416","201601",14/04/2015 00:00:00,-586.21,"43419","Home Care Services","REDACTED DATA","RELINE CARE LTD","7728473","http://opencorporates.com/companies/gb/7728473",""
"London Borough of Redbridge","http://opendatacommunities.org/doc/london-borough-council/redbridge","6BADULTSOCIA","Adult Social Care","6COTHADSERV","Other Adult Services","REV","Revenue","R4389","PCT Older Person Home Care","05-THIRD","Third Party Payments","05A","Independent units within the council","6502","Agency Homecare (Payments To Independent Units)","90611415","201601",14/04/2015 00:00:00,586.21,"43419","Home Care Services","REDACTED DATA","RELINE CARE LTD","7728473","http://opencorporates.com/companies/gb/7728473",""
"London Borough of Redbridge","http://opendatacommunities.org/doc/london-borough-council/redbridge","6BADULTSOCIA","Adult Social Care","6COTHADSERV","Other Adult Services","REV","Revenue","R4389","PCT Older Person Home Care","05-THIRD","Third Party Payments","05A","Independent units within the council","6502","Agency Homecare (Payments To Independent Units)","90611371","201601",15/04/2015 00:00:00,614,"79980","Training Services","REDACTED DATA","ASK CARE LTD","5656634","http://opencorporates.com/companies/gb/5656634",""
"London Borough of Redbridge","http://opendatacommunities.org/doc/london-borough-council/redbridge","6BADULTSOCIA","Adult Social Care","6COTHADSERV","Other Adult Services","REV","Revenue","R4389","PCT Older Person Home Care","05-THIRD","Third Party Payments","05A","Independent units within the council","6502","Agency Homecare (Payments To Independent Units)","90611370","201601",15/04/2015 00:00:00,624,"79980","Training Services","REDACTED DATA","ASK CARE LTD","5656634","http://opencorporates.com/companies/gb/5656634",""
"London Borough of Redbridge","http://opendatacommunities.org/doc/london-borough-council/redbridge","6BADULTSOCIA","Adult Social Care","6COTHADSERV","Other Adult Services","REV","Revenue","R4389","PCT Older Person Home Care","05-THIRD","Third Party Payments","05A","Independent units within the council","6502","Agency Homecare (Payments To Independent Units)","90611369","201601",15/04/2015 00:00:00,612,"79980","Training Services","REDACTED DATA","ASK CARE LTD","5656634","http://opencorporates.com/companies/gb/5656634",""
"London Borough of Redbridge","http://opendatacommunities.org/doc/london-borough-council/redbridge","6BADULTSOCIA","Adult Social Care","6COTHADSERV","Other Adult Services","REV","Revenue","R4389","PCT Older Person Home Care","05-THIRD","Third Party Payments","05A","Independent units within the council","6502","Agency Homecare (Payments To Independent Units)","90611368","201601",15/04/2015 00:00:00,619,"79980","Training Services","REDACTED DATA","ASK CARE LTD","5656634","http://opencorporates.com/companies/gb/5656634",""
"London Borough of Redbridge","http://opendatacommunities.org/doc/london-borough-council/redbridge","6BADULTSOCIA","Adult Social Care","6COTHADSERV","Other Adult Services","REV","Revenue","R4389","PCT Older Person Home Care","05-THIRD","Third Party Payments","05A","Independent units within the council","6502","Agency Homecare (Payments To Independent Units)","90611367","201601",15/04/2015 00:00:00,609,"79980","Training Services","REDACTED DATA","ASK CARE LTD","5656634","http://opencorporates.com/companies/gb/5656634",""
"London Borough of Redbridge","http://opendatacommunities.org/doc/london-borough-council/redbridge","6BADULTSOCIA","Adult Social Care","6COTHADSERV","Other Adult Services","REV","Revenue","R4389","PCT Older Person Home Care","05-THIRD","Third Party Payments","05A","Independent units within the council","6502","Agency Homecare (Payments To Independent Units)","90611366","201601",11/04/2015 00:00:00,624,"79980","Training Services","REDACTED DATA","ASK CARE LTD","5656634","http://opencorporates.com/companies/gb/5656634",""
"London Borough of Redbridge","http://opendatacommunities.org/doc/london-borough-council/redbridge","6BADULTSOCIA","Adult Social Care","6CADLEARNDIS","Adults Under 65 with Learning Disabilities","REV","Revenue","R4394","LD - Homecare","05-THIRD","Third Party Payments","05A","Independent units within the council","6502","Agency Homecare (Payments To Independent Units)","90611364","201601",10/04/2015 00:00:00,513,"79980","Training Services","REDACTED DATA","ASK CARE LTD","5656634","http://opencorporates.com/companies/gb/5656634",""
"London Borough of Redbridge","http://opendatacommunities.org/doc/london-borough-council/redbridge","6BADULTSOCIA","Adult Social Care","6COLDINCMENT","Older People (65 or over) incl. Older Mentally Ill","REV","Revenue","R4391","OP Home Care","05-THIRD","Third Party Payments","05A","Independent units within the council","6502","Agency Homecare (Payments To Independent Units)","90611356","201601",01/04/2015 00:00:00,551.2,"79980","Training Services","REDACTED DATA","ASK CARE LTD","5656634","http://opencorporates.com/companies/gb/5656634",""
"London Borough of Redbridge","http://opendatacommunities.org/doc/london-borough-council/redbridge","6BADULTSOCIA","Adult Social Care","6COTHADSERV","Other Adult Services","REV","Revenue","R4389","PCT Older Person Home Care","05-THIRD","Third Party Payments","05A","Independent units within the council","6502","Agency Homecare (Payments To Independent Units)","90611355","201601",01/04/2015 00:00:00,624,"79980","Training Services","REDACTED DATA","ASK CARE LTD","5656634","http://opencorporates.com/companies/gb/5656634",""
"London Borough of Redbridge","http://opendatacommunities.org/doc/london-borough-council/redbridge","6BADULTSOCIA","Adult Social Care","6CADLEARNDIS","Adults Under 65 with Learning Disabilities","REV","Revenue","R4394","LD - Homecare","05-THIRD","Third Party Payments","05A","Independent units within the council","6502","Agency Homecare (Payments To Independent Units)","90611350","201601",18/03/2015 00:00:00,525,"79980","Training Services","REDACTED DATA","ASK CARE LTD","5656634","http://opencorporates.com/companies/gb/5656634",""
"London Borough of Redbridge","http://opendatacommunities.org/doc/london-borough-council/redbridge","6BADULTSOCIA","Adult Social Care","6CADLEARNDIS","Adults Under 65 with Learning Disabilities","REV","Revenue","R4394","LD - Homecare","05-THIRD","Third Party Payments","05A","Independent units within the council","6502","Agency Homecare (Payments To Independent Units)","90611349","201601",18/03/2015 00:00:00,525,"79980","Training Services","REDACTED DATA","ASK CARE LTD","5656634","http://opencorporates.com/companies/gb/5656634",""
"London Borough of Redbridge","http://opendatacommunities.org/doc/london-borough-council/redbridge","6BADULTSOCIA","Adult Social Care","6CADLEARNDIS","Adults Under 65 with Learning Disabilities","REV","Revenue","R4394","LD - Homecare","05-THIRD","Third Party Payments","05A","Independent units within the council","6502","Agency Homecare (Payments To Independent Units)","90611348","201601",18/03/2015 00:00:00,582,"79980","Training Services","REDACTED DATA","ASK CARE LTD","5656634","http://opencorporates.com/companies/gb/5656634",""
"London Borough of Redbridge","http://opendatacommunities.org/doc/london-borough-council/redbridge","6BADULTSOCIA","Adult Social Care","6CADLEARNDIS","Adults Under 65 with Learning Disabilities","REV","Revenue","R4394","LD - Homecare","05-THIRD","Third Party Payments","05A","Independent units within the council","6502","Agency Homecare (Payments To Independent Units)","90611347","201601",18/03/2015 00:00:00,582,"79980","Training Services","REDACTED DATA","ASK CARE LTD","5656634","http://opencorporates.com/companies/gb/5656634",""
"London Borough of Redbridge","http://opendatacommunities.org/doc/london-borough-council/redbridge","6BADULTSOCIA","Adult Social Care","6COTHADSERV","Other Adult Services","REV","Revenue","R4389","PCT Older Person Home Care","05-THIRD","Third Party Payments","05A","Independent units within the council","6502","Agency Homecare (Payments To Independent Units)","90611344","201601",08/03/2015 00:00:00,-626,"79980","Training Services","REDACTED DATA","ASK CARE LTD","5656634","http://opencorporates.com/companies/gb/5656634",""
"London Borough of Redbridge","http://opendatacommunities.org/doc/london-borough-council/redbridge","6BADULTSOCIA","Adult Social Care","6COTHADSERV","Other Adult Services","REV","Revenue","R4389","PCT Older Person Home Care","05-THIRD","Third Party Payments","05A","Independent units within the council","6502","Agency Homecare (Payments To Independent Units)","90611343","201601",08/03/2015 00:00:00,626,"79980","Training Services","REDACTED DATA","ASK CARE LTD","5656634","http://opencorporates.com/companies/gb/5656634",""
"London Borough of Redbridge","http://opendatacommunities.org/doc/london-borough-council/redbridge","6BADULTSOCIA","Adult Social Care","6COTHADSERV","Other Adult Services","REV","Revenue","R4389","PCT Older Person Home Care","05-THIRD","Third Party Payments","05A","Independent units within the council","6502","Agency Homecare (Payments To Independent Units)","90611342","201601",08/02/2015 00:00:00,-639,"79980","Training Services","REDACTED DATA","ASK CARE LTD","5656634","http://opencorporates.com/companies/gb/5656634",""
"London Borough of Redbridge","http://opendatacommunities.org/doc/london-borough-council/redbridge","6BADULTSOCIA","Adult Social Care","6COTHADSERV","Other Adult Services","REV","Revenue","R4389","PCT Older Person Home Care","05-THIRD","Third Party Payments","05A","Independent units within the council","6502","Agency Homecare (Payments To Independent Units)","90611341","201601",08/02/2015 00:00:00,639,"79980","Training Services","REDACTED DATA","ASK CARE LTD","5656634","http://opencorporates.com/companies/gb/5656634",""
"London Borough of Redbridge","http://opendatacommunities.org/doc/london-borough-council/redbridge","6BADULTSOCIA","Adult Social Care","6COTHADSERV","Other Adult Services","REV","Revenue","R4389","PCT Older Person Home Care","05-THIRD","Third Party Payments","05A","Independent units within the council","6502","Agency Homecare (Payments To Independent Units)","90611338","201601",07/01/2015 00:00:00,-625,"79980","Training Services","REDACTED DATA","ASK CARE LTD","5656634","http://opencorporates.com/companies/gb/5656634",""
"London Borough of Redbridge","http://opendatacommunities.org/doc/london-borough-council/redbridge","6BADULTSOCIA","Adult Social Care","6COTHADSERV","Other Adult Services","REV","Revenue","R4389","PCT Older Person Home Care","05-THIRD","Third Party Payments","05A","Independent units within the council","6502","Agency Homecare (Payments To Independent Units)","90611337","201601",07/01/2015 00:00:00,625,"79980","Training Services","REDACTED DATA","ASK CARE LTD","5656634","http://opencorporates.com/companies/gb/5656634",""
"London Borough of Redbridge","http://opendatacommunities.org/doc/london-borough-council/redbridge","6BADULTSOCIA","Adult Social Care","6COTHADSERV","Other Adult Services","REV","Revenue","R4389","PCT Older Person Home Care","05-THIRD","Third Party Payments","05A","Independent units within the council","6502","Agency Homecare (Payments To Independent Units)","90611336","201601",07/01/2015 00:00:00,-643,"79980","Training Services","REDACTED DATA","ASK CARE LTD","5656634","http://opencorporates.com/companies/gb/5656634",""
"London Borough of Redbridge","http://opendatacommunities.org/doc/london-borough-council/redbridge","6BADULTSOCIA","Adult Social Care","6COTHADSERV","Other Adult Services","REV","Revenue","R4389","PCT Older Person Home Care","05-THIRD","Third Party Payments","05A","Independent units within the council","6502","Agency Homecare (Payments To Independent Units)","90611335","201601",07/01/2015 00:00:00,643,"79980","Training Services","REDACTED DATA","ASK CARE LTD","5656634","http://opencorporates.com/companies/gb/5656634",""
"London Borough of Redbridge","http://opendatacommunities.org/doc/london-borough-council/redbridge","6BADULTSOCIA","Adult Social Care","6COTHADSERV","Other Adult Services","REV","Revenue","R4389","PCT Older Person Home Care","05-THIRD","Third Party Payments","05A","Independent units within the council","6502","Agency Homecare (Payments To Independent Units)","90611334","201601",07/01/2015 00:00:00,-693,"79980","Training Services","REDACTED DATA","ASK CARE LTD","5656634","http://opencorporates.com/companies/gb/5656634",""
"London Borough of Redbridge","http://opendatacommunities.org/doc/london-borough-council/redbridge","6BADULTSOCIA","Adult Social Care","6COTHADSERV","Other Adult Services","REV","Revenue","R4389","PCT Older Person Home Care","05-THIRD","Third Party Payments","05A","Independent units within the council","6502","Agency Homecare (Payments To Independent Units)","90611333","201601",07/01/2015 00:00:00,693,"79980","Training Services","REDACTED DATA","ASK CARE LTD","5656634","http://opencorporates.com/companies/gb/5656634",""
"London Borough of Redbridge","http://opendatacommunities.org/doc/london-borough-council/redbridge","6BADULTSOCIA","Adult Social Care","6CADLEARNDIS","Adults Under 65 with Learning Disabilities","REV","Revenue","R4394","LD - Homecare","05-THIRD","Third Party Payments","05A","Independent units within the council","6502","Agency Homecare (Payments To Independent Units)","90611332","201601",19/04/2015 00:00:00,525,"43419","Home Care Services","REDACTED DATA","HAVEN CARE LTD","6762521","http://opencorporates.com/companies/gb/6762521",""
"London Borough of Redbridge","http://opendatacommunities.org/doc/london-borough-council/redbridge","6BADULTSOCIA","Adult Social Care","6CADLEARNDIS","Adults Under 65 with Learning Disabilities","REV","Revenue","R4394","LD - Homecare","05-THIRD","Third Party Payments","05A","Independent units within the council","6502","Agency Homecare (Payments To Independent Units)","90611223","201601",10/04/2015 00:00:00,700,"53350","Nursing Homes","REDACTED DATA","ELEANOR NURSING & SOCIALCARE LTD","4393038","http://opencorporates.com/companies/gb/4393038",""
"London Borough of Redbridge","http://opendatacommunities.org/doc/london-borough-council/redbridge","6BADULTSOCIA","Adult Social Care","6COTHADSERV","Other Adult Services","REV","Revenue","R4389","PCT Older Person Home Care","05-THIRD","Third Party Payments","05A","Independent units within the council","6502","Agency Homecare (Payments To Independent Units)","90611211","201601",10/04/2015 00:00:00,1985.44,"53350","Nursing Homes","REDACTED DATA","ELEANOR NURSING & SOCIALCARE LTD","4393038","http://opencorporates.com/companies/gb/4393038",""
"London Borough of Redbridge","http://opendatacommunities.org/doc/london-borough-council/redbridge","6BADULTSOCIA","Adult Social Care","6CADLEARNDIS","Adults Under 65 with Learning Disabilities","REV","Revenue","R4394","LD - Homecare","05-THIRD","Third Party Payments","05A","Independent units within the council","6502","Agency Homecare (Payments To Independent Units)","90611192","201601",09/04/2015 00:00:00,700,"53350","Nursing Homes","REDACTED DATA","ELEANOR NURSING & SOCIALCARE LTD","4393038","http://opencorporates.com/companies/gb/4393038",""
"London Borough of Redbridge","http://opendatacommunities.org/doc/london-borough-council/redbridge","6BADULTSOCIA","Adult Social Care","6COTHADSERV","Other Adult Services","REV","Revenue","R4389","PCT Older Person Home Care","05-THIRD","Third Party Payments","05A","Independent units within the council","6502","Agency Homecare (Payments To Independent Units)","90611180","201601",09/04/2015 00:00:00,1985.44,"53350","Nursing Homes","REDACTED DATA","ELEANOR NURSING & SOCIALCARE LTD","4393038","http://opencorporates.com/companies/gb/4393038",""
"London Borough of Redbridge","http://opendatacommunities.org/doc/london-borough-council/redbridge","6BADULTSOCIA","Adult Social Care","6COTHADSERV","Other Adult Services","REV","Revenue","R4389","PCT Older Person Home Care","05-THIRD","Third Party Payments","05A","Independent units within the council","6502","Agency Homecare (Payments To Independent Units)","90611168","201601",09/04/2015 00:00:00,512.64,"53350","Nursing Homes","REDACTED DATA","ELEANOR NURSING & SOCIALCARE LTD","4393038","http://opencorporates.com/companies/gb/4393038",""
"London Borough of Redbridge","http://opendatacommunities.org/doc/london-borough-council/redbridge","6BADULTSOCIA","Adult Social Care","6CADLEARNDIS","Adults Under 65 with Learning Disabilities","REV","Revenue","R4394","LD - Homecare","05-THIRD","Third Party Payments","05A","Independent units within the council","6502","Agency Homecare (Payments To Independent Units)","90611160","201601",09/04/2015 00:00:00,700,"53350","Nursing Homes","REDACTED DATA","ELEANOR NURSING & SOCIALCARE LTD","4393038","http://opencorporates.com/companies/gb/4393038",""
"London Borough of Redbridge","http://opendatacommunities.org/doc/london-borough-council/redbridge","6BADULTSOCIA","Adult Social Care","6COTHADSERV","Other Adult Services","REV","Revenue","R4389","PCT Older Person Home Care","05-THIRD","Third Party Payments","05A","Independent units within the council","6502","Agency Homecare (Payments To Independent Units)","90611148","201601",09/04/2015 00:00:00,1985.44,"53350","Nursing Homes","REDACTED DATA","ELEANOR NURSING & SOCIALCARE LTD","4393038","http://opencorporates.com/companies/gb/4393038",""
"London Borough of Redbridge","http://opendatacommunities.org/doc/london-borough-council/redbridge","6BADULTSOCIA","Adult Social Care","6COTHADSERV","Other Adult Services","REV","Revenue","R4389","PCT Older Person Home Care","05-THIRD","Third Party Payments","05A","Independent units within the council","6502","Agency Homecare (Payments To Independent Units)","90611136","201601",09/04/2015 00:00:00,512.64,"53350","Nursing Homes","REDACTED DATA","ELEANOR NURSING & SOCIALCARE LTD","4393038","http://opencorporates.com/companies/gb/4393038",""
"London Borough of Redbridge","http://opendatacommunities.org/doc/london-borough-council/redbridge","6BADULTSOCIA","Adult Social Care","6CADPHYSDIS","Adults Under 65 with Phys Disab or Sensory Impair","REV","Revenue","R4206","PCT Physical Disability and Sensory Home  Care","05-THIRD","Third Party Payments","05A","Independent units within the council","6502","Agency Homecare (Payments To Independent Units)","90611131","201601",08/04/2015 00:00:00,1175.14,"53350","Nursing Homes","REDACTED DATA","ELEANOR NURSING & SOCIALCARE LTD","4393038","http://opencorporates.com/companies/gb/4393038",""
"London Borough of Redbridge","http://opendatacommunities.org/doc/london-borough-council/redbridge","6BADULTSOCIA","Adult Social Care","6CADLEARNDIS","Adults Under 65 with Learning Disabilities","REV","Revenue","R4394","LD - Homecare","05-THIRD","Third Party Payments","05A","Independent units within the council","6502","Agency Homecare (Payments To Independent Units)","90611128","201601",08/04/2015 00:00:00,700,"53350","Nursing Homes","REDACTED DATA","ELEANOR NURSING & SOCIALCARE LTD","4393038","http://opencorporates.com/companies/gb/4393038",""
"London Borough of Redbridge","http://opendatacommunities.org/doc/london-borough-council/redbridge","6BADULTSOCIA","Adult Social Care","6COTHADSERV","Other Adult Services","REV","Revenue","R4389","PCT Older Person Home Care","05-THIRD","Third Party Payments","05A","Independent units within the council","6502","Agency Homecare (Payments To Independent Units)","90611115","201601",08/04/2015 00:00:00,1985.44,"53350","Nursing Homes","REDACTED DATA","ELEANOR NURSING & SOCIALCARE LTD","4393038","http://opencorporates.com/companies/gb/4393038",""
"London Borough of Redbridge","http://opendatacommunities.org/doc/london-borough-council/redbridge","6BADULTSOCIA","Adult Social Care","6COLDINCMENT","Older People (65 or over) incl. Older Mentally Ill","REV","Revenue","R4391","OP Home Care","05-THIRD","Third Party Payments","05A","Independent units within the council","6502","Agency Homecare (Payments To Independent Units)","90610989","201601",01/04/2015 00:00:00,523.96,"53280","Nursing Agencies","REDACTED DATA","IMMACULATE HEALTHCARE SERVICES LIMITED","",,""
"London Borough of Redbridge","http://opendatacommunities.org/doc/london-borough-council/redbridge","6BADULTSOCIA","Adult Social Care","6COTHADSERV","Other Adult Services","REV","Revenue","R4389","PCT Older Person Home Care","05-THIRD","Third Party Payments","05A","Independent units within the council","6502","Agency Homecare (Payments To Independent Units)","90610986","201601",01/04/2015 00:00:00,500.1,"53280","Nursing Agencies","REDACTED DATA","IMMACULATE HEALTHCARE SERVICES LIMITED","",,""
"London Borough of Redbridge","http://opendatacommunities.org/doc/london-borough-council/redbridge","6BADULTSOCIA","Adult Social Care","6CADLEARNDIS","Adults Under 65 with Learning Disabilities","REV","Revenue","R4394","LD - Homecare","05-THIRD","Third Party Payments","05A","Independent units within the council","6502","Agency Homecare (Payments To Independent Units)","90610978","201601",10/04/2015 00:00:00,2184,"31230","Employment & Recruitment Agencies","REDACTED DATA","HOPE SUPER JOBS LTD","",,"872555205"
"London Borough of Redbridge","http://opendatacommunities.org/doc/london-borough-council/redbridge","6BADULTSOCIA","Adult Social Care","6CADPHYSDIS","Adults Under 65 with Phys Disab or Sensory Impair","REV","Revenue","R4393","PD Home Care","05-THIRD","Third Party Payments","05A","Independent units within the council","6502","Agency Homecare (Payments To Independent Units)","90610976","201601",30/03/2015 00:00:00,850.01,"31230","Employment & Recruitment Agencies","REDACTED DATA","HOPE SUPER JOBS LTD","",,"872555205"
"London Borough of Redbridge","http://opendatacommunities.org/doc/london-borough-council/redbridge","6BADULTSOCIA","Adult Social Care","6CADPHYSDIS","Adults Under 65 with Phys Disab or Sensory Impair","REV","Revenue","R4393","PD Home Care","05-THIRD","Third Party Payments","05A","Independent units within the council","6502","Agency Homecare (Payments To Independent Units)","90610975","201601",23/03/2015 00:00:00,850.01,"31230","Employment & Recruitment Agencies","REDACTED DATA","HOPE SUPER JOBS LTD","",,"872555205"
"London Borough of Redbridge","http://opendatacommunities.org/doc/london-borough-council/redbridge","6BADULTSOCIA","Adult Social Care","6CADPHYSDIS","Adults Under 65 with Phys Disab or Sensory Impair","REV","Revenue","R4206","PCT Physical Disability and Sensory Home  Care","05-THIRD","Third Party Payments","05A","Independent units within the council","6502","Agency Homecare (Payments To Independent Units)","90610972","201601",23/03/2015 00:00:00,640.58,"43419","Home Care Services","REDACTED DATA","TOTAL COMMUNITY CARE LTD","5985316","http://opencorporates.com/companies/gb/5985316",""
"London Borough of Redbridge","http://opendatacommunities.org/doc/london-borough-council/redbridge","6BADULTSOCIA","Adult Social Care","6CADPHYSDIS","Adults Under 65 with Phys Disab or Sensory Impair","REV","Revenue","R4393","PD Home Care","05-THIRD","Third Party Payments","05A","Independent units within the council","6502","Agency Homecare (Payments To Independent Units)","90610972","201601",23/03/2015 00:00:00,1189.64,"43419","Home Care Services","REDACTED DATA","TOTAL COMMUNITY CARE LTD","5985316","http://opencorporates.com/companies/gb/5985316",""
"London Borough of Redbridge","http://opendatacommunities.org/doc/london-borough-council/redbridge","6BADULTSOCIA","Adult Social Care","6CADPHYSDIS","Adults Under 65 with Phys Disab or Sensory Impair","REV","Revenue","R4206","PCT Physical Disability and Sensory Home  Care","05-THIRD","Third Party Payments","05A","Independent units within the council","6502","Agency Homecare (Payments To Independent Units)","90610971","201601",23/03/2015 00:00:00,640.58,"43419","Home Care Services","REDACTED DATA","TOTAL COMMUNITY CARE LTD","5985316","http://opencorporates.com/companies/gb/5985316",""
"London Borough of Redbridge","http://opendatacommunities.org/doc/london-borough-council/redbridge","6BADULTSOCIA","Adult Social Care","6CADPHYSDIS","Adults Under 65 with Phys Disab or Sensory Impair","REV","Revenue","R4393","PD Home Care","05-THIRD","Third Party Payments","05A","Independent units within the council","6502","Agency Homecare (Payments To Independent Units)","90610971","201601",23/03/2015 00:00:00,1189.64,"43419","Home Care Services","REDACTED DATA","TOTAL COMMUNITY CARE LTD","5985316","http://opencorporates.com/companies/gb/5985316",""
"London Borough of Redbridge","http://opendatacommunities.org/doc/london-borough-council/redbridge","6BADULTSOCIA","Adult Social Care","6CADPHYSDIS","Adults Under 65 with Phys Disab or Sensory Impair","REV","Revenue","R4206","PCT Physical Disability and Sensory Home  Care","05-THIRD","Third Party Payments","05A","Independent units within the council","6502","Agency Homecare (Payments To Independent Units)","90610970","201601",23/03/2015 00:00:00,640.58,"43419","Home Care Services","REDACTED DATA","TOTAL COMMUNITY CARE LTD","5985316","http://opencorporates.com/companies/gb/5985316",""
"London Borough of Redbridge","http://opendatacommunities.org/doc/london-borough-council/redbridge","6BADULTSOCIA","Adult Social Care","6CADPHYSDIS","Adults Under 65 with Phys Disab or Sensory Impair","REV","Revenue","R4393","PD Home Care","05-THIRD","Third Party Payments","05A","Independent units within the council","6502","Agency Homecare (Payments To Independent Units)","90610970","201601",23/03/2015 00:00:00,1189.64,"43419","Home Care Services","REDACTED DATA","TOTAL COMMUNITY CARE LTD","5985316","http://opencorporates.com/companies/gb/5985316",""
"London Borough of Redbridge","http://opendatacommunities.org/doc/london-borough-council/redbridge","6BADULTSOCIA","Adult Social Care","6CADPHYSDIS","Adults Under 65 with Phys Disab or Sensory Impair","REV","Revenue","R4393","PD Home Care","05-THIRD","Third Party Payments","05A","Independent units within the council","6502","Agency Homecare (Payments To Independent Units)","90610840","201601",10/04/2015 00:00:00,770.48,"17020","Charities and Voluntary Organisations","REDACTED DATA","REDBRIDGE EPPING & HARLOW CROSSROADS","2647932","http://opencorporates.com/companies/gb/2647932",""
"London Borough of Redbridge","http://opendatacommunities.org/doc/london-borough-council/redbridge","6BADULTSOCIA","Adult Social Care","6CADLEARNDIS","Adults Under 65 with Learning Disabilities","REV","Revenue","R4241","ONEL � Continuing Care","05-THIRD","Third Party Payments","05A","Independent units within the council","6502","Agency Homecare (Payments To Independent Units)","90610839","201601",10/04/2015 00:00:00,1680.02,"17020","Charities and Voluntary Organisations","REDACTED DATA","REDBRIDGE EPPING & HARLOW CROSSROADS","2647932","http://opencorporates.com/companies/gb/2647932",""
"London Borough of Redbridge","http://opendatacommunities.org/doc/london-borough-council/redbridge","6BADULTSOCIA","Adult Social Care","6CADPHYSDIS","Adults Under 65 with Phys Disab or Sensory Impair","REV","Revenue","R4393","PD Home Care","05-THIRD","Third Party Payments","05A","Independent units within the council","6502","Agency Homecare (Payments To Independent Units)","90610832","201601",10/04/2015 00:00:00,888.38,"17020","Charities and Voluntary Organisations","REDACTED DATA","REDBRIDGE EPPING & HARLOW CROSSROADS","2647932","http://opencorporates.com/companies/gb/2647932",""
"London Borough of Redbridge","http://opendatacommunities.org/doc/london-borough-council/redbridge","6BADULTSOCIA","Adult Social Care","6CADPHYSDIS","Adults Under 65 with Phys Disab or Sensory Impair","REV","Revenue","R4393","PD Home Care","05-THIRD","Third Party Payments","05A","Independent units within the council","6502","Agency Homecare (Payments To Independent Units)","90610822","201601",10/04/2015 00:00:00,785.26,"17020","Charities and Voluntary Organisations","REDACTED DATA","REDBRIDGE EPPING & HARLOW CROSSROADS","2647932","http://opencorporates.com/companies/gb/2647932",""
"London Borough of Redbridge","http://opendatacommunities.org/doc/london-borough-council/redbridge","6BADULTSOCIA","Adult Social Care","6CADLEARNDIS","Adults Under 65 with Learning Disabilities","REV","Revenue","R4241","ONEL � Continuing Care","05-THIRD","Third Party Payments","05A","Independent units within the council","6502","Agency Homecare (Payments To Independent Units)","90610821","201601",10/04/2015 00:00:00,1687.41,"17020","Charities and Voluntary Organisations","REDACTED DATA","REDBRIDGE EPPING & HARLOW CROSSROADS","2647932","http://opencorporates.com/companies/gb/2647932",""
"London Borough of Redbridge","http://opendatacommunities.org/doc/london-borough-council/redbridge","6BADULTSOCIA","Adult Social Care","6CADPHYSDIS","Adults Under 65 with Phys Disab or Sensory Impair","REV","Revenue","R4393","PD Home Care","05-THIRD","Third Party Payments","05A","Independent units within the council","6502","Agency Homecare (Payments To Independent Units)","90610814","201601",10/04/2015 00:00:00,1082.07,"17020","Charities and Voluntary Organisations","REDACTED DATA","REDBRIDGE EPPING & HARLOW CROSSROADS","2647932","http://opencorporates.com/companies/gb/2647932",""
"London Borough of Redbridge","http://opendatacommunities.org/doc/london-borough-council/redbridge","6BPUBHEALTH","Public Health","6CSUBSTANCEM","Substance Misuse","REV","Revenue","R4815","Drug Misuse - Adults","05-THIRD","Third Party Payments","05F","Voluntary associations","6800","Voluntary Organisations","90610809","201601",09/04/2015 00:00:00,17233.24,"79980","Training Services","REDACTED DATA","WESTMINSTER DRUG PROJECT LTD","2807934","http://opencorporates.com/companies/gb/2807934",""
"London Borough of Redbridge","http://opendatacommunities.org/doc/london-borough-council/redbridge","6BPUBHEALTH","Public Health","6CSUBSTANCEM","Substance Misuse","REV","Revenue","R4815","Drug Misuse - Adults","05-THIRD","Third Party Payments","05F","Voluntary associations","6800","Voluntary Organisations","90610808","201601",09/04/2015 00:00:00,19772.12,"24200","Day Centres","REDACTED DATA","THE QALB DAY CARE SERVICES LTD","6154843","http://opencorporates.com/companies/gb/6154843",""
"London Borough of Redbridge","http://opendatacommunities.org/doc/london-borough-council/redbridge","6BPUBHEALTH","Public Health","6CMISCPHSERV","Miscellaneous Public Health Services","REV","Revenue","R4826","General Prevention Activities","05-THIRD","Third Party Payments","05F","Voluntary associations","6800","Voluntary Organisations","90610807","201601",09/04/2015 00:00:00,3365.4,"17020","Charities and Voluntary Organisations","REDACTED DATA","REDBRIDGE COUNCIL FOR VOLUNTARY SERVICES","",,""
"London Borough of Redbridge","http://opendatacommunities.org/doc/london-borough-council/redbridge","6BPUBHEALTH","Public Health","6CMISCPHSERV","Miscellaneous Public Health Services","REV","Revenue","R4826","General Prevention Activities","05-THIRD","Third Party Payments","05F","Voluntary associations","6800","Voluntary Organisations","90610806","201601",09/04/2015 00:00:00,5384.64,"17020","Charities and Voluntary Organisations","REDACTED DATA","REDBRIDGE COUNCIL FOR VOLUNTARY SERVICES","",,""
"London Borough of Redbridge","http://opendatacommunities.org/doc/london-borough-council/redbridge","2BPLAN&DEVEL","Planning & Development Services","2CCOMMDEVT","Community Development","REV","Revenue","R9853","Community Development","04-SUPPLIES","Supplies And Services","04H","Grants and subscriptions","5953","Partnership Support","90610805","201601",02/04/2015 00:00:00,1231.25,"17020","Charities and Voluntary Organisations","REDACTED DATA","THE DAFFODIL ADVOCACY PROJECT","CHARITY 1147035","http://opencorporates.com/companies/gb/CHARITY 1147035",""
"London Borough of Redbridge","http://opendatacommunities.org/doc/london-borough-council/redbridge","2BPLAN&DEVEL","Planning & Development Services","2CCOMMDEVT","Community Development","REV","Revenue","R9853","Community Development","04-SUPPLIES","Supplies And Services","04H","Grants and subscriptions","5953","Partnership Support","90610804","201601",02/04/2015 00:00:00,1970,"17020","Charities and Voluntary Organisations","REDACTED DATA","THE DAFFODIL ADVOCACY PROJECT","CHARITY 1147035","http://opencorporates.com/companies/gb/CHARITY 1147035",""
"London Borough of Redbridge","http://opendatacommunities.org/doc/london-borough-council/redbridge","2BPLAN&DEVEL","Planning & Development Services","2CCOMMDEVT","Community Development","REV","Revenue","R9853","Community Development","04-SUPPLIES","Supplies And Services","04H","Grants and subscriptions","5953","Partnership Support","90610803","201601",02/04/2015 00:00:00,1723.75,"17020","Charities and Voluntary Organisations","REDACTED DATA","THE DAFFODIL ADVOCACY PROJECT","CHARITY 1147035","http://opencorporates.com/companies/gb/CHARITY 1147035",""
"London Borough of Redbridge","http://opendatacommunities.org/doc/london-borough-council/redbridge","6BADULTSOCIA","Adult Social Care","6CADLEARNDIS","Adults Under 65 with Learning Disabilities","REV","Revenue","R4193","Learn - Redbridge Block Contracts","05-THIRD","Third Party Payments","05F","Voluntary associations","6800","Voluntary Organisations","90610799","201601",15/04/2015 00:00:00,13927.68,"17020","Charities and Voluntary Organisations","REDACTED DATA","UNITING FRIENDS LTD","6495763","http://opencorporates.com/companies/gb/6495763",""
"London Borough of Redbridge","http://opendatacommunities.org/doc/london-borough-council/redbridge","6BADULTSOCIA","Adult Social Care","6COLDINCMENT","Older People (65 or over) incl. Older Mentally Ill","REV","Revenue","R4410","OP Voluntary Contracts","05-THIRD","Third Party Payments","05F","Voluntary associations","6800","Voluntary Organisations","90610796","201601",07/04/2015 00:00:00,1124.76,"64480","Religious Organisations","REDACTED DATA","ST CEDD'S CHURCH","",,""
"London Borough of Redbridge","http://opendatacommunities.org/doc/london-borough-council/redbridge","6BADULTSOCIA","Adult Social Care","6COLDINCMENT","Older People (65 or over) incl. Older Mentally Ill","REV","Revenue","R4410","OP Voluntary Contracts","05-THIRD","Third Party Payments","05F","Voluntary associations","6800","Voluntary Organisations","90610796","201601",07/04/2015 00:00:00,65.39,"64480","Religious Organisations","REDACTED DATA","ST CEDD'S CHURCH","",,""
"London Borough of Redbridge","http://opendatacommunities.org/doc/london-borough-council/redbridge","6BADULTSOCIA","Adult Social Care","6COLDINCMENT","Older People (65 or over) incl. Older Mentally Ill","REV","Revenue","R4410","OP Voluntary Contracts","05-THIRD","Third Party Payments","05F","Voluntary associations","6800","Voluntary Organisations","90610795","201601",07/04/2015 00:00:00,226.86,"17020","Charities and Voluntary Organisations","REDACTED DATA","REDBRIDGE GUJERATI WELFARE  ASSOCIATION","",,""
"London Borough of Redbridge","http://opendatacommunities.org/doc/london-borough-council/redbridge","6BADULTSOCIA","Adult Social Care","6COLDINCMENT","Older People (65 or over) incl. Older Mentally Ill","REV","Revenue","R4410","OP Voluntary Contracts","05-THIRD","Third Party Payments","05F","Voluntary associations","6800","Voluntary Organisations","90610795","201601",07/04/2015 00:00:00,3901.94,"17020","Charities and Voluntary Organisations","REDACTED DATA","REDBRIDGE GUJERATI WELFARE  ASSOCIATION","",,""
"London Borough of Redbridge","http://opendatacommunities.org/doc/london-borough-council/redbridge","6BADULTSOCIA","Adult Social Care","6CADMENHLTH","Adults Under 65 with Mental Health Needs","REV","Revenue","R4392","MH Voluntary Contracts","05-THIRD","Third Party Payments","05F","Voluntary associations","6800","Voluntary Organisations","90610794","201601",07/04/2015 00:00:00,3464.57,"17020","Charities and Voluntary Organisations","REDACTED DATA","REDBRIDGE CONCERN FOR MENTAL HEALTH (RUN UP)","",,""
"London Borough of Redbridge","http://opendatacommunities.org/doc/london-borough-council/redbridge","6BADULTSOCIA","Adult Social Care","6CADMENHLTH","Adults Under 65 with Mental Health Needs","REV","Revenue","R4392","MH Voluntary Contracts","05-THIRD","Third Party Payments","05F","Voluntary associations","6800","Voluntary Organisations","90610794","201601",07/04/2015 00:00:00,3464.57,"17020","Charities and Voluntary Organisations","REDACTED DATA","REDBRIDGE CONCERN FOR MENTAL HEALTH (RUN UP)","",,""
"London Borough of Redbridge","http://opendatacommunities.org/doc/london-borough-council/redbridge","6BADULTSOCIA","Adult Social Care","6CADMENHLTH","Adults Under 65 with Mental Health Needs","REV","Revenue","R4392","MH Voluntary Contracts","05-THIRD","Third Party Payments","05F","Voluntary associations","6800","Voluntary Organisations","90610794","201601",07/04/2015 00:00:00,201.43,"17020","Charities and Voluntary Organisations","REDACTED DATA","REDBRIDGE CONCERN FOR MENTAL HEALTH (RUN UP)","",,""
"London Borough of Redbridge","http://opendatacommunities.org/doc/london-borough-council/redbridge","6BADULTSOCIA","Adult Social Care","6CADMENHLTH","Adults Under 65 with Mental Health Needs","REV","Revenue","R4392","MH Voluntary Contracts","05-THIRD","Third Party Payments","05F","Voluntary associations","6800","Voluntary Organisations","90610794","201601",07/04/2015 00:00:00,201.43,"17020","Charities and Voluntary Organisations","REDACTED DATA","REDBRIDGE CONCERN FOR MENTAL HEALTH (RUN UP)","",,""
"London Borough of Redbridge","http://opendatacommunities.org/doc/london-borough-council/redbridge","6BADULTSOCIA","Adult Social Care","6CADPHYSDIS","Adults Under 65 with Phys Disab or Sensory Impair","REV","Revenue","R4406","PD Voluntary Contracts","05-THIRD","Third Party Payments","05F","Voluntary associations","6800","Voluntary Organisations","90610793","201601",07/04/2015 00:00:00,3841.87,"17020","Charities and Voluntary Organisations","REDACTED DATA","REDBRIDGE DISABLED WOMEN'S  WELFARE ASSOCIATION","",,""
"London Borough of Redbridge","http://opendatacommunities.org/doc/london-borough-council/redbridge","6BADULTSOCIA","Adult Social Care","6CADPHYSDIS","Adults Under 65 with Phys Disab or Sensory Impair","REV","Revenue","R4406","PD Voluntary Contracts","05-THIRD","Third Party Payments","05F","Voluntary associations","6800","Voluntary Organisations","90610793","201601",07/04/2015 00:00:00,223.36,"17020","Charities and Voluntary Organisations","REDACTED DATA","REDBRIDGE DISABLED WOMEN'S  WELFARE ASSOCIATION","",,""
"London Borough of Redbridge","http://opendatacommunities.org/doc/london-borough-council/redbridge","6BADULTSOCIA","Adult Social Care","6CADMENHLTH","Adults Under 65 with Mental Health Needs","REV","Revenue","R4392","MH Voluntary Contracts","05-THIRD","Third Party Payments","05F","Voluntary associations","6800","Voluntary Organisations","90610792","201601",07/04/2015 00:00:00,465.75,"17020","Charities and Voluntary Organisations","REDACTED DATA","REDBRIDGE CONCERN MENTALHEALTH (BEFRIENDING SCHEME","",,""
"London Borough of Redbridge","http://opendatacommunities.org/doc/london-borough-council/redbridge","6BADULTSOCIA","Adult Social Care","6CADMENHLTH","Adults Under 65 with Mental Health Needs","REV","Revenue","R4392","MH Voluntary Contracts","05-THIRD","Third Party Payments","05F","Voluntary associations","6800","Voluntary Organisations","90610792","201601",07/04/2015 00:00:00,8010.9,"17020","Charities and Voluntary Organisations","REDACTED DATA","REDBRIDGE CONCERN MENTALHEALTH (BEFRIENDING SCHEME","",,""
"London Borough of Redbridge","http://opendatacommunities.org/doc/london-borough-council/redbridge","6BADULTSOCIA","Adult Social Care","6CADLEARNDIS","Adults Under 65 with Learning Disabilities","REV","Revenue","R4188","LD - Residential Care","05-THIRD","Third Party Payments","05F","Voluntary associations","6802","Residential Homes","90610791","201601",07/04/2015 00:00:00,18699.23,"68200","Schools - Special","REDACTED DATA","OVERLEY HALL SCHOOL LTD","",,""
"London Borough of Redbridge","http://opendatacommunities.org/doc/london-borough-council/redbridge","6BADULTSOCIA","Adult Social Care","6CADLEARNDIS","Adults Under 65 with Learning Disabilities","REV","Revenue","R4188","LD - Residential Care","05-THIRD","Third Party Payments","05F","Voluntary associations","6802","Residential Homes","90610791","201601",07/04/2015 00:00:00,1087.16,"68200","Schools - Special","REDACTED DATA","OVERLEY HALL SCHOOL LTD","",,""
"London Borough of Redbridge","http://opendatacommunities.org/doc/london-borough-council/redbridge","6BADULTSOCIA","Adult Social Care","6CADLEARNDIS","Adults Under 65 with Learning Disabilities","REV","Revenue","R4188","LD - Residential Care","05-THIRD","Third Party Payments","05F","Voluntary associations","6802","Residential Homes","90610790","201601",07/04/2015 00:00:00,54512.57,"68200","Schools - Special","REDACTED DATA","HESLEY GROUP  LTD","2665377","http://opencorporates.com/companies/gb/2665377",""
"London Borough of Redbridge","http://opendatacommunities.org/doc/london-borough-council/redbridge","6BADULTSOCIA","Adult Social Care","6CADLEARNDIS","Adults Under 65 with Learning Disabilities","REV","Revenue","R4188","LD - Residential Care","05-THIRD","Third Party Payments","05F","Voluntary associations","6802","Residential Homes","90610790","201601",07/04/2015 00:00:00,3169.34,"68200","Schools - Special","REDACTED DATA","HESLEY GROUP  LTD","2665377","http://opencorporates.com/companies/gb/2665377",""
"London Borough of Redbridge","http://opendatacommunities.org/doc/london-borough-council/redbridge","6BADULTSOCIA","Adult Social Care","6CADMENHLTH","Adults Under 65 with Mental Health Needs","REV","Revenue","R4392","MH Voluntary Contracts","05-THIRD","Third Party Payments","05F","Voluntary associations","6800","Voluntary Organisations","90610789","201601",07/04/2015 00:00:00,3779.82,"17020","Charities and Voluntary Organisations","REDACTED DATA","IMAGINE INDEPENDENCE","2699682","http://opencorporates.com/companies/gb/2699682",""
"London Borough of Redbridge","http://opendatacommunities.org/doc/london-borough-council/redbridge","6BADULTSOCIA","Adult Social Care","6CADMENHLTH","Adults Under 65 with Mental Health Needs","REV","Revenue","R4392","MH Voluntary Contracts","05-THIRD","Third Party Payments","05F","Voluntary associations","6800","Voluntary Organisations","90610789","201601",07/04/2015 00:00:00,65012.93,"17020","Charities and Voluntary Organisations","REDACTED DATA","IMAGINE INDEPENDENCE","2699682","http://opencorporates.com/companies/gb/2699682",""
"London Borough of Redbridge","http://opendatacommunities.org/doc/london-borough-council/redbridge","6BADULTSOCIA","Adult Social Care","6COTHADSERV","Other Adult Services","REV","Revenue","R4400","Self Directed Supported Services Vol Contracts","05-THIRD","Third Party Payments","05F","Voluntary associations","6800","Voluntary Organisations","90610788","201601",07/04/2015 00:00:00,1157.04,"17020","Charities and Voluntary Organisations","REDACTED DATA","I DECIDE LTD","8045589","http://opencorporates.com/companies/gb/8045589",""
"London Borough of Redbridge","http://opendatacommunities.org/doc/london-borough-council/redbridge","6BADULTSOCIA","Adult Social Care","6COTHADSERV","Other Adult Services","REV","Revenue","R4400","Self Directed Supported Services Vol Contracts","05-THIRD","Third Party Payments","05F","Voluntary associations","6800","Voluntary Organisations","90610788","201601",07/04/2015 00:00:00,19901.14,"17020","Charities and Voluntary Organisations","REDACTED DATA","I DECIDE LTD","8045589","http://opencorporates.com/companies/gb/8045589",""
"London Borough of Redbridge","http://opendatacommunities.org/doc/london-borough-council/redbridge","6BADULTSOCIA","Adult Social Care","6CADPHYSDIS","Adults Under 65 with Phys Disab or Sensory Impair","REV","Revenue","R4406","PD Voluntary Contracts","05-THIRD","Third Party Payments","05F","Voluntary associations","6800","Voluntary Organisations","90610787","201601",07/04/2015 00:00:00,452.06,"17020","Charities and Voluntary Organisations","REDACTED DATA","DISABLED ASIAN WOMENS NETWORK","",,""
"London Borough of Redbridge","http://opendatacommunities.org/doc/london-borough-council/redbridge","6BADULTSOCIA","Adult Social Care","6CADPHYSDIS","Adults Under 65 with Phys Disab or Sensory Impair","REV","Revenue","R4406","PD Voluntary Contracts","05-THIRD","Third Party Payments","05F","Voluntary associations","6800","Voluntary Organisations","90610787","201601",07/04/2015 00:00:00,7775.38,"17020","Charities and Voluntary Organisations","REDACTED DATA","DISABLED ASIAN WOMENS NETWORK","",,""
"London Borough of Redbridge","http://opendatacommunities.org/doc/london-borough-council/redbridge","6BADULTSOCIA","Adult Social Care","6CADMENHLTH","Adults Under 65 with Mental Health Needs","REV","Revenue","R4392","MH Voluntary Contracts","05-THIRD","Third Party Payments","05F","Voluntary associations","6800","Voluntary Organisations","90610786","201601",07/04/2015 00:00:00,850.54,"17020","Charities and Voluntary Organisations","REDACTED DATA","ANXIETY CARE UK","7813120","http://opencorporates.com/companies/gb/7813120",""
"London Borough of Redbridge","http://opendatacommunities.org/doc/london-borough-council/redbridge","6BADULTSOCIA","Adult Social Care","6CADMENHLTH","Adults Under 65 with Mental Health Needs","REV","Revenue","R4392","MH Voluntary Contracts","05-THIRD","Third Party Payments","05F","Voluntary associations","6800","Voluntary Organisations","90610786","201601",07/04/2015 00:00:00,49.45,"17020","Charities and Voluntary Organisations","REDACTED DATA","ANXIETY CARE UK","7813120","http://opencorporates.com/companies/gb/7813120",""
"London Borough of Redbridge","http://opendatacommunities.org/doc/london-borough-council/redbridge","6BADULTSOCIA","Adult Social Care","6COLDINCMENT","Older People (65 or over) incl. Older Mentally Ill","REV","Revenue","R4410","OP Voluntary Contracts","05-THIRD","Third Party Payments","05F","Voluntary associations","6800","Voluntary Organisations","90610785","201601",07/04/2015 00:00:00,616.44,"17020","Charities and Voluntary Organisations","REDACTED DATA","AGE CONCERN REDBRIDGE T/AS AGEUK REDBRIDGE","CHARITY 1088435","http://opencorporates.com/companies/gb/CHARITY 1088435",""
"London Borough of Redbridge","http://opendatacommunities.org/doc/london-borough-council/redbridge","6BADULTSOCIA","Adult Social Care","6COLDINCMENT","Older People (65 or over) incl. Older Mentally Ill","REV","Revenue","R4410","OP Voluntary Contracts","05-THIRD","Third Party Payments","05F","Voluntary associations","6800","Voluntary Organisations","90610785","201601",07/04/2015 00:00:00,10602.69,"17020","Charities and Voluntary Organisations","REDACTED DATA","AGE CONCERN REDBRIDGE T/AS AGEUK REDBRIDGE","CHARITY 1088435","http://opencorporates.com/companies/gb/CHARITY 1088435",""
"London Borough of Redbridge","http://opendatacommunities.org/doc/london-borough-council/redbridge","6BADULTSOCIA","Adult Social Care","6COLDINCMENT","Older People (65 or over) incl. Older Mentally Ill","REV","Revenue","R4402","Dementia Contract","05-THIRD","Third Party Payments","05F","Voluntary associations","6800","Voluntary Organisations","90610784","201601",07/04/2015 00:00:00,479.45,"17020","Charities and Voluntary Organisations","REDACTED DATA","AGE CONCERN REDBRIDGE T/AS AGEUK REDBRIDGE","CHARITY 1088435","http://opencorporates.com/companies/gb/CHARITY 1088435",""
"London Borough of Redbridge","http://opendatacommunities.org/doc/london-borough-council/redbridge","6BADULTSOCIA","Adult Social Care","6COLDINCMENT","Older People (65 or over) incl. Older Mentally Ill","REV","Revenue","R4402","Dementia Contract","05-THIRD","Third Party Payments","05F","Voluntary associations","6800","Voluntary Organisations","90610784","201601",07/04/2015 00:00:00,8246.54,"17020","Charities and Voluntary Organisations","REDACTED DATA","AGE CONCERN REDBRIDGE T/AS AGEUK REDBRIDGE","CHARITY 1088435","http://opencorporates.com/companies/gb/CHARITY 1088435",""
"London Borough of Redbridge","http://opendatacommunities.org/doc/london-borough-council/redbridge","6BADULTSOCIA","Adult Social Care","6COLDINCMENT","Older People (65 or over) incl. Older Mentally Ill","REV","Revenue","R4410","OP Voluntary Contracts","05-THIRD","Third Party Payments","05F","Voluntary associations","6800","Voluntary Organisations","90610783","201601",07/04/2015 00:00:00,9972.56,"17020","Charities and Voluntary Organisations","REDACTED DATA","AGE CONCERN REDBRIDGE T/AS AGEUK REDBRIDGE","CHARITY 1088435","http://opencorporates.com/companies/gb/CHARITY 1088435",""
"London Borough of Redbridge","http://opendatacommunities.org/doc/london-borough-council/redbridge","6BADULTSOCIA","Adult Social Care","6COLDINCMENT","Older People (65 or over) incl. Older Mentally Ill","REV","Revenue","R4410","OP Voluntary Contracts","05-THIRD","Third Party Payments","05F","Voluntary associations","6800","Voluntary Organisations","90610782","201601",07/04/2015 00:00:00,737.21,"17020","Charities and Voluntary Organisations","REDACTED DATA","AGE CONCERN REDBRIDGE T/AS AGEUK REDBRIDGE","CHARITY 1088435","http://opencorporates.com/companies/gb/CHARITY 1088435",""
"London Borough of Redbridge","http://opendatacommunities.org/doc/london-borough-council/redbridge","6BADULTSOCIA","Adult Social Care","6COLDINCMENT","Older People (65 or over) incl. Older Mentally Ill","REV","Revenue","R4410","OP Voluntary Contracts","05-THIRD","Third Party Payments","05F","Voluntary associations","6800","Voluntary Organisations","90610782","201601",07/04/2015 00:00:00,12679.96,"17020","Charities and Voluntary Organisations","REDACTED DATA","AGE CONCERN REDBRIDGE T/AS AGEUK REDBRIDGE","CHARITY 1088435","http://opencorporates.com/companies/gb/CHARITY 1088435",""
"London Borough of Redbridge","http://opendatacommunities.org/doc/london-borough-council/redbridge","6BADULTSOCIA","Adult Social Care","6COLDINCMENT","Older People (65 or over) incl. Older Mentally Ill","REV","Revenue","R4410","OP Voluntary Contracts","05-THIRD","Third Party Payments","05F","Voluntary associations","6800","Voluntary Organisations","90610782","201601",07/04/2015 00:00:00,23584.52,"17020","Charities and Voluntary Organisations","REDACTED DATA","AGE CONCERN REDBRIDGE T/AS AGEUK REDBRIDGE","CHARITY 1088435","http://opencorporates.com/companies/gb/CHARITY 1088435",""
"London Borough of Redbridge","http://opendatacommunities.org/doc/london-borough-council/redbridge","6BADULTSOCIA","Adult Social Care","6COLDINCMENT","Older People (65 or over) incl. Older Mentally Ill","REV","Revenue","R4410","OP Voluntary Contracts","05-THIRD","Third Party Payments","05F","Voluntary associations","6800","Voluntary Organisations","90610782","201601",07/04/2015 00:00:00,1371.19,"17020","Charities and Voluntary Organisations","REDACTED DATA","AGE CONCERN REDBRIDGE T/AS AGEUK REDBRIDGE","CHARITY 1088435","http://opencorporates.com/companies/gb/CHARITY 1088435",""
"London Borough of Redbridge","http://opendatacommunities.org/doc/london-borough-council/redbridge","6BADULTSOCIA","Adult Social Care","6COLDINCMENT","Older People (65 or over) incl. Older Mentally Ill","REV","Revenue","R4385","OP Nursing","05-THIRD","Third Party Payments","05H","Private contractors","6902","Respite Care","90610780","201601",24/03/2015 00:00:00,221.78,"53350","Nursing Homes","REDACTED DATA","CHURCHFIELDS NURSING HOME (YEW TREE CARE)","",,""
"London Borough of Redbridge","http://opendatacommunities.org/doc/london-borough-council/redbridge","6BADULTSOCIA","Adult Social Care","6COLDINCMENT","Older People (65 or over) incl. Older Mentally Ill","REV","Revenue","R4385","OP Nursing","05-THIRD","Third Party Payments","05H","Private contractors","6902","Respite Care","90610780","201601",24/03/2015 00:00:00,110.89,"53350","Nursing Homes","REDACTED DATA","CHURCHFIELDS NURSING HOME (YEW TREE CARE)","",,""
"London Borough of Redbridge","http://opendatacommunities.org/doc/london-borough-council/redbridge","6BADULTSOCIA","Adult Social Care","6COLDINCMENT","Older People (65 or over) incl. Older Mentally Ill","REV","Revenue","R4385","OP Nursing","05-THIRD","Third Party Payments","05H","Private contractors","6902","Respite Care","90610780","201601",24/03/2015 00:00:00,984,"53350","Nursing Homes","REDACTED DATA","CHURCHFIELDS NURSING HOME (YEW TREE CARE)","",,""
"London Borough of Redbridge","http://opendatacommunities.org/doc/london-borough-council/redbridge","6BADULTSOCIA","Adult Social Care","6COLDINCMENT","Older People (65 or over) incl. Older Mentally Ill","REV","Revenue","R4385","OP Nursing","05-THIRD","Third Party Payments","05H","Private contractors","6902","Respite Care","90610780","201601",24/03/2015 00:00:00,492,"53350","Nursing Homes","REDACTED DATA","CHURCHFIELDS NURSING HOME (YEW TREE CARE)","",,""
"London Borough of Redbridge","http://opendatacommunities.org/doc/london-borough-council/redbridge","6BADULTSOCIA","Adult Social Care","6COLDINCMENT","Older People (65 or over) incl. Older Mentally Ill","REV","Revenue","R4385","OP Nursing","09-INCOME","Income","09C","Customer and Client Receipts","8558","Respite Care Charges","90610780","201601",24/03/2015 00:00:00,-221.78,"53350","Nursing Homes","REDACTED DATA","CHURCHFIELDS NURSING HOME (YEW TREE CARE)","",,""
"London Borough of Redbridge","http://opendatacommunities.org/doc/london-borough-council/redbridge","6BADULTSOCIA","Adult Social Care","6COLDINCMENT","Older People (65 or over) incl. Older Mentally Ill","REV","Revenue","R4385","OP Nursing","09-INCOME","Income","09C","Customer and Client Receipts","8558","Respite Care Charges","90610780","201601",24/03/2015 00:00:00,-110.89,"53350","Nursing Homes","REDACTED DATA","CHURCHFIELDS NURSING HOME (YEW TREE CARE)","",,""
"London Borough of Redbridge","http://opendatacommunities.org/doc/london-borough-council/redbridge","6BADULTSOCIA","Adult Social Care","6CADLEARNDIS","Adults Under 65 with Learning Disabilities","REV","Revenue","R4241","ONEL � Continuing Care","05-THIRD","Third Party Payments","05H","Private contractors","6909","Nursing Homes","90610779","201601",31/03/2015 00:00:00,183.73,"53350","Nursing Homes","REDACTED DATA","WOODLANDS NURSING HOME","",,""
"London Borough of Redbridge","http://opendatacommunities.org/doc/london-borough-council/redbridge","6BADULTSOCIA","Adult Social Care","6CADLEARNDIS","Adults Under 65 with Learning Disabilities","REV","Revenue","R4241","ONEL � Continuing Care","05-THIRD","Third Party Payments","05H","Private contractors","6909","Nursing Homes","90610779","201601",31/03/2015 00:00:00,1929.18,"53350","Nursing Homes","REDACTED DATA","WOODLANDS NURSING HOME","",,""
"London Borough of Redbridge","http://opendatacommunities.org/doc/london-borough-council/redbridge","6BADULTSOCIA","Adult Social Care","6CADLEARNDIS","Adults Under 65 with Learning Disabilities","REV","Revenue","R4241","ONEL � Continuing Care","05-THIRD","Third Party Payments","05H","Private contractors","6909","Nursing Homes","90610779","201601",31/03/2015 00:00:00,459.33,"53350","Nursing Homes","REDACTED DATA","WOODLANDS NURSING HOME","",,""
"London Borough of Redbridge","http://opendatacommunities.org/doc/london-borough-council/redbridge","6BADULTSOCIA","Adult Social Care","6COLDINCMENT","Older People (65 or over) incl. Older Mentally Ill","REV","Revenue","R4385","OP Nursing","05-THIRD","Third Party Payments","05H","Private contractors","6909","Nursing Homes","90610778","201601",31/03/2015 00:00:00,31.68,"53350","Nursing Homes","REDACTED DATA","WOODLANDS NURSING HOME","",,""
"London Borough of Redbridge","http://opendatacommunities.org/doc/london-borough-council/redbridge","6BADULTSOCIA","Adult Social Care","6COLDINCMENT","Older People (65 or over) incl. Older Mentally Ill","REV","Revenue","R4385","OP Nursing","05-THIRD","Third Party Payments","05H","Private contractors","6909","Nursing Homes","90610778","201601",31/03/2015 00:00:00,350.64,"53350","Nursing Homes","REDACTED DATA","WOODLANDS NURSING HOME","",,""
"London Borough of Redbridge","http://opendatacommunities.org/doc/london-borough-council/redbridge","6BADULTSOCIA","Adult Social Care","6COLDINCMENT","Older People (65 or over) incl. Older Mentally Ill","REV","Revenue","R4385","OP Nursing","05-THIRD","Third Party Payments","05H","Private contractors","6909","Nursing Homes","90610778","201601",31/03/2015 00:00:00,1472.67,"53350","Nursing Homes","REDACTED DATA","WOODLANDS NURSING HOME","",,""
"London Borough of Redbridge","http://opendatacommunities.org/doc/london-borough-council/redbridge","6BADULTSOCIA","Adult Social Care","6COLDINCMENT","Older People (65 or over) incl. Older Mentally Ill","REV","Revenue","R4385","OP Nursing","05-THIRD","Third Party Payments","05H","Private contractors","6909","Nursing Homes","90610778","201601",31/03/2015 00:00:00,140.57,"53350","Nursing Homes","REDACTED DATA","WOODLANDS NURSING HOME","",,""
"London Borough of Redbridge","http://opendatacommunities.org/doc/london-borough-council/redbridge","6BADULTSOCIA","Adult Social Care","6COLDINCMENT","Older People (65 or over) incl. Older Mentally Ill","REV","Revenue","R4385","OP Nursing","05-THIRD","Third Party Payments","05H","Private contractors","6909","Nursing Homes","90610778","201601",31/03/2015 00:00:00,80,"53350","Nursing Homes","REDACTED DATA","WOODLANDS NURSING HOME","",,""
"London Borough of Redbridge","http://opendatacommunities.org/doc/london-borough-council/redbridge","6BADULTSOCIA","Adult Social Care","6COLDINCMENT","Older People (65 or over) incl. Older Mentally Ill","REV","Revenue","R4385","OP Nursing","05-THIRD","Third Party Payments","05H","Private contractors","6909","Nursing Homes","90610778","201601",31/03/2015 00:00:00,336,"53350","Nursing Homes","REDACTED DATA","WOODLANDS NURSING HOME","",,""
"London Borough of Redbridge","http://opendatacommunities.org/doc/london-borough-council/redbridge","6BADULTSOCIA","Adult Social Care","6COLDINCMENT","Older People (65 or over) incl. Older Mentally Ill","REV","Revenue","R4385","OP Nursing","09-INCOME","Income","09C","Customer and Client Receipts","8557","Nursing Home Charges","90610778","201601",31/03/2015 00:00:00,-336,"53350","Nursing Homes","REDACTED DATA","WOODLANDS NURSING HOME","",,""
"London Borough of Redbridge","http://opendatacommunities.org/doc/london-borough-council/redbridge","6BADULTSOCIA","Adult Social Care","6COLDINCMENT","Older People (65 or over) incl. Older Mentally Ill","REV","Revenue","R4385","OP Nursing","09-INCOME","Income","09C","Customer and Client Receipts","8557","Nursing Home Charges","90610778","201601",31/03/2015 00:00:00,-31.68,"53350","Nursing Homes","REDACTED DATA","WOODLANDS NURSING HOME","",,""
"London Borough of Redbridge","http://opendatacommunities.org/doc/london-borough-council/redbridge","6BADULTSOCIA","Adult Social Care","6COLDINCMENT","Older People (65 or over) incl. Older Mentally Ill","REV","Revenue","R4385","OP Nursing","09-INCOME","Income","09C","Customer and Client Receipts","8557","Nursing Home Charges","90610778","201601",31/03/2015 00:00:00,-80,"53350","Nursing Homes","REDACTED DATA","WOODLANDS NURSING HOME","",,""
"London Borough of Redbridge","http://opendatacommunities.org/doc/london-borough-council/redbridge","6BADULTSOCIA","Adult Social Care","6COLDINCMENT","Older People (65 or over) incl. Older Mentally Ill","REV","Revenue","R4385","OP Nursing","05-THIRD","Third Party Payments","05H","Private contractors","6909","Nursing Homes","90610777","201601",31/03/2015 00:00:00,1483.38,"53350","Nursing Homes","REDACTED DATA","WOODLANDS NURSING HOME","",,""
"London Borough of Redbridge","http://opendatacommunities.org/doc/london-borough-council/redbridge","6BADULTSOCIA","Adult Social Care","6COLDINCMENT","Older People (65 or over) incl. Older Mentally Ill","REV","Revenue","R4385","OP Nursing","05-THIRD","Third Party Payments","05H","Private contractors","6909","Nursing Homes","90610777","201601",31/03/2015 00:00:00,336,"53350","Nursing Homes","REDACTED DATA","WOODLANDS NURSING HOME","",,""
"London Borough of Redbridge","http://opendatacommunities.org/doc/london-borough-council/redbridge","6BADULTSOCIA","Adult Social Care","6COLDINCMENT","Older People (65 or over) incl. Older Mentally Ill","REV","Revenue","R4385","OP Nursing","05-THIRD","Third Party Payments","05H","Private contractors","6909","Nursing Homes","90610777","201601",31/03/2015 00:00:00,353.19,"53350","Nursing Homes","REDACTED DATA","WOODLANDS NURSING HOME","",,""
"London Borough of Redbridge","http://opendatacommunities.org/doc/london-borough-council/redbridge","6BADULTSOCIA","Adult Social Care","6COLDINCMENT","Older People (65 or over) incl. Older Mentally Ill","REV","Revenue","R4385","OP Nursing","05-THIRD","Third Party Payments","05H","Private contractors","6909","Nursing Homes","90610777","201601",31/03/2015 00:00:00,31.68,"53350","Nursing Homes","REDACTED DATA","WOODLANDS NURSING HOME","",,""
"London Borough of Redbridge","http://opendatacommunities.org/doc/london-borough-council/redbridge","6BADULTSOCIA","Adult Social Care","6COLDINCMENT","Older People (65 or over) incl. Older Mentally Ill","REV","Revenue","R4385","OP Nursing","05-THIRD","Third Party Payments","05H","Private contractors","6909","Nursing Homes","90610777","201601",31/03/2015 00:00:00,80,"53350","Nursing Homes","REDACTED DATA","WOODLANDS NURSING HOME","",,""
"London Borough of Redbridge","http://opendatacommunities.org/doc/london-borough-council/redbridge","6BADULTSOCIA","Adult Social Care","6COLDINCMENT","Older People (65 or over) incl. Older Mentally Ill","REV","Revenue","R4385","OP Nursing","05-THIRD","Third Party Payments","05H","Private contractors","6909","Nursing Homes","90610777","201601",31/03/2015 00:00:00,141.59,"53350","Nursing Homes","REDACTED DATA","WOODLANDS NURSING HOME","",,""
"London Borough of Redbridge","http://opendatacommunities.org/doc/london-borough-council/redbridge","6BADULTSOCIA","Adult Social Care","6COLDINCMENT","Older People (65 or over) incl. Older Mentally Ill","REV","Revenue","R4385","OP Nursing","09-INCOME","Income","09C","Customer and Client Receipts","8557","Nursing Home Charges","90610777","201601",31/03/2015 00:00:00,-408.99,"53350","Nursing Homes","REDACTED DATA","WOODLANDS NURSING HOME","",,""
"London Borough of Redbridge","http://opendatacommunities.org/doc/london-borough-council/redbridge","6BADULTSOCIA","Adult Social Care","6COLDINCMENT","Older People (65 or over) incl. Older Mentally Ill","REV","Revenue","R4385","OP Nursing","09-INCOME","Income","09C","Customer and Client Receipts","8557","Nursing Home Charges","90610777","201601",31/03/2015 00:00:00,-336,"53350","Nursing Homes","REDACTED DATA","WOODLANDS NURSING HOME","",,""
"London Borough of Redbridge","http://opendatacommunities.org/doc/london-borough-council/redbridge","6BADULTSOCIA","Adult Social Care","6COLDINCMENT","Older People (65 or over) incl. Older Mentally Ill","REV","Revenue","R4385","OP Nursing","09-INCOME","Income","09C","Customer and Client Receipts","8557","Nursing Home Charges","90610777","201601",31/03/2015 00:00:00,-98.34,"53350","Nursing Homes","REDACTED DATA","WOODLANDS NURSING HOME","",,""
"London Borough of Redbridge","http://opendatacommunities.org/doc/london-borough-council/redbridge","6BADULTSOCIA","Adult Social Care","6COLDINCMENT","Older People (65 or over) incl. Older Mentally Ill","REV","Revenue","R4385","OP Nursing","09-INCOME","Income","09C","Customer and Client Receipts","8557","Nursing Home Charges","90610777","201601",31/03/2015 00:00:00,-80,"53350","Nursing Homes","REDACTED DATA","WOODLANDS NURSING HOME","",,""
"London Borough of Redbridge","http://opendatacommunities.org/doc/london-borough-council/redbridge","6BADULTSOCIA","Adult Social Care","6COLDINCMENT","Older People (65 or over) incl. Older Mentally Ill","REV","Revenue","R4385","OP Nursing","09-INCOME","Income","09C","Customer and Client Receipts","8557","Nursing Home Charges","90610777","201601",31/03/2015 00:00:00,-39.33,"53350","Nursing Homes","REDACTED DATA","WOODLANDS NURSING HOME","",,""
"London Borough of Redbridge","http://opendatacommunities.org/doc/london-borough-council/redbridge","6BADULTSOCIA","Adult Social Care","6COLDINCMENT","Older People (65 or over) incl. Older Mentally Ill","REV","Revenue","R4385","OP Nursing","09-INCOME","Income","09C","Customer and Client Receipts","8557","Nursing Home Charges","90610777","201601",31/03/2015 00:00:00,-31.68,"53350","Nursing Homes","REDACTED DATA","WOODLANDS NURSING HOME","",,""
"London Borough of Redbridge","http://opendatacommunities.org/doc/london-borough-council/redbridge","6BADULTSOCIA","Adult Social Care","6COLDINCMENT","Older People (65 or over) incl. Older Mentally Ill","REV","Revenue","R4385","OP Nursing","05-THIRD","Third Party Payments","05H","Private contractors","6909","Nursing Homes","90610776","201601",31/03/2015 00:00:00,141.59,"53350","Nursing Homes","REDACTED DATA","WOODLANDS NURSING HOME","",,""
"London Borough of Redbridge","http://opendatacommunities.org/doc/london-borough-council/redbridge","6BADULTSOCIA","Adult Social Care","6COLDINCMENT","Older People (65 or over) incl. Older Mentally Ill","REV","Revenue","R4385","OP Nursing","05-THIRD","Third Party Payments","05H","Private contractors","6909","Nursing Homes","90610776","201601",31/03/2015 00:00:00,1483.38,"53350","Nursing Homes","REDACTED DATA","WOODLANDS NURSING HOME","",,""
"London Borough of Redbridge","http://opendatacommunities.org/doc/london-borough-council/redbridge","6BADULTSOCIA","Adult Social Care","6COLDINCMENT","Older People (65 or over) incl. Older Mentally Ill","REV","Revenue","R4385","OP Nursing","05-THIRD","Third Party Payments","05H","Private contractors","6909","Nursing Homes","90610776","201601",31/03/2015 00:00:00,31.68,"53350","Nursing Homes","REDACTED DATA","WOODLANDS NURSING HOME","",,""
"London Borough of Redbridge","http://opendatacommunities.org/doc/london-borough-council/redbridge","6BADULTSOCIA","Adult Social Care","6COLDINCMENT","Older People (65 or over) incl. Older Mentally Ill","REV","Revenue","R4385","OP Nursing","05-THIRD","Third Party Payments","05H","Private contractors","6909","Nursing Homes","90610776","201601",31/03/2015 00:00:00,336,"53350","Nursing Homes","REDACTED DATA","WOODLANDS NURSING HOME","",,""
"London Borough of Redbridge","http://opendatacommunities.org/doc/london-borough-council/redbridge","6BADULTSOCIA","Adult Social Care","6COLDINCMENT","Older People (65 or over) incl. Older Mentally Ill","REV","Revenue","R4385","OP Nursing","05-THIRD","Third Party Payments","05H","Private contractors","6909","Nursing Homes","90610776","201601",31/03/2015 00:00:00,80,"53350","Nursing Homes","REDACTED DATA","WOODLANDS NURSING HOME","",,""
"London Borough of Redbridge","http://opendatacommunities.org/doc/london-borough-council/redbridge","6BADULTSOCIA","Adult Social Care","6COLDINCMENT","Older People (65 or over) incl. Older Mentally Ill","REV","Revenue","R4385","OP Nursing","05-THIRD","Third Party Payments","05H","Private contractors","6909","Nursing Homes","90610776","201601",31/03/2015 00:00:00,353.19,"53350","Nursing Homes","REDACTED DATA","WOODLANDS NURSING HOME","",,""
"London Borough of Redbridge","http://opendatacommunities.org/doc/london-borough-council/redbridge","6BADULTSOCIA","Adult Social Care","6COLDINCMENT","Older People (65 or over) incl. Older Mentally Ill","REV","Revenue","R4385","OP Nursing","09-INCOME","Income","09C","Customer and Client Receipts","8557","Nursing Home Charges","90610776","201601",31/03/2015 00:00:00,-80,"53350","Nursing Homes","REDACTED DATA","WOODLANDS NURSING HOME","",,""
"London Borough of Redbridge","http://opendatacommunities.org/doc/london-borough-council/redbridge","6BADULTSOCIA","Adult Social Care","6COLDINCMENT","Older People (65 or over) incl. Older Mentally Ill","REV","Revenue","R4385","OP Nursing","09-INCOME","Income","09C","Customer and Client Receipts","8557","Nursing Home Charges","90610776","201601",31/03/2015 00:00:00,-378.9,"53350","Nursing Homes","REDACTED DATA","WOODLANDS NURSING HOME","",,""
"London Borough of Redbridge","http://opendatacommunities.org/doc/london-borough-council/redbridge","6BADULTSOCIA","Adult Social Care","6COLDINCMENT","Older People (65 or over) incl. Older Mentally Ill","REV","Revenue","R4385","OP Nursing","09-INCOME","Income","09C","Customer and Client Receipts","8557","Nursing Home Charges","90610776","201601",31/03/2015 00:00:00,-31.68,"53350","Nursing Homes","REDACTED DATA","WOODLANDS NURSING HOME","",,""
"London Borough of Redbridge","http://opendatacommunities.org/doc/london-borough-council/redbridge","6BADULTSOCIA","Adult Social Care","6COLDINCMENT","Older People (65 or over) incl. Older Mentally Ill","REV","Revenue","R4385","OP Nursing","09-INCOME","Income","09C","Customer and Client Receipts","8557","Nursing Home Charges","90610776","201601",31/03/2015 00:00:00,-88.54,"53350","Nursing Homes","REDACTED DATA","WOODLANDS NURSING HOME","",,""
"London Borough of Redbridge","http://opendatacommunities.org/doc/london-borough-council/redbridge","6BADULTSOCIA","Adult Social Care","6COLDINCMENT","Older People (65 or over) incl. Older Mentally Ill","REV","Revenue","R4385","OP Nursing","09-INCOME","Income","09C","Customer and Client Receipts","8557","Nursing Home Charges","90610776","201601",31/03/2015 00:00:00,-35.41,"53350","Nursing Homes","REDACTED DATA","WOODLANDS NURSING HOME","",,""
"London Borough of Redbridge","http://opendatacommunities.org/doc/london-borough-council/redbridge","6BADULTSOCIA","Adult Social Care","6COLDINCMENT","Older People (65 or over) incl. Older Mentally Ill","REV","Revenue","R4385","OP Nursing","09-INCOME","Income","09C","Customer and Client Receipts","8557","Nursing Home Charges","90610776","201601",31/03/2015 00:00:00,-336,"53350","Nursing Homes","REDACTED DATA","WOODLANDS NURSING HOME","",,""
"London Borough of Redbridge","http://opendatacommunities.org/doc/london-borough-council/redbridge","6BADULTSOCIA","Adult Social Care","6COLDINCMENT","Older People (65 or over) incl. Older Mentally Ill","REV","Revenue","R4385","OP Nursing","05-THIRD","Third Party Payments","05H","Private contractors","6909","Nursing Homes","90610775","201601",31/03/2015 00:00:00,80,"53350","Nursing Homes","REDACTED DATA","WOODLANDS NURSING HOME","",,""
"London Borough of Redbridge","http://opendatacommunities.org/doc/london-borough-council/redbridge","6BADULTSOCIA","Adult Social Care","6COLDINCMENT","Older People (65 or over) incl. Older Mentally Ill","REV","Revenue","R4385","OP Nursing","05-THIRD","Third Party Payments","05H","Private contractors","6909","Nursing Homes","90610775","201601",31/03/2015 00:00:00,356.73,"53350","Nursing Homes","REDACTED DATA","WOODLANDS NURSING HOME","",,""
"London Borough of Redbridge","http://opendatacommunities.org/doc/london-borough-council/redbridge","6BADULTSOCIA","Adult Social Care","6COLDINCMENT","Older People (65 or over) incl. Older Mentally Ill","REV","Revenue","R4385","OP Nursing","05-THIRD","Third Party Payments","05H","Private contractors","6909","Nursing Homes","90610775","201601",31/03/2015 00:00:00,143,"53350","Nursing Homes","REDACTED DATA","WOODLANDS NURSING HOME","",,""
"London Borough of Redbridge","http://opendatacommunities.org/doc/london-borough-council/redbridge","6BADULTSOCIA","Adult Social Care","6COLDINCMENT","Older People (65 or over) incl. Older Mentally Ill","REV","Revenue","R4385","OP Nursing","05-THIRD","Third Party Payments","05H","Private contractors","6909","Nursing Homes","90610775","201601",31/03/2015 00:00:00,31.68,"53350","Nursing Homes","REDACTED DATA","WOODLANDS NURSING HOME","",,""
"London Borough of Redbridge","http://opendatacommunities.org/doc/london-borough-council/redbridge","6BADULTSOCIA","Adult Social Care","6COLDINCMENT","Older People (65 or over) incl. Older Mentally Ill","REV","Revenue","R4385","OP Nursing","05-THIRD","Third Party Payments","05H","Private contractors","6909","Nursing Homes","90610775","201601",31/03/2015 00:00:00,336,"53350","Nursing Homes","REDACTED DATA","WOODLANDS NURSING HOME","",,""
"London Borough of Redbridge","http://opendatacommunities.org/doc/london-borough-council/redbridge","6BADULTSOCIA","Adult Social Care","6COLDINCMENT","Older People (65 or over) incl. Older Mentally Ill","REV","Revenue","R4385","OP Nursing","05-THIRD","Third Party Payments","05H","Private contractors","6909","Nursing Homes","90610775","201601",31/03/2015 00:00:00,1498.26,"53350","Nursing Homes","REDACTED DATA","WOODLANDS NURSING HOME","",,""
"London Borough of Redbridge","http://opendatacommunities.org/doc/london-borough-council/redbridge","6BADULTSOCIA","Adult Social Care","6COLDINCMENT","Older People (65 or over) incl. Older Mentally Ill","REV","Revenue","R4385","OP Nursing","09-INCOME","Income","09C","Customer and Client Receipts","8557","Nursing Home Charges","90610775","201601",31/03/2015 00:00:00,-336,"53350","Nursing Homes","REDACTED DATA","WOODLANDS NURSING HOME","",,""
"London Borough of Redbridge","http://opendatacommunities.org/doc/london-borough-council/redbridge","6BADULTSOCIA","Adult Social Care","6COLDINCMENT","Older People (65 or over) incl. Older Mentally Ill","REV","Revenue","R4385","OP Nursing","09-INCOME","Income","09C","Customer and Client Receipts","8557","Nursing Home Charges","90610775","201601",31/03/2015 00:00:00,-31.68,"53350","Nursing Homes","REDACTED DATA","WOODLANDS NURSING HOME","",,""
"London Borough of Redbridge","http://opendatacommunities.org/doc/london-borough-council/redbridge","6BADULTSOCIA","Adult Social Care","6COLDINCMENT","Older People (65 or over) incl. Older Mentally Ill","REV","Revenue","R4385","OP Nursing","09-INCOME","Income","09C","Customer and Client Receipts","8557","Nursing Home Charges","90610775","201601",31/03/2015 00:00:00,-80,"53350","Nursing Homes","REDACTED DATA","WOODLANDS NURSING HOME","",,""
"London Borough of Redbridge","http://opendatacommunities.org/doc/london-borough-council/redbridge","6BADULTSOCIA","Adult Social Care","6COLDINCMENT","Older People (65 or over) incl. Older Mentally Ill","REV","Revenue","R4385","OP Nursing","09-INCOME","Income","09C","Customer and Client Receipts","8557","Nursing Home Charges","90610775","201601",31/03/2015 00:00:00,-35.41,"53350","Nursing Homes","REDACTED DATA","WOODLANDS NURSING HOME","",,""
"London Borough of Redbridge","http://opendatacommunities.org/doc/london-borough-council/redbridge","6BADULTSOCIA","Adult Social Care","6COLDINCMENT","Older People (65 or over) incl. Older Mentally Ill","REV","Revenue","R4385","OP Nursing","09-INCOME","Income","09C","Customer and Client Receipts","8557","Nursing Home Charges","90610775","201601",31/03/2015 00:00:00,-378.9,"53350","Nursing Homes","REDACTED DATA","WOODLANDS NURSING HOME","",,""
"London Borough of Redbridge","http://opendatacommunities.org/doc/london-borough-council/redbridge","6BADULTSOCIA","Adult Social Care","6COLDINCMENT","Older People (65 or over) incl. Older Mentally Ill","REV","Revenue","R4385","OP Nursing","09-INCOME","Income","09C","Customer and Client Receipts","8557","Nursing Home Charges","90610775","201601",31/03/2015 00:00:00,-88.54,"53350","Nursing Homes","REDACTED DATA","WOODLANDS NURSING HOME","",,""
"London Borough of Redbridge","http://opendatacommunities.org/doc/london-borough-council/redbridge","6BADULTSOCIA","Adult Social Care","6COLDINCMENT","Older People (65 or over) incl. Older Mentally Ill","REV","Revenue","R4385","OP Nursing","05-THIRD","Third Party Payments","05H","Private contractors","6909","Nursing Homes","90610774","201601",31/03/2015 00:00:00,141.59,"53350","Nursing Homes","REDACTED DATA","WOODLANDS NURSING HOME","",,""
"London Borough of Redbridge","http://opendatacommunities.org/doc/london-borough-council/redbridge","6BADULTSOCIA","Adult Social Care","6COLDINCMENT","Older People (65 or over) incl. Older Mentally Ill","REV","Revenue","R4385","OP Nursing","05-THIRD","Third Party Payments","05H","Private contractors","6909","Nursing Homes","90610774","201601",31/03/2015 00:00:00,31.68,"53350","Nursing Homes","REDACTED DATA","WOODLANDS NURSING HOME","",,""
"London Borough of Redbridge","http://opendatacommunities.org/doc/london-borough-council/redbridge","6BADULTSOCIA","Adult Social Care","6COLDINCMENT","Older People (65 or over) incl. Older Mentally Ill","REV","Revenue","R4385","OP Nursing","05-THIRD","Third Party Payments","05H","Private contractors","6909","Nursing Homes","90610774","201601",31/03/2015 00:00:00,336,"53350","Nursing Homes","REDACTED DATA","WOODLANDS NURSING HOME","",,""
"London Borough of Redbridge","http://opendatacommunities.org/doc/london-borough-council/redbridge","6BADULTSOCIA","Adult Social Care","6COLDINCMENT","Older People (65 or over) incl. Older Mentally Ill","REV","Revenue","R4385","OP Nursing","05-THIRD","Third Party Payments","05H","Private contractors","6909","Nursing Homes","90610774","201601",31/03/2015 00:00:00,353.19,"53350","Nursing Homes","REDACTED DATA","WOODLANDS NURSING HOME","",,""
"London Borough of Redbridge","http://opendatacommunities.org/doc/london-borough-council/redbridge","6BADULTSOCIA","Adult Social Care","6COLDINCMENT","Older People (65 or over) incl. Older Mentally Ill","REV","Revenue","R4385","OP Nursing","05-THIRD","Third Party Payments","05H","Private contractors","6909","Nursing Homes","90610774","201601",31/03/2015 00:00:00,80,"53350","Nursing Homes","REDACTED DATA","WOODLANDS NURSING HOME","",,""
"London Borough of Redbridge","http://opendatacommunities.org/doc/london-borough-council/redbridge","6BADULTSOCIA","Adult Social Care","6COLDINCMENT","Older People (65 or over) incl. Older Mentally Ill","REV","Revenue","R4385","OP Nursing","05-THIRD","Third Party Payments","05H","Private contractors","6909","Nursing Homes","90610774","201601",31/03/2015 00:00:00,1483.38,"53350","Nursing Homes","REDACTED DATA","WOODLANDS NURSING HOME","",,""
"London Borough of Redbridge","http://opendatacommunities.org/doc/london-borough-council/redbridge","6BADULTSOCIA","Adult Social Care","6COLDINCMENT","Older People (65 or over) incl. Older Mentally Ill","REV","Revenue","R4385","OP Nursing","09-INCOME","Income","09C","Customer and Client Receipts","8557","Nursing Home Charges","90610774","201601",31/03/2015 00:00:00,-336,"53350","Nursing Homes","REDACTED DATA","WOODLANDS NURSING HOME","",,""
"London Borough of Redbridge","http://opendatacommunities.org/doc/london-borough-council/redbridge","6BADULTSOCIA","Adult Social Care","6COLDINCMENT","Older People (65 or over) incl. Older Mentally Ill","REV","Revenue","R4385","OP Nursing","09-INCOME","Income","09C","Customer and Client Receipts","8557","Nursing Home Charges","90610774","201601",31/03/2015 00:00:00,-31.68,"53350","Nursing Homes","REDACTED DATA","WOODLANDS NURSING HOME","",,""
"London Borough of Redbridge","http://opendatacommunities.org/doc/london-borough-council/redbridge","6BADULTSOCIA","Adult Social Care","6COLDINCMENT","Older People (65 or over) incl. Older Mentally Ill","REV","Revenue","R4385","OP Nursing","09-INCOME","Income","09C","Customer and Client Receipts","8557","Nursing Home Charges","90610774","201601",31/03/2015 00:00:00,-80,"53350","Nursing Homes","REDACTED DATA","WOODLANDS NURSING HOME","",,""
"London Borough of Redbridge","http://opendatacommunities.org/doc/london-borough-council/redbridge","6BADULTSOCIA","Adult Social Care","6COLDINCMENT","Older People (65 or over) incl. Older Mentally Ill","REV","Revenue","R4385","OP Nursing","05-THIRD","Third Party Payments","05H","Private contractors","6909","Nursing Homes","90610771","201601",31/03/2015 00:00:00,1472.67,"53350","Nursing Homes","REDACTED DATA","WOODLANDS NURSING HOME","",,""
"London Borough of Redbridge","http://opendatacommunities.org/doc/london-borough-council/redbridge","6BADULTSOCIA","Adult Social Care","6COLDINCMENT","Older People (65 or over) incl. Older Mentally Ill","REV","Revenue","R4385","OP Nursing","05-THIRD","Third Party Payments","05H","Private contractors","6909","Nursing Homes","90610771","201601",31/03/2015 00:00:00,31.68,"53350","Nursing Homes","REDACTED DATA","WOODLANDS NURSING HOME","",,""
"London Borough of Redbridge","http://opendatacommunities.org/doc/london-borough-council/redbridge","6BADULTSOCIA","Adult Social Care","6COLDINCMENT","Older People (65 or over) incl. Older Mentally Ill","REV","Revenue","R4385","OP Nursing","05-THIRD","Third Party Payments","05H","Private contractors","6909","Nursing Homes","90610771","201601",31/03/2015 00:00:00,80,"53350","Nursing Homes","REDACTED DATA","WOODLANDS NURSING HOME","",,""
"London Borough of Redbridge","http://opendatacommunities.org/doc/london-borough-council/redbridge","6BADULTSOCIA","Adult Social Care","6COLDINCMENT","Older People (65 or over) incl. Older Mentally Ill","REV","Revenue","R4385","OP Nursing","05-THIRD","Third Party Payments","05H","Private contractors","6909","Nursing Homes","90610771","201601",31/03/2015 00:00:00,350.64,"53350","Nursing Homes","REDACTED DATA","WOODLANDS NURSING HOME","",,""
"London Borough of Redbridge","http://opendatacommunities.org/doc/london-borough-council/redbridge","6BADULTSOCIA","Adult Social Care","6COLDINCMENT","Older People (65 or over) incl. Older Mentally Ill","REV","Revenue","R4385","OP Nursing","05-THIRD","Third Party Payments","05H","Private contractors","6909","Nursing Homes","90610771","201601",31/03/2015 00:00:00,140.57,"53350","Nursing Homes","REDACTED DATA","WOODLANDS NURSING HOME","",,""
"London Borough of Redbridge","http://opendatacommunities.org/doc/london-borough-council/redbridge","6BADULTSOCIA","Adult Social Care","6COLDINCMENT","Older People (65 or over) incl. Older Mentally Ill","REV","Revenue","R4385","OP Nursing","05-THIRD","Third Party Payments","05H","Private contractors","6909","Nursing Homes","90610771","201601",31/03/2015 00:00:00,336,"53350","Nursing Homes","REDACTED DATA","WOODLANDS NURSING HOME","",,""
"London Borough of Redbridge","http://opendatacommunities.org/doc/london-borough-council/redbridge","6BADULTSOCIA","Adult Social Care","6COLDINCMENT","Older People (65 or over) incl. Older Mentally Ill","REV","Revenue","R4385","OP Nursing","09-INCOME","Income","09C","Customer and Client Receipts","8557","Nursing Home Charges","90610771","201601",31/03/2015 00:00:00,-35.41,"53350","Nursing Homes","REDACTED DATA","WOODLANDS NURSING HOME","",,""
"London Borough of Redbridge","http://opendatacommunities.org/doc/london-borough-council/redbridge","6BADULTSOCIA","Adult Social Care","6COLDINCMENT","Older People (65 or over) incl. Older Mentally Ill","REV","Revenue","R4385","OP Nursing","09-INCOME","Income","09C","Customer and Client Receipts","8557","Nursing Home Charges","90610771","201601",31/03/2015 00:00:00,-31.68,"53350","Nursing Homes","REDACTED DATA","WOODLANDS NURSING HOME","",,""
"London Borough of Redbridge","http://opendatacommunities.org/doc/london-borough-council/redbridge","6BADULTSOCIA","Adult Social Care","6COLDINCMENT","Older People (65 or over) incl. Older Mentally Ill","REV","Revenue","R4385","OP Nursing","09-INCOME","Income","09C","Customer and Client Receipts","8557","Nursing Home Charges","90610771","201601",31/03/2015 00:00:00,-336,"53350","Nursing Homes","REDACTED DATA","WOODLANDS NURSING HOME","",,""
"London Borough of Redbridge","http://opendatacommunities.org/doc/london-borough-council/redbridge","6BADULTSOCIA","Adult Social Care","6COLDINCMENT","Older People (65 or over) incl. Older Mentally Ill","REV","Revenue","R4385","OP Nursing","09-INCOME","Income","09C","Customer and Client Receipts","8557","Nursing Home Charges","90610771","201601",31/03/2015 00:00:00,-88.54,"53350","Nursing Homes","REDACTED DATA","WOODLANDS NURSING HOME","",,""
"London Borough of Redbridge","http://opendatacommunities.org/doc/london-borough-council/redbridge","6BADULTSOCIA","Adult Social Care","6COLDINCMENT","Older People (65 or over) incl. Older Mentally Ill","REV","Revenue","R4385","OP Nursing","09-INCOME","Income","09C","Customer and Client Receipts","8557","Nursing Home Charges","90610771","201601",31/03/2015 00:00:00,-378.9,"53350","Nursing Homes","REDACTED DATA","WOODLANDS NURSING HOME","",,""
"London Borough of Redbridge","http://opendatacommunities.org/doc/london-borough-council/redbridge","6BADULTSOCIA","Adult Social Care","6COLDINCMENT","Older People (65 or over) incl. Older Mentally Ill","REV","Revenue","R4385","OP Nursing","09-INCOME","Income","09C","Customer and Client Receipts","8557","Nursing Home Charges","90610771","201601",31/03/2015 00:00:00,-80,"53350","Nursing Homes","REDACTED DATA","WOODLANDS NURSING HOME","",,""
"London Borough of Redbridge","http://opendatacommunities.org/doc/london-borough-council/redbridge","6BADULTSOCIA","Adult Social Care","6COLDINCMENT","Older People (65 or over) incl. Older Mentally Ill","REV","Revenue","R4378","OP Residential","05-THIRD","Third Party Payments","05F","Voluntary associations","6802","Residential Homes","90610770","201601",31/03/2015 00:00:00,1613.94,"53350","Nursing Homes","REDACTED DATA","WOODLANDS NURSING HOME","",,""
"London Borough of Redbridge","http://opendatacommunities.org/doc/london-borough-council/redbridge","6BADULTSOCIA","Adult Social Care","6COLDINCMENT","Older People (65 or over) incl. Older Mentally Ill","REV","Revenue","R4378","OP Residential","05-THIRD","Third Party Payments","05F","Voluntary associations","6802","Residential Homes","90610770","201601",31/03/2015 00:00:00,384.28,"53350","Nursing Homes","REDACTED DATA","WOODLANDS NURSING HOME","",,""
"London Borough of Redbridge","http://opendatacommunities.org/doc/london-borough-council/redbridge","6BADULTSOCIA","Adult Social Care","6COLDINCMENT","Older People (65 or over) incl. Older Mentally Ill","REV","Revenue","R4378","OP Residential","05-THIRD","Third Party Payments","05F","Voluntary associations","6802","Residential Homes","90610770","201601",31/03/2015 00:00:00,153.7,"53350","Nursing Homes","REDACTED DATA","WOODLANDS NURSING HOME","",,""
"London Borough of Redbridge","http://opendatacommunities.org/doc/london-borough-council/redbridge","6BADULTSOCIA","Adult Social Care","6COLDINCMENT","Older People (65 or over) incl. Older Mentally Ill","REV","Revenue","R4378","OP Residential","09-INCOME","Income","09C","Customer and Client Receipts","8555","Accommodation Charges","90610770","201601",31/03/2015 00:00:00,-35.41,"53350","Nursing Homes","REDACTED DATA","WOODLANDS NURSING HOME","",,""
"London Borough of Redbridge","http://opendatacommunities.org/doc/london-borough-council/redbridge","6BADULTSOCIA","Adult Social Care","6COLDINCMENT","Older People (65 or over) incl. Older Mentally Ill","REV","Revenue","R4378","OP Residential","09-INCOME","Income","09C","Customer and Client Receipts","8555","Accommodation Charges","90610770","201601",31/03/2015 00:00:00,-88.54,"53350","Nursing Homes","REDACTED DATA","WOODLANDS NURSING HOME","",,""
"London Borough of Redbridge","http://opendatacommunities.org/doc/london-borough-council/redbridge","6BADULTSOCIA","Adult Social Care","6COLDINCMENT","Older People (65 or over) incl. Older Mentally Ill","REV","Revenue","R4378","OP Residential","09-INCOME","Income","09C","Customer and Client Receipts","8555","Accommodation Charges","90610770","201601",31/03/2015 00:00:00,-378.9,"53350","Nursing Homes","REDACTED DATA","WOODLANDS NURSING HOME","",,""
"London Borough of Redbridge","http://opendatacommunities.org/doc/london-borough-council/redbridge","6BADULTSOCIA","Adult Social Care","6COLDINCMENT","Older People (65 or over) incl. Older Mentally Ill","REV","Revenue","R4385","OP Nursing","05-THIRD","Third Party Payments","05H","Private contractors","6909","Nursing Homes","90610768","201601",31/03/2015 00:00:00,336,"53350","Nursing Homes","REDACTED DATA","WOODLANDS NURSING HOME","",,""
"London Borough of Redbridge","http://opendatacommunities.org/doc/london-borough-council/redbridge","6BADULTSOCIA","Adult Social Care","6COLDINCMENT","Older People (65 or over) incl. Older Mentally Ill","REV","Revenue","R4385","OP Nursing","05-THIRD","Third Party Payments","05H","Private contractors","6909","Nursing Homes","90610768","201601",31/03/2015 00:00:00,353.19,"53350","Nursing Homes","REDACTED DATA","WOODLANDS NURSING HOME","",,""
"London Borough of Redbridge","http://opendatacommunities.org/doc/london-borough-council/redbridge","6BADULTSOCIA","Adult Social Care","6COLDINCMENT","Older People (65 or over) incl. Older Mentally Ill","REV","Revenue","R4385","OP Nursing","05-THIRD","Third Party Payments","05H","Private contractors","6909","Nursing Homes","90610768","201601",31/03/2015 00:00:00,31.68,"53350","Nursing Homes","REDACTED DATA","WOODLANDS NURSING HOME","",,""
"London Borough of Redbridge","http://opendatacommunities.org/doc/london-borough-council/redbridge","6BADULTSOCIA","Adult Social Care","6COLDINCMENT","Older People (65 or over) incl. Older Mentally Ill","REV","Revenue","R4385","OP Nursing","05-THIRD","Third Party Payments","05H","Private contractors","6909","Nursing Homes","90610768","201601",31/03/2015 00:00:00,141.59,"53350","Nursing Homes","REDACTED DATA","WOODLANDS NURSING HOME","",,""
"London Borough of Redbridge","http://opendatacommunities.org/doc/london-borough-council/redbridge","6BADULTSOCIA","Adult Social Care","6COLDINCMENT","Older People (65 or over) incl. Older Mentally Ill","REV","Revenue","R4385","OP Nursing","05-THIRD","Third Party Payments","05H","Private contractors","6909","Nursing Homes","90610768","201601",31/03/2015 00:00:00,80,"53350","Nursing Homes","REDACTED DATA","WOODLANDS NURSING HOME","",,""
"London Borough of Redbridge","http://opendatacommunities.org/doc/london-borough-council/redbridge","6BADULTSOCIA","Adult Social Care","6COLDINCMENT","Older People (65 or over) incl. Older Mentally Ill","REV","Revenue","R4385","OP Nursing","05-THIRD","Third Party Payments","05H","Private contractors","6909","Nursing Homes","90610768","201601",31/03/2015 00:00:00,1483.38,"53350","Nursing Homes","REDACTED DATA","WOODLANDS NURSING HOME","",,""
"London Borough of Redbridge","http://opendatacommunities.org/doc/london-borough-council/redbridge","6BADULTSOCIA","Adult Social Care","6COLDINCMENT","Older People (65 or over) incl. Older Mentally Ill","REV","Revenue","R4385","OP Nursing","09-INCOME","Income","09C","Customer and Client Receipts","8557","Nursing Home Charges","90610768","201601",31/03/2015 00:00:00,-35.41,"53350","Nursing Homes","REDACTED DATA","WOODLANDS NURSING HOME","",,""
"London Borough of Redbridge","http://opendatacommunities.org/doc/london-borough-council/redbridge","6BADULTSOCIA","Adult Social Care","6COLDINCMENT","Older People (65 or over) incl. Older Mentally Ill","REV","Revenue","R4385","OP Nursing","09-INCOME","Income","09C","Customer and Client Receipts","8557","Nursing Home Charges","90610768","201601",31/03/2015 00:00:00,-336,"53350","Nursing Homes","REDACTED DATA","WOODLANDS NURSING HOME","",,""
"London Borough of Redbridge","http://opendatacommunities.org/doc/london-borough-council/redbridge","6BADULTSOCIA","Adult Social Care","6COLDINCMENT","Older People (65 or over) incl. Older Mentally Ill","REV","Revenue","R4385","OP Nursing","09-INCOME","Income","09C","Customer and Client Receipts","8557","Nursing Home Charges","90610768","201601",31/03/2015 00:00:00,-378.9,"53350","Nursing Homes","REDACTED DATA","WOODLANDS NURSING HOME","",,""
"London Borough of Redbridge","http://opendatacommunities.org/doc/london-borough-council/redbridge","6BADULTSOCIA","Adult Social Care","6COLDINCMENT","Older People (65 or over) incl. Older Mentally Ill","REV","Revenue","R4385","OP Nursing","09-INCOME","Income","09C","Customer and Client Receipts","8557","Nursing Home Charges","90610768","201601",31/03/2015 00:00:00,-31.68,"53350","Nursing Homes","REDACTED DATA","WOODLANDS NURSING HOME","",,""
"London Borough of Redbridge","http://opendatacommunities.org/doc/london-borough-council/redbridge","6BADULTSOCIA","Adult Social Care","6COLDINCMENT","Older People (65 or over) incl. Older Mentally Ill","REV","Revenue","R4385","OP Nursing","09-INCOME","Income","09C","Customer and Client Receipts","8557","Nursing Home Charges","90610768","201601",31/03/2015 00:00:00,-80,"53350","Nursing Homes","REDACTED DATA","WOODLANDS NURSING HOME","",,""
"London Borough of Redbridge","http://opendatacommunities.org/doc/london-borough-council/redbridge","6BADULTSOCIA","Adult Social Care","6COLDINCMENT","Older People (65 or over) incl. Older Mentally Ill","REV","Revenue","R4385","OP Nursing","09-INCOME","Income","09C","Customer and Client Receipts","8557","Nursing Home Charges","90610768","201601",31/03/2015 00:00:00,-88.54,"53350","Nursing Homes","REDACTED DATA","WOODLANDS NURSING HOME","",,""
"London Borough of Redbridge","http://opendatacommunities.org/doc/london-borough-council/redbridge","6BADULTSOCIA","Adult Social Care","6COLDINCMENT","Older People (65 or over) incl. Older Mentally Ill","REV","Revenue","R4385","OP Nursing","05-THIRD","Third Party Payments","05H","Private contractors","6909","Nursing Homes","90610767","201601",31/03/2015 00:00:00,141.59,"53350","Nursing Homes","REDACTED DATA","WOODLANDS NURSING HOME","",,""
"London Borough of Redbridge","http://opendatacommunities.org/doc/london-borough-council/redbridge","6BADULTSOCIA","Adult Social Care","6COLDINCMENT","Older People (65 or over) incl. Older Mentally Ill","REV","Revenue","R4385","OP Nursing","05-THIRD","Third Party Payments","05H","Private contractors","6909","Nursing Homes","90610767","201601",31/03/2015 00:00:00,353.19,"53350","Nursing Homes","REDACTED DATA","WOODLANDS NURSING HOME","",,""
"London Borough of Redbridge","http://opendatacommunities.org/doc/london-borough-council/redbridge","6BADULTSOCIA","Adult Social Care","6COLDINCMENT","Older People (65 or over) incl. Older Mentally Ill","REV","Revenue","R4385","OP Nursing","05-THIRD","Third Party Payments","05H","Private contractors","6909","Nursing Homes","90610767","201601",31/03/2015 00:00:00,1483.38,"53350","Nursing Homes","REDACTED DATA","WOODLANDS NURSING HOME","",,""
"London Borough of Redbridge","http://opendatacommunities.org/doc/london-borough-council/redbridge","6BADULTSOCIA","Adult Social Care","6COLDINCMENT","Older People (65 or over) incl. Older Mentally Ill","REV","Revenue","R4385","OP Nursing","05-THIRD","Third Party Payments","05H","Private contractors","6909","Nursing Homes","90610767","201601",31/03/2015 00:00:00,336,"53350","Nursing Homes","REDACTED DATA","WOODLANDS NURSING HOME","",,""
"London Borough of Redbridge","http://opendatacommunities.org/doc/london-borough-council/redbridge","6BADULTSOCIA","Adult Social Care","6COLDINCMENT","Older People (65 or over) incl. Older Mentally Ill","REV","Revenue","R4385","OP Nursing","05-THIRD","Third Party Payments","05H","Private contractors","6909","Nursing Homes","90610767","201601",31/03/2015 00:00:00,31.68,"53350","Nursing Homes","REDACTED DATA","WOODLANDS NURSING HOME","",,""
"London Borough of Redbridge","http://opendatacommunities.org/doc/london-borough-council/redbridge","6BADULTSOCIA","Adult Social Care","6COLDINCMENT","Older People (65 or over) incl. Older Mentally Ill","REV","Revenue","R4385","OP Nursing","05-THIRD","Third Party Payments","05H","Private contractors","6909","Nursing Homes","90610767","201601",31/03/2015 00:00:00,80,"53350","Nursing Homes","REDACTED DATA","WOODLANDS NURSING HOME","",,""
"London Borough of Redbridge","http://opendatacommunities.org/doc/london-borough-council/redbridge","6BADULTSOCIA","Adult Social Care","6COLDINCMENT","Older People (65 or over) incl. Older Mentally Ill","REV","Revenue","R4385","OP Nursing","09-INCOME","Income","09C","Customer and Client Receipts","8557","Nursing Home Charges","90610767","201601",31/03/2015 00:00:00,-88.54,"53350","Nursing Homes","REDACTED DATA","WOODLANDS NURSING HOME","",,""
"London Borough of Redbridge","http://opendatacommunities.org/doc/london-borough-council/redbridge","6BADULTSOCIA","Adult Social Care","6COLDINCMENT","Older People (65 or over) incl. Older Mentally Ill","REV","Revenue","R4385","OP Nursing","09-INCOME","Income","09C","Customer and Client Receipts","8557","Nursing Home Charges","90610767","201601",31/03/2015 00:00:00,-378.9,"53350","Nursing Homes","REDACTED DATA","WOODLANDS NURSING HOME","",,""
"London Borough of Redbridge","http://opendatacommunities.org/doc/london-borough-council/redbridge","6BADULTSOCIA","Adult Social Care","6COLDINCMENT","Older People (65 or over) incl. Older Mentally Ill","REV","Revenue","R4385","OP Nursing","09-INCOME","Income","09C","Customer and Client Receipts","8557","Nursing Home Charges","90610767","201601",31/03/2015 00:00:00,-80,"53350","Nursing Homes","REDACTED DATA","WOODLANDS NURSING HOME","",,""
"London Borough of Redbridge","http://opendatacommunities.org/doc/london-borough-council/redbridge","6BADULTSOCIA","Adult Social Care","6COLDINCMENT","Older People (65 or over) incl. Older Mentally Ill","REV","Revenue","R4385","OP Nursing","09-INCOME","Income","09C","Customer and Client Receipts","8557","Nursing Home Charges","90610767","201601",31/03/2015 00:00:00,-35.41,"53350","Nursing Homes","REDACTED DATA","WOODLANDS NURSING HOME","",,""
"London Borough of Redbridge","http://opendatacommunities.org/doc/london-borough-council/redbridge","6BADULTSOCIA","Adult Social Care","6COLDINCMENT","Older People (65 or over) incl. Older Mentally Ill","REV","Revenue","R4385","OP Nursing","09-INCOME","Income","09C","Customer and Client Receipts","8557","Nursing Home Charges","90610767","201601",31/03/2015 00:00:00,-31.68,"53350","Nursing Homes","REDACTED DATA","WOODLANDS NURSING HOME","",,""
"London Borough of Redbridge","http://opendatacommunities.org/doc/london-borough-council/redbridge","6BADULTSOCIA","Adult Social Care","6COLDINCMENT","Older People (65 or over) incl. Older Mentally Ill","REV","Revenue","R4385","OP Nursing","09-INCOME","Income","09C","Customer and Client Receipts","8557","Nursing Home Charges","90610767","201601",31/03/2015 00:00:00,-336,"53350","Nursing Homes","REDACTED DATA","WOODLANDS NURSING HOME","",,""
"London Borough of Redbridge","http://opendatacommunities.org/doc/london-borough-council/redbridge","6BADULTSOCIA","Adult Social Care","6COLDINCMENT","Older People (65 or over) incl. Older Mentally Ill","REV","Revenue","R4385","OP Nursing","05-THIRD","Third Party Payments","05H","Private contractors","6909","Nursing Homes","90610766","201601",31/03/2015 00:00:00,143.01,"53350","Nursing Homes","REDACTED DATA","WOODLANDS NURSING HOME","",,""
"London Borough of Redbridge","http://opendatacommunities.org/doc/london-borough-council/redbridge","6BADULTSOCIA","Adult Social Care","6COLDINCMENT","Older People (65 or over) incl. Older Mentally Ill","REV","Revenue","R4385","OP Nursing","05-THIRD","Third Party Payments","05H","Private contractors","6909","Nursing Homes","90610766","201601",31/03/2015 00:00:00,80,"53350","Nursing Homes","REDACTED DATA","WOODLANDS NURSING HOME","",,""
"London Borough of Redbridge","http://opendatacommunities.org/doc/london-borough-council/redbridge","6BADULTSOCIA","Adult Social Care","6COLDINCMENT","Older People (65 or over) incl. Older Mentally Ill","REV","Revenue","R4385","OP Nursing","05-THIRD","Third Party Payments","05H","Private contractors","6909","Nursing Homes","90610766","201601",31/03/2015 00:00:00,1498.26,"53350","Nursing Homes","REDACTED DATA","WOODLANDS NURSING HOME","",,""
"London Borough of Redbridge","http://opendatacommunities.org/doc/london-borough-council/redbridge","6BADULTSOCIA","Adult Social Care","6COLDINCMENT","Older People (65 or over) incl. Older Mentally Ill","REV","Revenue","R4385","OP Nursing","05-THIRD","Third Party Payments","05H","Private contractors","6909","Nursing Homes","90610766","201601",31/03/2015 00:00:00,356.73,"53350","Nursing Homes","REDACTED DATA","WOODLANDS NURSING HOME","",,""
"London Borough of Redbridge","http://opendatacommunities.org/doc/london-borough-council/redbridge","6BADULTSOCIA","Adult Social Care","6COLDINCMENT","Older People (65 or over) incl. Older Mentally Ill","REV","Revenue","R4385","OP Nursing","05-THIRD","Third Party Payments","05H","Private contractors","6909","Nursing Homes","90610766","201601",31/03/2015 00:00:00,31.68,"53350","Nursing Homes","REDACTED DATA","WOODLANDS NURSING HOME","",,""
"London Borough of Redbridge","http://opendatacommunities.org/doc/london-borough-council/redbridge","6BADULTSOCIA","Adult Social Care","6COLDINCMENT","Older People (65 or over) incl. Older Mentally Ill","REV","Revenue","R4385","OP Nursing","05-THIRD","Third Party Payments","05H","Private contractors","6909","Nursing Homes","90610766","201601",31/03/2015 00:00:00,336,"53350","Nursing Homes","REDACTED DATA","WOODLANDS NURSING HOME","",,""
"London Borough of Redbridge","http://opendatacommunities.org/doc/london-borough-council/redbridge","6BADULTSOCIA","Adult Social Care","6COLDINCMENT","Older People (65 or over) incl. Older Mentally Ill","REV","Revenue","R4385","OP Nursing","09-INCOME","Income","09C","Customer and Client Receipts","8557","Nursing Home Charges","90610766","201601",31/03/2015 00:00:00,-95.41,"53350","Nursing Homes","REDACTED DATA","WOODLANDS NURSING HOME","",,""
"London Borough of Redbridge","http://opendatacommunities.org/doc/london-borough-council/redbridge","6BADULTSOCIA","Adult Social Care","6COLDINCMENT","Older People (65 or over) incl. Older Mentally Ill","REV","Revenue","R4385","OP Nursing","09-INCOME","Income","09C","Customer and Client Receipts","8557","Nursing Home Charges","90610766","201601",31/03/2015 00:00:00,-80,"53350","Nursing Homes","REDACTED DATA","WOODLANDS NURSING HOME","",,""
"London Borough of Redbridge","http://opendatacommunities.org/doc/london-borough-council/redbridge","6BADULTSOCIA","Adult Social Care","6COLDINCMENT","Older People (65 or over) incl. Older Mentally Ill","REV","Revenue","R4385","OP Nursing","09-INCOME","Income","09C","Customer and Client Receipts","8557","Nursing Home Charges","90610766","201601",31/03/2015 00:00:00,-396.69,"53350","Nursing Homes","REDACTED DATA","WOODLANDS NURSING HOME","",,""
"London Borough of Redbridge","http://opendatacommunities.org/doc/london-borough-council/redbridge","6BADULTSOCIA","Adult Social Care","6COLDINCMENT","Older People (65 or over) incl. Older Mentally Ill","REV","Revenue","R4385","OP Nursing","09-INCOME","Income","09C","Customer and Client Receipts","8557","Nursing Home Charges","90610766","201601",31/03/2015 00:00:00,-38.16,"53350","Nursing Homes","REDACTED DATA","WOODLANDS NURSING HOME","",,""
"London Borough of Redbridge","http://opendatacommunities.org/doc/london-borough-council/redbridge","6BADULTSOCIA","Adult Social Care","6COLDINCMENT","Older People (65 or over) incl. Older Mentally Ill","REV","Revenue","R4385","OP Nursing","09-INCOME","Income","09C","Customer and Client Receipts","8557","Nursing Home Charges","90610766","201601",31/03/2015 00:00:00,-31.68,"53350","Nursing Homes","REDACTED DATA","WOODLANDS NURSING HOME","",,""
"London Borough of Redbridge","http://opendatacommunities.org/doc/london-borough-council/redbridge","6BADULTSOCIA","Adult Social Care","6COLDINCMENT","Older People (65 or over) incl. Older Mentally Ill","REV","Revenue","R4385","OP Nursing","09-INCOME","Income","09C","Customer and Client Receipts","8557","Nursing Home Charges","90610766","201601",31/03/2015 00:00:00,-336,"53350","Nursing Homes","REDACTED DATA","WOODLANDS NURSING HOME","",,""
"London Borough of Redbridge","http://opendatacommunities.org/doc/london-borough-council/redbridge","6BADULTSOCIA","Adult Social Care","6COLDINCMENT","Older People (65 or over) incl. Older Mentally Ill","REV","Revenue","R4385","OP Nursing","05-THIRD","Third Party Payments","05H","Private contractors","6909","Nursing Homes","90610764","201601",31/03/2015 00:00:00,141.59,"53350","Nursing Homes","REDACTED DATA","WOODLANDS NURSING HOME","",,""
"London Borough of Redbridge","http://opendatacommunities.org/doc/london-borough-council/redbridge","6BADULTSOCIA","Adult Social Care","6COLDINCMENT","Older People (65 or over) incl. Older Mentally Ill","REV","Revenue","R4385","OP Nursing","05-THIRD","Third Party Payments","05H","Private contractors","6909","Nursing Homes","90610764","201601",31/03/2015 00:00:00,336,"53350","Nursing Homes","REDACTED DATA","WOODLANDS NURSING HOME","",,""
"London Borough of Redbridge","http://opendatacommunities.org/doc/london-borough-council/redbridge","6BADULTSOCIA","Adult Social Care","6COLDINCMENT","Older People (65 or over) incl. Older Mentally Ill","REV","Revenue","R4385","OP Nursing","05-THIRD","Third Party Payments","05H","Private contractors","6909","Nursing Homes","90610764","201601",31/03/2015 00:00:00,80,"53350","Nursing Homes","REDACTED DATA","WOODLANDS NURSING HOME","",,""
"London Borough of Redbridge","http://opendatacommunities.org/doc/london-borough-council/redbridge","6BADULTSOCIA","Adult Social Care","6COLDINCMENT","Older People (65 or over) incl. Older Mentally Ill","REV","Revenue","R4385","OP Nursing","05-THIRD","Third Party Payments","05H","Private contractors","6909","Nursing Homes","90610764","201601",31/03/2015 00:00:00,1483.38,"53350","Nursing Homes","REDACTED DATA","WOODLANDS NURSING HOME","",,""
"London Borough of Redbridge","http://opendatacommunities.org/doc/london-borough-council/redbridge","6BADULTSOCIA","Adult Social Care","6COLDINCMENT","Older People (65 or over) incl. Older Mentally Ill","REV","Revenue","R4385","OP Nursing","05-THIRD","Third Party Payments","05H","Private contractors","6909","Nursing Homes","90610764","201601",31/03/2015 00:00:00,353.19,"53350","Nursing Homes","REDACTED DATA","WOODLANDS NURSING HOME","",,""
"London Borough of Redbridge","http://opendatacommunities.org/doc/london-borough-council/redbridge","6BADULTSOCIA","Adult Social Care","6COLDINCMENT","Older People (65 or over) incl. Older Mentally Ill","REV","Revenue","R4385","OP Nursing","05-THIRD","Third Party Payments","05H","Private contractors","6909","Nursing Homes","90610764","201601",31/03/2015 00:00:00,31.68,"53350","Nursing Homes","REDACTED DATA","WOODLANDS NURSING HOME","",,""
"London Borough of Redbridge","http://opendatacommunities.org/doc/london-borough-council/redbridge","6BADULTSOCIA","Adult Social Care","6COLDINCMENT","Older People (65 or over) incl. Older Mentally Ill","REV","Revenue","R4385","OP Nursing","09-INCOME","Income","09C","Customer and Client Receipts","8557","Nursing Home Charges","90610764","201601",31/03/2015 00:00:00,-336,"53350","Nursing Homes","REDACTED DATA","WOODLANDS NURSING HOME","",,""
"London Borough of Redbridge","http://opendatacommunities.org/doc/london-borough-council/redbridge","6BADULTSOCIA","Adult Social Care","6COLDINCMENT","Older People (65 or over) incl. Older Mentally Ill","REV","Revenue","R4385","OP Nursing","09-INCOME","Income","09C","Customer and Client Receipts","8557","Nursing Home Charges","90610764","201601",31/03/2015 00:00:00,-80,"53350","Nursing Homes","REDACTED DATA","WOODLANDS NURSING HOME","",,""
"London Borough of Redbridge","http://opendatacommunities.org/doc/london-borough-council/redbridge","6BADULTSOCIA","Adult Social Care","6COLDINCMENT","Older People (65 or over) incl. Older Mentally Ill","REV","Revenue","R4385","OP Nursing","09-INCOME","Income","09C","Customer and Client Receipts","8557","Nursing Home Charges","90610764","201601",31/03/2015 00:00:00,-378.9,"53350","Nursing Homes","REDACTED DATA","WOODLANDS NURSING HOME","",,""
"London Borough of Redbridge","http://opendatacommunities.org/doc/london-borough-council/redbridge","6BADULTSOCIA","Adult Social Care","6COLDINCMENT","Older People (65 or over) incl. Older Mentally Ill","REV","Revenue","R4385","OP Nursing","09-INCOME","Income","09C","Customer and Client Receipts","8557","Nursing Home Charges","90610764","201601",31/03/2015 00:00:00,-88.54,"53350","Nursing Homes","REDACTED DATA","WOODLANDS NURSING HOME","",,""
"London Borough of Redbridge","http://opendatacommunities.org/doc/london-borough-council/redbridge","6BADULTSOCIA","Adult Social Care","6COLDINCMENT","Older People (65 or over) incl. Older Mentally Ill","REV","Revenue","R4385","OP Nursing","09-INCOME","Income","09C","Customer and Client Receipts","8557","Nursing Home Charges","90610764","201601",31/03/2015 00:00:00,-35.41,"53350","Nursing Homes","REDACTED DATA","WOODLANDS NURSING HOME","",,""
"London Borough of Redbridge","http://opendatacommunities.org/doc/london-borough-council/redbridge","6BADULTSOCIA","Adult Social Care","6COLDINCMENT","Older People (65 or over) incl. Older Mentally Ill","REV","Revenue","R4385","OP Nursing","09-INCOME","Income","09C","Customer and Client Receipts","8557","Nursing Home Charges","90610764","201601",31/03/2015 00:00:00,-31.68,"53350","Nursing Homes","REDACTED DATA","WOODLANDS NURSING HOME","",,""
"London Borough of Redbridge","http://opendatacommunities.org/doc/london-borough-council/redbridge","6BADULTSOCIA","Adult Social Care","6CADLEARNDIS","Adults Under 65 with Learning Disabilities","REV","Revenue","R4188","LD - Residential Care","05-THIRD","Third Party Payments","05F","Voluntary associations","6802","Residential Homes","90610763","201601",24/03/2015 00:00:00,7899.32,"17020","Charities and Voluntary Organisations","REDACTED DATA","SENSE","1825301","http://opencorporates.com/companies/gb/1825301",""
"London Borough of Redbridge","http://opendatacommunities.org/doc/london-borough-council/redbridge","6BADULTSOCIA","Adult Social Care","6COLDINCMENT","Older People (65 or over) incl. Older Mentally Ill","REV","Revenue","R4378","OP Residential","05-THIRD","Third Party Payments","05F","Voluntary associations","6802","Residential Homes","90610762","201601",24/03/2015 00:00:00,5327,"17020","Charities and Voluntary Organisations","REDACTED DATA","OUTWARD","2151434","http://opencorporates.com/companies/gb/2151434",""
"London Borough of Redbridge","http://opendatacommunities.org/doc/london-borough-council/redbridge","6BADULTSOCIA","Adult Social Care","6COLDINCMENT","Older People (65 or over) incl. Older Mentally Ill","REV","Revenue","R4378","OP Residential","09-INCOME","Income","09C","Customer and Client Receipts","8555","Accommodation Charges","90610762","201601",24/03/2015 00:00:00,-495.8,"17020","Charities and Voluntary Organisations","REDACTED DATA","OUTWARD","2151434","http://opencorporates.com/companies/gb/2151434",""
"London Borough of Redbridge","http://opendatacommunities.org/doc/london-borough-council/redbridge","6BADULTSOCIA","Adult Social Care","6CADLEARNDIS","Adults Under 65 with Learning Disabilities","REV","Revenue","R4188","LD - Residential Care","05-THIRD","Third Party Payments","05F","Voluntary associations","6802","Residential Homes","90610761","201601",24/03/2015 00:00:00,5139.84,"17020","Charities and Voluntary Organisations","REDACTED DATA","MCCH SOCIETY LTD","IP25577R","http://opencorporates.com/companies/gb/IP25577R",""
"London Borough of Redbridge","http://opendatacommunities.org/doc/london-borough-council/redbridge","6BADULTSOCIA","Adult Social Care","6CADLEARNDIS","Adults Under 65 with Learning Disabilities","REV","Revenue","R4188","LD - Residential Care","09-INCOME","Income","09C","Customer and Client Receipts","8555","Accommodation Charges","90610761","201601",24/03/2015 00:00:00,-607.04,"17020","Charities and Voluntary Organisations","REDACTED DATA","MCCH SOCIETY LTD","IP25577R","http://opencorporates.com/companies/gb/IP25577R",""
"London Borough of Redbridge","http://opendatacommunities.org/doc/london-borough-council/redbridge","6BADULTSOCIA","Adult Social Care","6CADLEARNDIS","Adults Under 65 with Learning Disabilities","REV","Revenue","R4241","ONEL � Continuing Care","05-THIRD","Third Party Payments","05F","Voluntary associations","6802","Residential Homes","90610760","201601",24/03/2015 00:00:00,5139.84,"17020","Charities and Voluntary Organisations","REDACTED DATA","MCCH SOCIETY LTD","IP25577R","http://opencorporates.com/companies/gb/IP25577R",""
"London Borough of Redbridge","http://opendatacommunities.org/doc/london-borough-council/redbridge","6BADULTSOCIA","Adult Social Care","6CADLEARNDIS","Adults Under 65 with Learning Disabilities","REV","Revenue","R4188","LD - Residential Care","05-THIRD","Third Party Payments","05F","Voluntary associations","6802","Residential Homes","90610759","201601",24/03/2015 00:00:00,5224.72,"17020","Charities and Voluntary Organisations","REDACTED DATA","MCCH SOCIETY LTD","IP25577R","http://opencorporates.com/companies/gb/IP25577R",""
"London Borough of Redbridge","http://opendatacommunities.org/doc/london-borough-council/redbridge","6BADULTSOCIA","Adult Social Care","6CADLEARNDIS","Adults Under 65 with Learning Disabilities","REV","Revenue","R4188","LD - Residential Care","09-INCOME","Income","09C","Customer and Client Receipts","8555","Accommodation Charges","90610759","201601",24/03/2015 00:00:00,-388.68,"17020","Charities and Voluntary Organisations","REDACTED DATA","MCCH SOCIETY LTD","IP25577R","http://opencorporates.com/companies/gb/IP25577R",""
"London Borough of Redbridge","http://opendatacommunities.org/doc/london-borough-council/redbridge","6BADULTSOCIA","Adult Social Care","6CADLEARNDIS","Adults Under 65 with Learning Disabilities","REV","Revenue","R4188","LD - Residential Care","05-THIRD","Third Party Payments","05F","Voluntary associations","6802","Residential Homes","90610758","201601",24/03/2015 00:00:00,5224.72,"17020","Charities and Voluntary Organisations","REDACTED DATA","MCCH SOCIETY LTD","IP25577R","http://opencorporates.com/companies/gb/IP25577R",""
"London Borough of Redbridge","http://opendatacommunities.org/doc/london-borough-council/redbridge","6BADULTSOCIA","Adult Social Care","6CADLEARNDIS","Adults Under 65 with Learning Disabilities","REV","Revenue","R4188","LD - Residential Care","09-INCOME","Income","09C","Customer and Client Receipts","8555","Accommodation Charges","90610758","201601",24/03/2015 00:00:00,-381.6,"17020","Charities and Voluntary Organisations","REDACTED DATA","MCCH SOCIETY LTD","IP25577R","http://opencorporates.com/companies/gb/IP25577R",""
"London Borough of Redbridge","http://opendatacommunities.org/doc/london-borough-council/redbridge","6BADULTSOCIA","Adult Social Care","6CADLEARNDIS","Adults Under 65 with Learning Disabilities","REV","Revenue","R4188","LD - Residential Care","05-THIRD","Third Party Payments","05F","Voluntary associations","6802","Residential Homes","90610757","201601",24/03/2015 00:00:00,5224.72,"17020","Charities and Voluntary Organisations","REDACTED DATA","MCCH SOCIETY LTD","IP25577R","http://opencorporates.com/companies/gb/IP25577R",""
"London Borough of Redbridge","http://opendatacommunities.org/doc/london-borough-council/redbridge","6BADULTSOCIA","Adult Social Care","6CADLEARNDIS","Adults Under 65 with Learning Disabilities","REV","Revenue","R4188","LD - Residential Care","09-INCOME","Income","09C","Customer and Client Receipts","8555","Accommodation Charges","90610757","201601",24/03/2015 00:00:00,-531.8,"17020","Charities and Voluntary Organisations","REDACTED DATA","MCCH SOCIETY LTD","IP25577R","http://opencorporates.com/companies/gb/IP25577R",""
"London Borough of Redbridge","http://opendatacommunities.org/doc/london-borough-council/redbridge","6BADULTSOCIA","Adult Social Care","6CADLEARNDIS","Adults Under 65 with Learning Disabilities","REV","Revenue","R4188","LD - Residential Care","05-THIRD","Third Party Payments","05F","Voluntary associations","6802","Residential Homes","90610756","201601",24/03/2015 00:00:00,5224.72,"17020","Charities and Voluntary Organisations","REDACTED DATA","MCCH SOCIETY LTD","IP25577R","http://opencorporates.com/companies/gb/IP25577R",""
"London Borough of Redbridge","http://opendatacommunities.org/doc/london-borough-council/redbridge","6BADULTSOCIA","Adult Social Care","6CADLEARNDIS","Adults Under 65 with Learning Disabilities","REV","Revenue","R4188","LD - Residential Care","09-INCOME","Income","09C","Customer and Client Receipts","8555","Accommodation Charges","90610756","201601",24/03/2015 00:00:00,-319.4,"17020","Charities and Voluntary Organisations","REDACTED DATA","MCCH SOCIETY LTD","IP25577R","http://opencorporates.com/companies/gb/IP25577R",""
"London Borough of Redbridge","http://opendatacommunities.org/doc/london-borough-council/redbridge","6BADULTSOCIA","Adult Social Care","6CADMENHLTH","Adults Under 65 with Mental Health Needs","REV","Revenue","R4219","MH - Supported Living","06-TRANSFER","Transfer Payments","06B","Social Services Clients","7066","Supportive Lodgings (Transfer Payments)","90610755","201601",24/03/2015 00:00:00,14384.19,"64710","Residential Care Homes","REDACTED DATA","LEYTON HOUSE COMMUNITY CARE LTD","4199578","http://opencorporates.com/companies/gb/4199578",""
"London Borough of Redbridge","http://opendatacommunities.org/doc/london-borough-council/redbridge","6BADULTSOCIA","Adult Social Care","6COLDINCMENT","Older People (65 or over) incl. Older Mentally Ill","REV","Revenue","R4378","OP Residential","05-THIRD","Third Party Payments","05F","Voluntary associations","6802","Residential Homes","90610754","201601",24/03/2015 00:00:00,2292.36,"53350","Nursing Homes","REDACTED DATA","JEWISH CARE (MERIT  HOUSE)","2447900","http://opencorporates.com/companies/gb/2447900","587033133"
"London Borough of Redbridge","http://opendatacommunities.org/doc/london-borough-council/redbridge","6BADULTSOCIA","Adult Social Care","6COLDINCMENT","Older People (65 or over) incl. Older Mentally Ill","REV","Revenue","R4378","OP Residential","09-INCOME","Income","09C","Customer and Client Receipts","8555","Accommodation Charges","90610754","201601",24/03/2015 00:00:00,-507.72,"53350","Nursing Homes","REDACTED DATA","JEWISH CARE (MERIT  HOUSE)","2447900","http://opencorporates.com/companies/gb/2447900","587033133"
"London Borough of Redbridge","http://opendatacommunities.org/doc/london-borough-council/redbridge","6BADULTSOCIA","Adult Social Care","6COLDINCMENT","Older People (65 or over) incl. Older Mentally Ill","REV","Revenue","R4378","OP Residential","05-THIRD","Third Party Payments","05F","Voluntary associations","6802","Residential Homes","90610753","201601",24/03/2015 00:00:00,2034,"53350","Nursing Homes","REDACTED DATA","JEWISH CARE (MERIT  HOUSE)","2447900","http://opencorporates.com/companies/gb/2447900","587033133"
"London Borough of Redbridge","http://opendatacommunities.org/doc/london-borough-council/redbridge","6BADULTSOCIA","Adult Social Care","6COLDINCMENT","Older People (65 or over) incl. Older Mentally Ill","REV","Revenue","R4378","OP Residential","09-INCOME","Income","09C","Customer and Client Receipts","8555","Accommodation Charges","90610753","201601",24/03/2015 00:00:00,-567.64,"53350","Nursing Homes","REDACTED DATA","JEWISH CARE (MERIT  HOUSE)","2447900","http://opencorporates.com/companies/gb/2447900","587033133"
"London Borough of Redbridge","http://opendatacommunities.org/doc/london-borough-council/redbridge","6BADULTSOCIA","Adult Social Care","6COLDINCMENT","Older People (65 or over) incl. Older Mentally Ill","REV","Revenue","R4378","OP Residential","05-THIRD","Third Party Payments","05F","Voluntary associations","6802","Residential Homes","90610752","201601",24/03/2015 00:00:00,2034,"53350","Nursing Homes","REDACTED DATA","JEWISH CARE (MERIT  HOUSE)","2447900","http://opencorporates.com/companies/gb/2447900","587033133"
"London Borough of Redbridge","http://opendatacommunities.org/doc/london-borough-council/redbridge","6BADULTSOCIA","Adult Social Care","6COLDINCMENT","Older People (65 or over) incl. Older Mentally Ill","REV","Revenue","R4378","OP Residential","09-INCOME","Income","09C","Customer and Client Receipts","8555","Accommodation Charges","90610752","201601",24/03/2015 00:00:00,-668.52,"53350","Nursing Homes","REDACTED DATA","JEWISH CARE (MERIT  HOUSE)","2447900","http://opencorporates.com/companies/gb/2447900","587033133"
"London Borough of Redbridge","http://opendatacommunities.org/doc/london-borough-council/redbridge","6BADULTSOCIA","Adult Social Care","6COLDINCMENT","Older People (65 or over) incl. Older Mentally Ill","REV","Revenue","R4378","OP Residential","05-THIRD","Third Party Payments","05F","Voluntary associations","6802","Residential Homes","90610751","201601",24/03/2015 00:00:00,2090.32,"53350","Nursing Homes","REDACTED DATA","JEWISH CARE (MERIT  HOUSE)","2447900","http://opencorporates.com/companies/gb/2447900","587033133"
"London Borough of Redbridge","http://opendatacommunities.org/doc/london-borough-council/redbridge","6BADULTSOCIA","Adult Social Care","6COLDINCMENT","Older People (65 or over) incl. Older Mentally Ill","REV","Revenue","R4378","OP Residential","09-INCOME","Income","09C","Customer and Client Receipts","8555","Accommodation Charges","90610751","201601",24/03/2015 00:00:00,-580.48,"53350","Nursing Homes","REDACTED DATA","JEWISH CARE (MERIT  HOUSE)","2447900","http://opencorporates.com/companies/gb/2447900","587033133"
"London Borough of Redbridge","http://opendatacommunities.org/doc/london-borough-council/redbridge","6BADULTSOCIA","Adult Social Care","6COLDINCMENT","Older People (65 or over) incl. Older Mentally Ill","REV","Revenue","R4378","OP Residential","05-THIRD","Third Party Payments","05F","Voluntary associations","6802","Residential Homes","90610750","201601",24/03/2015 00:00:00,2292.36,"53350","Nursing Homes","REDACTED DATA","JEWISH CARE (MERIT  HOUSE)","2447900","http://opencorporates.com/companies/gb/2447900","587033133"
"London Borough of Redbridge","http://opendatacommunities.org/doc/london-borough-council/redbridge","6BADULTSOCIA","Adult Social Care","6COLDINCMENT","Older People (65 or over) incl. Older Mentally Ill","REV","Revenue","R4378","OP Residential","09-INCOME","Income","09C","Customer and Client Receipts","8555","Accommodation Charges","90610750","201601",24/03/2015 00:00:00,-702.44,"53350","Nursing Homes","REDACTED DATA","JEWISH CARE (MERIT  HOUSE)","2447900","http://opencorporates.com/companies/gb/2447900","587033133"
